Workbook

Sheet RFPR cover
A1: Regulatory Financial Performance Report
A2: ='RFPR cover'!C5 -> Cadent-EOE
A3: ='RFPR cover'!C7 -> 2021
B5: Licensee | C5: Cadent-EOE | G5: Input cells
B6: Sector | C6: =INDEX(Data!$A$73:$A$100,MATCH($C$5,Data!$B$73:$B$100,0),0)&"1" -> GD1 | G6: Totals cells (of formula within worksheet)
B7: Reporting Year: (enter 2014 for 2013-14) | C7: 2021 | G7: Referencing to other worksheets
B8: Version (Number) | G8: Referencing to other workbooks
B9: Submitted Date: | G9: Check cells
B10: Cost of Equity | C10: =SUMIF(Data!$B$72:$B$100,C5,Data!$C$72:$C$100) -> 0.067 | G10: No Input
B11: Sharing Factor | C11: =SUMIF(Data!$B$72:$B$100,C5,Data!$D$72:$D$100) -> 0.6304 | G11: Descriptions and pack data
B12: Notional Gearing | C12: =SUMIF(Data!$B$72:$B$100,C5,Data!$E$72:$E$100) -> 0.65
B13: RIIO-1 start date | C13: =INDEX(Data!$G$73:$G$100,MATCH($C$5,Data!$B$73:$B$100,0),0) -> 2014 | F13: Materiality £m
B14: Price basis | C14: =INDEX(Data!$H$73:$H$100,MATCH($C$5,Data!$B$73:$B$100,0),0) -> £m 09/10 | F14: 0.1

Sheet Data
A1: Network Operator Data
A2: ='RFPR cover'!C5 -> Cadent-EOE
A3: ='RFPR cover'!C7 -> 2021
B6: 2018 | C6: 2017-18
B7: 2019 | C7: 2018-19
B8: 2020 | C8: 2019-20
B9: 2021 | C9: 2020-21
B10: 2022 | C10: 2021-22
B11: 2023 | C11: 2022-23
B13: RPI Index | C13: Reporting year | D13: Actual / Forecast index | E13: Financial Year Average RPI (RPIt) | F13: Year end RPI | G13: Corp. Tax
B14: 2009-10 | C14: 2010 | D14: =IF(VALUE(C14)<='RFPR cover'!$C$7,"Actual","Forecast") -> Actual | E14: 215.767 | F14: 221.75 | G14: 0.28
B15: 2010-11 | C15: 2011 | D15: =IF(VALUE(C15)<='RFPR cover'!$C$7,"Actual","Forecast") -> Actual | E15: 226.475 | F15: 233.45 | G15: 0.28
B16: 2011-12 | C16: 2012 | D16: =IF(VALUE(C16)<='RFPR cover'!$C$7,"Actual","Forecast") -> Actual | E16: 237.342 | F16: 241.65 | G16: 0.26
B17: 2012-13 | C17: 2013 | D17: =IF(VALUE(C17)<='RFPR cover'!$C$7,"Actual","Forecast") -> Actual | E17: 244.675 | F17: 249.1 | G17: 0.24
B18: 2013-14 | C18: 2014 | D18: =IF(VALUE(C18)<='RFPR cover'!$C$7,"Actual","Forecast") -> Actual | E18: 251.733 | F18: 255.25 | G18: 0.23
B19: 2014-15 | C19: 2015 | D19: =IF(VALUE(C19)<='RFPR cover'!$C$7,"Actual","Forecast") -> Actual | E19: 256.667 | F19: 257.55 | G19: 0.21
B20: 2015-16 | C20: 2016 | D20: =IF(VALUE(C20)<='RFPR cover'!$C$7,"Actual","Forecast") -> Actual | E20: 259.433 | F20: 261.25 | G20: 0.2
B21: 2016-17 | C21: 2017 | D21: =IF(VALUE(C21)<='RFPR cover'!$C$7,"Actual","Forecast") -> Actual | E21: 264.992 | F21: 269.95 | G21: 0.2
B22: 2017-18 | C22: 2018 | D22: =IF(VALUE(C22)<='RFPR cover'!$C$7,"Actual","Forecast") -> Actual | E22: 274.908 | F22: 279 | G22: 0.19
B23: 2018-19 | C23: 2019 | D23: =IF(VALUE(C23)<='RFPR cover'!$C$7,"Actual","Forecast") -> Actual | E23: 283.308 | F23: 286.65 | G23: 0.19
B24: 2019-20 | C24: 2020 | D24: =IF(VALUE(C24)<='RFPR cover'!$C$7,"Actual","Forecast") -> Actual | E24: 290.642 | F24: 292.6 | G24: 0.19
B25: 2020-21 | C25: 2021 | D25: =IF(VALUE(C25)<='RFPR cover'!$C$7,"Actual","Forecast") -> Actual | E25: 294.167 | F25: 299 | G25: 0.19
B26: 2021-22 | C26: 2022 | D26: =IF(VALUE(C26)<='RFPR cover'!$C$7,"Actual","Forecast") -> Forecast | E26: =E25*(1+INDEX($D$43:$J$43,0,MATCH($C26,$D$42:$J$42,0))) -> 301.9624255 | F26: 306.9235 | G26: 0.19
B27: 2022-23 | C27: 2023 | D27: =IF(VALUE(C27)<='RFPR cover'!$C$7,"Actual","Forecast") -> Forecast | E27: 311.2477701 | F27: 316.3613976 | G27: 0.19
B28: 2023-24 | C28: 2024 | D28: =IF(VALUE(C28)<='RFPR cover'!$C$7,"Actual","Forecast") -> Forecast | G28: 0.19
B29: 2024-25 | C29: 2025 | D29: =IF(VALUE(C29)<='RFPR cover'!$C$7,"Actual","Forecast") -> Forecast | G29: 0.19
B30: 2025-26 | C30: 2026 | D30: =IF(VALUE(C30)<='RFPR cover'!$C$7,"Actual","Forecast") -> Forecast | G30: 0.19
C32: =IF(C33<='RFPR cover'!$C$7,"Actuals","Forecast") -> Actuals | D32: =IF(D33<='RFPR cover'!$C$7,"Actuals","Forecast") -> Actuals | E32: =IF(E33<='RFPR cover'!$C$7,"Actuals","Forecast") -> Actuals | F32: =IF(F33<='RFPR cover'!$C$7,"Actuals","Forecast") -> Actuals | G32: =IF(G33<='RFPR cover'!$C$7,"Actuals","Forecast") -> Actuals | H32: =IF(H33<='RFPR cover'!$C$7,"Actuals","Forecast") -> Actuals | I32: =IF(I33<='RFPR cover'!$C$7,"Actuals","Forecast") -> Actuals | J32: =IF(J33<='RFPR cover'!$C$7,"Actuals","Forecast") -> Actuals
C33: ='RFPR cover'!$C$13 -> 2014 | D33: =C33+1 -> 2015 | E33: 2016 | F33: 2017 | G33: 2018 | H33: 2019 | I33: 2020 | J33: 2021
B34: Financial Year Average RPI (RPIt) | C34: =INDEX(Data!$E$14:$E$30,MATCH(C$33,Data!$C$14:$C$30,0),0)/IF('RFPR cover'!$C$6="ED1",Data!$E$17,Data!$E$14) -> 1.166689067 | D34: =INDEX(Data!$E$14:$E$30,MATCH(D$33,Data!$C$14:$C$30,0),0)/IF('RFPR cover'!$C$6="ED1",Data!$E$17,Data!$E$14) -> 1.189556327 | E34: =INDEX(Data!$E$14:$E$30,MATCH(E$33,Data!$C$14:$C$30,0),0)/IF('RFPR cover'!$C$6="ED1",Data!$E$17,Data!$E$14) -> 1.202375711 | F34: =INDEX(Data!$E$14:$E$30,MATCH(F$33,Data!$C$14:$C$30,0),0)/IF('RFPR cover'!$C$6="ED1",Data!$E$17,Data!$E$14) -> 1.228139614 | G34: =INDEX(Data!$E$14:$E$30,MATCH(G$33,Data!$C$14:$C$30,0),0)/IF('RFPR cover'!$C$6="ED1",Data!$E$17,Data!$E$14) -> 1.274096595 | H34: =INDEX(Data!$E$14:$E$30,MATCH(H$33,Data!$C$14:$C$30,0),0)/IF('RFPR cover'!$C$6="ED1",Data!$E$17,Data!$E$14) -> 1.313027479 | I34: =INDEX(Data!$E$14:$E$30,MATCH(I$33,Data!$C$14:$C$30,0),0)/IF('RFPR cover'!$C$6="ED1",Data!$E$17,Data!$E$14) -> 1.347017848 | J34: =INDEX(Data!$E$14:$E$30,MATCH(J$33,Data!$C$14:$C$30,0),0)/IF('RFPR cover'!$C$6="ED1",Data!$E$17,Data!$E$14) -> 1.363354915
B35: Year end RPI | C35: =INDEX(Data!$F$14:$F$30,MATCH(C$33,Data!$C$14:$C$30,0),0)/IF('RFPR cover'!$C$6="ED1",Data!$E$17,Data!$E$14) -> 1.182989058 | D35: =INDEX(Data!$F$14:$F$30,MATCH(D$33,Data!$C$14:$C$30,0),0)/IF('RFPR cover'!$C$6="ED1",Data!$E$17,Data!$E$14) -> 1.193648704 | E35: =INDEX(Data!$F$14:$F$30,MATCH(E$33,Data!$C$14:$C$30,0),0)/IF('RFPR cover'!$C$6="ED1",Data!$E$17,Data!$E$14) -> 1.210796832 | F35: =INDEX(Data!$F$14:$F$30,MATCH(F$33,Data!$C$14:$C$30,0),0)/IF('RFPR cover'!$C$6="ED1",Data!$E$17,Data!$E$14) -> 1.251118104 | G35: =INDEX(Data!$F$14:$F$30,MATCH(G$33,Data!$C$14:$C$30,0),0)/IF('RFPR cover'!$C$6="ED1",Data!$E$17,Data!$E$14) -> 1.293061497 | H35: =INDEX(Data!$F$14:$F$30,MATCH(H$33,Data!$C$14:$C$30,0),0)/IF('RFPR cover'!$C$6="ED1",Data!$E$17,Data!$E$14) -> 1.328516409 | I35: =INDEX(Data!$F$14:$F$30,MATCH(I$33,Data!$C$14:$C$30,0),0)/IF('RFPR cover'!$C$6="ED1",Data!$E$17,Data!$E$14) -> 1.356092452 | J35: =INDEX(Data!$F$14:$F$30,MATCH(J$33,Data!$C$14:$C$30,0),0)/IF('RFPR cover'!$C$6="ED1",Data!$E$17,Data!$E$14) -> 1.385754077
B36: 1 year change in Fin Year Ave RPI | C36: =INDEX(Data!$E$14:$E$30,MATCH(C$33,Data!$C$14:$C$30,0))/INDEX(Data!$E$14:$E$30,MATCH(C$33-1,Data!$C$14:$C$30,0)) -> 1.028846429 | D36: =INDEX(Data!$E$14:$E$30,MATCH(D$33,Data!$C$14:$C$30,0))/INDEX(Data!$E$14:$E$30,MATCH(D$33-1,Data!$C$14:$C$30,0)) -> 1.019600132 | E36: =INDEX(Data!$E$14:$E$30,MATCH(E$33,Data!$C$14:$C$30,0))/INDEX(Data!$E$14:$E$30,MATCH(E$33-1,Data!$C$14:$C$30,0)) -> 1.010776609 | F36: =INDEX(Data!$E$14:$E$30,MATCH(F$33,Data!$C$14:$C$30,0))/INDEX(Data!$E$14:$E$30,MATCH(F$33-1,Data!$C$14:$C$30,0)) -> 1.021427498 | G36: =INDEX(Data!$E$14:$E$30,MATCH(G$33,Data!$C$14:$C$30,0))/INDEX(Data!$E$14:$E$30,MATCH(G$33-1,Data!$C$14:$C$30,0)) -> 1.037419998 | H36: =INDEX(Data!$E$14:$E$30,MATCH(H$33,Data!$C$14:$C$30,0))/INDEX(Data!$E$14:$E$30,MATCH(H$33-1,Data!$C$14:$C$30,0)) -> 1.030555677 | I36: =INDEX(Data!$E$14:$E$30,MATCH(I$33,Data!$C$14:$C$30,0))/INDEX(Data!$E$14:$E$30,MATCH(I$33-1,Data!$C$14:$C$30,0)) -> 1.02588702 | J36: =INDEX(Data!$E$14:$E$30,MATCH(J$33,Data!$C$14:$C$30,0))/INDEX(Data!$E$14:$E$30,MATCH(J$33-1,Data!$C$14:$C$30,0)) -> 1.012128323
B37: HMT Forecasts for UK Economy - M3 New Forecasts RPI
C38: Calendar Year | D38: 2017 | E38: =D38+1 -> 2018 | F38: 2019 | G38: 2020 | H38: 2021 | I38: 2022 | J38: 2023 | K38: Source
B39: M3 New Forecasts RPI | H39: 0.025 | I39: 0.031 | J39: 0.03 | K39: November 2020 Publication
B41: Forecast growth rate
C42: Reporting Year | D42: 2017 | E42: =D42+1 -> 2018 | F42: 2019 | G42: 2020 | H42: 2021 | I42: 2022 | J42: 2023
B43: Future inflation assumption | I43: =(H39*0.75)+(I39*0.25) -> 0.0265 | J43: =(I39*0.75)+(J39*0.25) -> 0.03075
B45: ="Selected Capitalisation rates for "&'RFPR cover'!C5 -> Selected Capitalisation rates for Cadent-EOE
C47: RIIO1
B48: =INDEX($G$54:$G$57,MATCH(LEFT('RFPR cover'!$C$6,2),Data!$E$54:$E$57,0),0) -> Totex excluding repex | C48: =INDEX($F$73:$F$100,MATCH('RFPR cover'!$C$5,Data!$B$73:$B$100,0),0) -> 0.2663450186
C50: 2014 | D50: =C50+1 -> 2015 | E50: 2016 | F50: 2017 | G50: 2018 | H50: 2019 | I50: 2020 | J50: 2021
B51: =INDEX($J$54:$J$57,MATCH(LEFT('RFPR cover'!$C$6,2),Data!$E$54:$E$57,0),0) -> Repex | C51: =IFERROR(INDEX(C$106:C$115,MATCH('RFPR cover'!$C$5,Data!$B$106:$B$115,0),0),0) -> 0.5 | D51: =IFERROR(INDEX(D$106:D$115,MATCH('RFPR cover'!$C$5,Data!$B$106:$B$115,0),0),0) -> 0.5714285714 | E51: =IFERROR(INDEX(E$106:E$115,MATCH('RFPR cover'!$C$5,Data!$B$106:$B$115,0),0),0) -> 0.6428571429 | F51: =IFERROR(INDEX(F$106:F$115,MATCH('RFPR cover'!$C$5,Data!$B$106:$B$115,0),0),0) -> 0.7142857143 | G51: =IFERROR(INDEX(G$106:G$115,MATCH('RFPR cover'!$C$5,Data!$B$106:$B$115,0),0),0) -> 0.7857142857 | H51: =IFERROR(INDEX(H$106:H$115,MATCH('RFPR cover'!$C$5,Data!$B$106:$B$115,0),0),0) -> 0.8571428571 | I51: =IFERROR(INDEX(I$106:I$115,MATCH('RFPR cover'!$C$5,Data!$B$106:$B$115,0),0),0) -> 0.9285714286 | J51: =IFERROR(INDEX(J$106:J$115,MATCH('RFPR cover'!$C$5,Data!$B$106:$B$115,0),0),0) -> 1
E54: ED | F54: £m 12/13 | G54: Totex | J54: n/a
E55: ET | F55: £m 09/10 | G55: Totex | J55: n/a
E56: GD | F56: £m 09/10 | G56: Totex excluding repex | J56: Repex
E57: GT | F57: £m 09/10 | G57: Totex (non-'uncertainty rate') | J57: Uncertainty rate
B61: Allowed cost of debt %
C62: 2014 | D62: =C62+1 -> 2015 | E62: 2016 | F62: 2017 | G62: 2018 | H62: 2019 | I62: 2020 | J62: 2021 | K62: 2022 | L62: 2023
B63: WPD | E63: 0.0255 | F63: 0.0238 | G63: 0.0222 | H63: 0.0191 | I63: 0.0158 | J63: 0.0109 | K63: 0.0076 | L63: 0.0044
B64: ED - excluding WPD | E64: 0.0255 | F64: 0.0242 | G64: 0.0229 | H64: 0.0209 | I64: 0.0194 | J64: 0.0178 | K64: 0.0162 | L64: 0.0147
B65: SHET | C65: 0.0292 | D65: 0.025 | E65: 0.0215 | F65: 0.0179 | G65: 0.0151 | H65: 0.0116 | I65: 0.0102 | J65: 0.0076
B66: ET - excluding SHET | C66: 0.0292 | D66: 0.0272 | E66: 0.0255 | F66: 0.0238 | G66: 0.0222 | H66: 0.0191 | I66: 0.0158 | J66: 0.0109
B67: GD | C67: 0.0292 | D67: 0.0272 | E67: 0.0255 | F67: 0.0238 | G67: 0.0222 | H67: 0.0191 | I67: 0.0158 | J67: 0.0109
B68: GT | C68: 0.0292 | D68: 0.0272 | E68: 0.0255 | F68: 0.0238 | G68: 0.0222 | H68: 0.0191 | I68: 0.0158 | J68: 0.0109
C71: Allowed Cost of Equity | D71: TIM Incentive Strength | E71: Gearing | F71: Main Cap. Rate | G71: RIIO1 start date | H71: Price Basis | I71: Fast Tracked | J71: IQI pre or post tax | K71: Allowed cost of debt
A72: Sector | B72: Default | K72: 2014 | L72: =K72+1 -> 2015 | M72: 2016 | N72: 2017 | O72: 2018 | P72: 2019 | Q72: 2020 | R72: 2021 | S72: 2022 | T72: 2023
A73: ED | B73: ENWL | C73: 0.06 | D73: 0.5811 | E73: 0.65 | F73: 0.68 | G73: 2016 | H73: =VLOOKUP($A73,$E$54:$F$57,2,FALSE) -> £m 12/13 | I73: No | J73: Post | M73: =E$64 -> 0.0255 | N73: 0.0242 | O73: 0.0229 | P73: 0.0209 | Q73: 0.0194 | R73: 0.0178 | S73: 0.0162 | T73: 0.0147
A74: ED | B74: NPgN | C74: 0.06 | D74: 0.5584370346 | E74: 0.65 | F74: 0.7 | G74: 2016 | H74: £m 12/13 | I74: No | J74: Post | M74: 0.0255 | N74: 0.0242 | O74: 0.0229 | P74: 0.0209 | Q74: 0.0194 | R74: 0.0178 | S74: 0.0162 | T74: 0.0147
A75: ED | B75: NPgY | C75: 0.06 | D75: 0.5584370346 | E75: 0.65 | F75: 0.72 | G75: 2016 | H75: £m 12/13 | I75: No | J75: Post | M75: 0.0255 | N75: 0.0242 | O75: 0.0229 | P75: 0.0209 | Q75: 0.0194 | R75: 0.0178 | S75: 0.0162 | T75: 0.0147
A76: ED | B76: UKPN-EPN | C76: 0.06 | D76: 0.5328 | E76: 0.65 | F76: 0.68 | G76: 2016 | H76: £m 12/13 | I76: No | J76: Post | M76: 0.0255 | N76: 0.0242 | O76: 0.0229 | P76: 0.0209 | Q76: 0.0194 | R76: 0.0178 | S76: 0.0162 | T76: 0.0147
A77: ED | B77: UKPN-LPN | C77: 0.06 | D77: 0.5328 | E77: 0.65 | F77: 0.68 | G77: 2016 | H77: £m 12/13 | I77: No | J77: Post | M77: 0.0255 | N77: 0.0242 | O77: 0.0229 | P77: 0.0209 | Q77: 0.0194 | R77: 0.0178 | S77: 0.0162 | T77: 0.0147
A78: ED | B78: UKPN-SPN | C78: 0.06 | D78: 0.5328 | E78: 0.65 | F78: 0.68 | G78: 2016 | H78: £m 12/13 | I78: No | J78: Post | M78: 0.0255 | N78: 0.0242 | O78: 0.0229 | P78: 0.0209 | Q78: 0.0194 | R78: 0.0178 | S78: 0.0162 | T78: 0.0147
A79: ED | B79: SPD | C79: 0.06 | D79: 0.535 | E79: 0.65 | F79: 0.8 | G79: 2016 | H79: £m 12/13 | I79: No | J79: Post | M79: 0.0255 | N79: 0.0242 | O79: 0.0229 | P79: 0.0209 | Q79: 0.0194 | R79: 0.0178 | S79: 0.0162 | T79: 0.0147
A80: ED | B80: SPMW | C80: 0.06 | D80: 0.535 | E80: 0.65 | F80: 0.8 | G80: 2016 | H80: £m 12/13 | I80: No | J80: Post | M80: 0.0255 | N80: 0.0242 | O80: 0.0229 | P80: 0.0209 | Q80: 0.0194 | R80: 0.0178 | S80: 0.0162 | T80: 0.0147
A81: ED | B81: SSEH | C81: 0.06 | D81: 0.5647 | E81: 0.65 | F81: 0.62 | G81: 2016 | H81: £m 12/13 | I81: No | J81: Post | M81: 0.0255 | N81: 0.0242 | O81: 0.0229 | P81: 0.0209 | Q81: 0.0194 | R81: 0.0178 | S81: 0.0162 | T81: 0.0147
A82: ED | B82: SSES | C82: 0.06 | D82: 0.5647 | E82: 0.65 | F82: 0.7 | G82: 2016 | H82: £m 12/13 | I82: No | J82: Post | M82: 0.0255 | N82: 0.0242 | O82: 0.0229 | P82: 0.0209 | Q82: 0.0194 | R82: 0.0178 | S82: 0.0162 | T82: 0.0147
A83: ED | B83: WPD-EMID | C83: 0.064 | D83: 0.7 | E83: 0.65 | F83: 0.8 | G83: 2016 | H83: £m 12/13 | I83: Yes | J83: Pre | M83: =E$63 -> 0.0255 | N83: 0.0238 | O83: 0.0222 | P83: 0.0191 | Q83: 0.0158 | R83: 0.0109 | S83: 0.0076 | T83: 0.0044
A84: ED | B84: WPD-WMID | C84: 0.064 | D84: 0.7 | E84: 0.65 | F84: 0.8 | G84: 2016 | H84: £m 12/13 | I84: Yes | J84: Pre | M84: 0.0255 | N84: 0.0238 | O84: 0.0222 | P84: 0.0191 | Q84: 0.0158 | R84: 0.0109 | S84: 0.0076 | T84: 0.0044
A85: ED | B85: WPD-SWALES | C85: 0.064 | D85: 0.7 | E85: 0.65 | F85: 0.8 | G85: 2016 | H85: £m 12/13 | I85: Yes | J85: Pre | M85: 0.0255 | N85: 0.0238 | O85: 0.0222 | P85: 0.0191 | Q85: 0.0158 | R85: 0.0109 | S85: 0.0076 | T85: 0.0044
A86: ED | B86: WPD-SWEST | C86: 0.064 | D86: 0.7 | E86: 0.65 | F86: 0.8 | G86: 2016 | H86: £m 12/13 | I86: Yes | J86: Pre | M86: 0.0255 | N86: 0.0238 | O86: 0.0222 | P86: 0.0191 | Q86: 0.0158 | R86: 0.0109 | S86: 0.0076 | T86: 0.0044
A87: GD | B87: Cadent-EOE | C87: 0.067 | D87: 0.6304 | E87: 0.65 | F87: 0.2663450186 | G87: 2014 | H87: £m 09/10 | I87: No | J87: Pre | K87: =C$67 -> 0.0292 | L87: 0.0272 | M87: 0.0255 | N87: 0.0238 | O87: 0.0222 | P87: 0.0191 | Q87: 0.0158 | R87: 0.0109
A88: GD | B88: Cadent-London | C88: 0.067 | D88: 0.6304 | E88: 0.65 | F88: 0.2346933783 | G88: 2014 | H88: £m 09/10 | I88: No | J88: Pre | K88: 0.0292 | L88: 0.0272 | M88: 0.0255 | N88: 0.0238 | O88: 0.0222 | P88: 0.0191 | Q88: 0.0158 | R88: 0.0109
A89: GD | B89: Cadent-WM | C89: 0.067 | D89: 0.6304 | E89: 0.65 | F89: 0.2494622386 | G89: 2014 | H89: £m 09/10 | I89: No | J89: Pre | K89: 0.0292 | L89: 0.0272 | M89: 0.0255 | N89: 0.0238 | O89: 0.0222 | P89: 0.0191 | Q89: 0.0158 | R89: 0.0109
A90: GD | B90: Cadent-NW | C90: 0.067 | D90: 0.6304 | E90: 0.65 | F90: 0.2609535249 | G90: 2014 | H90: £m 09/10 | I90: No | J90: Pre | K90: 0.0292 | L90: 0.0272 | M90: 0.0255 | N90: 0.0238 | O90: 0.0222 | P90: 0.0191 | Q90: 0.0158 | R90: 0.0109
A91: GD | B91: NGN | C91: 0.067 | D91: 0.6398 | E91: 0.65 | F91: 0.3498441138 | G91: 2014 | H91: £m 09/10 | I91: No | J91: Pre | K91: 0.0292 | L91: 0.0272 | M91: 0.0255 | N91: 0.0238 | O91: 0.0222 | P91: 0.0191 | Q91: 0.0158 | R91: 0.0109
A92: GD | B92: SGN - Scotland | C92: 0.067 | D92: 0.6373 | E92: 0.65 | F92: 0.3512904966 | G92: 2014 | H92: £m 09/10 | I92: No | J92: Pre | K92: 0.0292 | L92: 0.0272 | M92: 0.0255 | N92: 0.0238 | O92: 0.0222 | P92: 0.0191 | Q92: 0.0158 | R92: 0.0109
A93: GD | B93: SGN - Southern | C93: 0.067 | D93: 0.6373 | E93: 0.65 | F93: 0.322308559 | G93: 2014 | H93: £m 09/10 | I93: No | J93: Pre | K93: 0.0292 | L93: 0.0272 | M93: 0.0255 | N93: 0.0238 | O93: 0.0222 | P93: 0.0191 | Q93: 0.0158 | R93: 0.0109
A94: GD | B94: WWU | C94: 0.067 | D94: 0.6317 | E94: 0.65 | F94: 0.3578190447 | G94: 2014 | H94: £m 09/10 | I94: No | J94: Pre | K94: 0.0292 | L94: 0.0272 | M94: 0.0255 | N94: 0.0238 | O94: 0.0222 | P94: 0.0191 | Q94: 0.0158 | R94: 0.0109
A95: GT | B95: NGGT (TO) | C95: 0.068 | D95: 0.4436 | E95: 0.625 | F95: 0.644 | G95: 2014 | H95: £m 09/10 | I95: No | J95: Pre | K95: =C$68 -> 0.0292 | L95: 0.0272 | M95: 0.0255 | N95: 0.0238 | O95: 0.0222 | P95: 0.0191 | Q95: 0.0158 | R95: 0.0109
A96: GT | B96: NGGT (SO) | C96: 0.068 | D96: 0.4436 | E96: 0.625 | F96: 0.374 | G96: 2014 | H96: £m 09/10 | I96: No | J96: Pre | K96: 0.0292 | L96: 0.0272 | M96: 0.0255 | N96: 0.0238 | O96: 0.0222 | P96: 0.0191 | Q96: 0.0158 | R96: 0.0109
A97: ET | B97: NGET (TO) | C97: 0.07 | D97: 0.4689 | E97: 0.6 | F97: 0.85 | G97: 2014 | H97: £m 09/10 | I97: No | J97: Pre | K97: =C$66 -> 0.0292 | L97: 0.0272 | M97: 0.0255 | N97: 0.0238 | O97: 0.0222 | P97: 0.0191 | Q97: 0.0158 | R97: 0.0109
A98: ET | B98: NGESO | C98: 0.07 | D98: 0.4689 | E98: 0.6 | F98: 0.279 | G98: 2014 | H98: =VLOOKUP($A98,$E$54:$F$57,2,FALSE) -> £m 09/10 | I98: No | J98: Pre | K98: 0.0292 | L98: 0.0272 | M98: 0.0255 | N98: 0.0238 | O98: 0.0222 | P98: 0.0191 | Q98: 0.0158 | R98: 0.0109
A99: ET | B99: SPT | C99: 0.07 | D99: 0.5 | E99: 0.55 | F99: 0.9 | G99: 2014 | H99: =VLOOKUP($A99,$E$54:$F$57,2,FALSE) -> £m 09/10 | I99: Yes | J99: Pre | K99: 0.0292 | L99: 0.0272 | M99: 0.0255 | N99: 0.0238 | O99: 0.0222 | P99: 0.0191 | Q99: 0.0158 | R99: 0.0109
A100: ET | B100: SHET | C100: 0.07 | D100: 0.5 | E100: 0.55 | F100: 0.9 | G100: 2014 | H100: =VLOOKUP($A100,$E$54:$F$57,2,FALSE) -> £m 09/10 | I100: Yes | J100: Pre | K100: =C$65 -> 0.0292 | L100: 0.025 | M100: 0.0215 | N100: 0.0179 | O100: 0.0151 | P100: 0.0116 | Q100: 0.0102 | R100: 0.0076
B104: GD: Capitalised share of repex / GT: Uncertainty Rate
C105: 2014 | D105: =C105+1 -> 2015 | E105: =D105+1 -> 2016 | F105: =E105+1 -> 2017 | G105: 2018 | H105: 2019 | I105: 2020 | J105: 2021
B106: Cadent-EOE | C106: 0.5 | D106: 0.5714285714 | E106: 0.6428571429 | F106: 0.7142857143 | G106: 0.7857142857 | H106: 0.8571428571 | I106: 0.9285714286 | J106: 1
B107: Cadent-London | C107: 0.5 | D107: 0.5714285714 | E107: 0.6428571429 | F107: 0.7142857143 | G107: 0.7857142857 | H107: 0.8571428571 | I107: 0.9285714286 | J107: 1
B108: Cadent-WM | C108: 0.5 | D108: 0.5714285714 | E108: 0.6428571429 | F108: 0.7142857143 | G108: 0.7857142857 | H108: 0.8571428571 | I108: 0.9285714286 | J108: 1
B109: Cadent-NW | C109: 0.5 | D109: 0.5714285714 | E109: 0.6428571429 | F109: 0.7142857143 | G109: 0.7857142857 | H109: 0.8571428571 | I109: 0.9285714286 | J109: 1
B110: NGN | C110: 0.5 | D110: 0.5714285714 | E110: 0.6428571429 | F110: 0.7142857143 | G110: 0.7857142857 | H110: 0.8571428571 | I110: 0.9285714286 | J110: 1
B111: SGN - Scotland | C111: 0.5 | D111: 0.5714285714 | E111: 0.6428571429 | F111: 0.7142857143 | G111: 0.7857142857 | H111: 0.8571428571 | I111: 0.9285714286 | J111: 1
B112: SGN - Southern | C112: 0.5 | D112: 0.5714285714 | E112: 0.6428571429 | F112: 0.7142857143 | G112: 0.7857142857 | H112: 0.8571428571 | I112: 0.9285714286 | J112: 1
B113: WWU | C113: 0.5 | D113: 0.5714285714 | E113: 0.6428571429 | F113: 0.7142857143 | G113: 0.7857142857 | H113: 0.8571428571 | I113: 0.9285714286 | J113: 1
B114: NGGT (TO) | C114: 0.9 | D114: 0.9 | E114: 0.9 | F114: 0.9 | G114: 0.9 | H114: 0.9 | I114: 0.9 | J114: 0.9
B115: NGGT (SO)
B118: IQI Additional Income | C118: 2014 | D118: =C118+1 -> 2015 | E118: 2016 | F118: 2017 | G118: 2018 | H118: 2019 | I118: 2020 | J118: 2021 | K118: 2022 | L118: 2023
B119: ENWL | E119: 1.557563216 | F119: 1.473414124 | G119: 1.46895889 | H119: 1.470720053 | I119: 1.467471626 | J119: 1.448620622 | K119: 1.495679833 | L119: 1.439714872
B120: NPgN | E120: -0.658717818 | F120: -0.6354377258 | G120: -0.5890786287 | H120: -0.5817818819 | I120: -0.5682391887 | J120: -0.5193317033 | K120: -0.4796266585 | L120: -0.4656874701
B121: NPgY | E121: -0.8662603628 | F121: -0.8101977378 | G121: -0.7891908424 | H121: -0.7906187307 | I121: -0.7443265341 | J121: -0.7069727482 | K121: -0.6535094616 | L121: -0.6642975889
B122: UKPN-EPN | E122: -3.261213418 | F122: -3.346255445 | G122: -3.173291977 | H122: -3.123240475 | I122: -3.076755131 | J122: -2.934217718 | K122: -2.882593848 | L122: -2.7237011
B123: UKPN-LPN | E123: -2.426097237 | F123: -2.369038366 | G123: -2.24332766 | H123: -2.146602062 | I123: -2.174009679 | J123: -2.053892784 | K123: -1.904458123 | L123: -1.800861113
B124: UKPN-SPN | E124: -2.186101241 | F124: -2.382044743 | G124: -2.241867237 | H124: -2.114781265 | I124: -2.014617709 | J124: -1.942131326 | K124: -1.924885643 | L124: -1.84644513
B125: SPD | E125: -1.863353254 | F125: -1.818298041 | G125: -1.839467563 | H125: -1.741597343 | I125: -1.679800211 | J125: -1.597445636 | K125: -1.501639612 | L125: -1.445363888
B126: SPMW | E126: -2.131714527 | F126: -2.193973633 | G126: -1.986901022 | H126: -1.803755278 | I126: -1.77679425 | J126: -1.790147258 | K126: -1.644411369 | L126: -1.467384504
B127: SSEH | E127: 0.1659972181 | F127: 0.1663190061 | G127: 0.165543379 | H127: 0.1656974114 | I127: 0.1662263076 | J127: 0.1638030241 | K127: 0.1659334462 | L127: 0.1603668882
B128: SSES | E128: 0.3648271976 | F128: 0.3710908384 | G128: 0.3607185911 | H128: 0.3592781484 | I128: 0.3227419488 | J128: 0.3213907553 | K128: 0.3287617841 | L128: 0.3192043079
B129: WPD-EMID | E129: 7.128119675 | F129: 6.96741384 | G129: 6.203402589 | H129: 6.308597892 | I129: 6.23766484 | J129: 6.486581994 | K129: 6.815251662 | L129: 6.62710562
B130: WPD-WMID | E130: 6.507901473 | F130: 6.516616741 | G130: 6.32924565 | H130: 6.440739741 | I130: 6.636733199 | J130: 6.756816376 | K130: 6.696123445 | L130: 6.764742755
B131: WPD-SWALES | E131: 3.676313847 | F131: 3.674835087 | G131: 3.499852964 | H131: 3.724685547 | I131: 3.412173949 | J131: 3.420224103 | K131: 3.305354944 | L131: 3.363328564
B132: WPD-SWEST | E132: 5.376270196 | F132: 5.377596976 | G132: 5.26181028 | H132: 5.360849181 | I132: 5.266523823 | J132: 5.327117903 | K132: 5.322329401 | L132: 5.569988075
B133: Cadent-EOE | C133: 1.437155607 | D133: 1.371801563 | E133: 1.350766011 | F133: 1.356812199 | G133: 1.359813639 | H133: 1.350147507 | I133: 1.329843331 | J133: 1.317454096
B134: Cadent-London | C134: 1.222451077 | D134: 1.219815743 | E134: 1.294216483 | F134: 1.259639627 | G134: 1.284011218 | H134: 1.267851186 | I134: 1.259201906 | J134: 1.257376659
B135: Cadent-WM | C135: 0.8232500229 | D135: 0.8266357128 | E135: 0.796405046 | F135: 0.7875702145 | G135: 0.8113325286 | H135: 0.8106422878 | I135: 0.8090036895 | J135: 0.7804327697
B136: Cadent-NW | C136: 1.089395985 | D136: 1.027913195 | E136: 1.006698714 | F136: 1.01923509 | G136: 1.034148078 | H136: 1.020424079 | I136: 1.013773955 | J136: 0.9898055017
B137: NGN | C137: 3.067525014 | D137: 3.162921942 | E137: 3.215660422 | F137: 3.177353462 | G137: 2.992526777 | H137: 2.995397899 | I137: 3.008780646 | J137: 3.003553035
B138: SGN - Scotland | C138: 2.124089736 | D138: 2.035072334 | E138: 1.968699807 | F138: 2.085845677 | G138: 2.11503932 | H138: 2.096040782 | I138: 1.970964889 | J138: 1.955823727
B139: SGN - Southern | C139: 4.372401175 | D139: 4.105764166 | E139: 4.054566993 | F139: 4.174092746 | G139: 4.239710198 | H139: 4.246147721 | I139: 4.107852308 | J139: 4.057594497
B140: WWU | C140: 1.398277667 | D140: 1.386464987 | E140: 1.367304053 | F140: 1.349345378 | G140: 1.334777786 | H140: 1.335488711 | I140: 1.359779966 | J140: 1.351524007
B141: NGGT (TO) | C141: -1.129571821 | D141: -1.144400731 | E141: -1.176381736 | F141: -1.592755746 | G141: -1.85656676 | H141: -1.272041674 | I141: -1.103973995 | J141: -1.018311327
B142: NGGT (SO) | C142: -0.4318115499 | D142: -0.39947196 | E142: -0.3473431704 | F142: -0.3193206525 | G142: -0.3126562688 | H142: -0.3079937995 | I142: -0.3257092292 | J142: -0.3155202622
B143: NGET (TO) | C143: 15.16824629 | D143: 16.27511001 | E143: 15.6147029 | F143: 14.91167436 | G143: 13.03341576 | H143: 12.55606777 | I143: 11.28510091 | J143: 9.826817942
B144: NGET (SO) | C144: 0.9321939458 | D144: 0.899697931 | E144: 0.8778326769 | F144: 0.8723210932 | G144: 0.8987595857 | H144: 0.8280171022 | I144: 0.8841765856 | J144: 0.8998241565
B145: SPT | C145: 10.95275109 | D145: 1.34126836 | E145: 22.19017941 | F145: 7.048848325 | G145: 6.902069569 | H145: 6.942523809 | I145: 7.078506978 | J145: 5.26885245
B146: SHET | C146: 4.785055606 | D146: 4.973659719 | E146: 5.69886625 | F146: 3.792107731 | G146: 2.85125638 | H146: 2.879976525 | I146: 2.907470351 | J146: 2.819107438
B149: =LEFT('RFPR cover'!C6,2) -> GD
B150: Output incentives for each sector used to populate R5
B152: Input for R5 - Output Incentives | E152: =OR((LEFT('RFPR cover'!$C$6,2)=Data!F152),'RFPR cover'!$C$5=Data!F152) -> FALSE | F152: =B162 -> ED
B153: =CHOOSE(MATCH(TRUE,$E$152:$E$159,0),B163,B173,B183,E183,B193,E193,B203,E203)&"" -> Broad Measure of Customer Satisfaction | E153: =OR((LEFT('RFPR cover'!$C$6,2)=Data!F153),'RFPR cover'!$C$5=Data!F153) -> TRUE | F153: =B172 -> GD
B154: =CHOOSE(MATCH(TRUE,$E$152:$E$159,0),B164,B174,B184,E184,B194,E194,B204,E204)&"" -> Shrinkage Allowance Revenue Adjustment | E154: =OR((LEFT('RFPR cover'!$C$6,2)=Data!F154),'RFPR cover'!$C$5=Data!F154) -> FALSE | F154: =B182 -> NGGT (TO)
B155: Environment Emissions Incentive | E155: =OR((LEFT('RFPR cover'!$C$6,2)=Data!F155),'RFPR cover'!$C$5=Data!F155) -> FALSE | F155: =E182 -> NGGT (SO)
B156: Discretionary Reward Scheme | E156: =OR((LEFT('RFPR cover'!$C$6,2)=Data!F156),'RFPR cover'!$C$5=Data!F156) -> FALSE | F156: =B192 -> NGET (TO)
B157: NTS Exit Capacity | E157: =OR((LEFT('RFPR cover'!$C$6,2)=Data!F157),'RFPR cover'!$C$5=Data!F157) -> FALSE | F157: =E192 -> NGESO
E158: =OR((LEFT('RFPR cover'!$C$6,2)=Data!F158),'RFPR cover'!$C$5=Data!F158) -> FALSE | F158: =B202 -> SPT
E159: =OR((LEFT('RFPR cover'!$C$6,2)=Data!F159),'RFPR cover'!$C$5=Data!F159) -> FALSE | F159: =E202 -> SHET
B162: ED
B163: Broad measure of customer service
B164: Interruptions-related quality of service
B165: Incentive on connections engagement
B166: Time to Connect Incentive
B167: Losses discretionary reward scheme
B172: GD
B173: Broad Measure of Customer Satisfaction
B174: Shrinkage Allowance Revenue Adjustment
B175: Environment Emissions Incentive
B176: Discretionary Reward Scheme
B177: NTS Exit Capacity
B182: =B95 -> NGGT (TO) | E182: =B96 -> NGGT (SO)
B183: Stakeholder Satisfaction Output | E183: Constraint management | F183: Constraint management | G183: Constraint management | H183: Constraint management | I183: Constraint management
B184: Permits revenue adjustment | E184: Transportation Support Services | F184: Transportation Support Services | G184: Transportation Support Services | H184: Transportation Support Services | I184: Transportation Support Services
E185: Shrinkage incentive | F185: Shrinkage incentive | G185: Shrinkage incentive | H185: Shrinkage incentive | I185: Shrinkage incentive
E186: Residual balancing | F186: Residual balancing | G186: Residual balancing | H186: Residual balancing | I186: Residual balancing
E187: Quality of demand forecasting | F187: Quality of demand forecasting | G187: Quality of demand forecasting | H187: Quality of demand forecasting | I187: Quality of demand forecasting
E188: Greenhouse gas incentive | F188: Greenhouse gas incentive | G188: Greenhouse gas incentive | H188: Greenhouse gas incentive | I188: Greenhouse gas incentive
E189: Maintenance incentive | F189: Maintenance incentive | G189: Maintenance incentive | H189: Maintenance incentive | I189: Maintenance incentive
B192: =B97 -> NGET (TO) | E192: =B98 -> NGESO
B193: Network Reliability Incentive | E193: Electricity Market Reform incentive revenue | F193: Electricity Market Reform incentive revenue | G193: Electricity Market Reform incentive revenue | H193: Electricity Market Reform incentive revenue | I193: Electricity Market Reform incentive revenue
B194: Stakeholder Satisfaction Output | E194: Balancing Services Incentive Scheme / ESO Incentive Scheme 18/19 | F194: Balancing Services Incentive Scheme / ESO Incentive Scheme 18/19 | G194: Balancing Services Incentive Scheme / ESO Incentive Scheme 18/19 | H194: Balancing Services Incentive Scheme / ESO Incentive Scheme 18/19 | I194: Balancing Services Incentive Scheme / ESO Incentive Scheme 18/19
B195: SF6 Emissions | E195: Renewable wind forecasting incentive | F195: Renewable wind forecasting incentive | G195: Renewable wind forecasting incentive | H195: Renewable wind forecasting incentive | I195: Renewable wind forecasting incentive
B196: Environmental Discretionary Reward | E196: ESO Reporting and Incentive (ESORI)
B202: =B145 -> SPT | E202: =B100 -> SHET
B203: Network Reliability Incentive | E203: Network Reliability Incentive
B204: Stakeholder Satisfaction Output | E204: Stakeholder Satisfaction Output
B205: SF6 Emissions | E205: SF6 Emissions
B206: Environmental Discretionary Reward | E206: Environmental Discretionary Reward
B207: Performance re offers of timely connection | E207: Performance re offers of timely connection
B212: All incentive performance recognised in t+2 allowed revenue - except TTC (t+3) and LDR (t+1) in ED
B214: Time to Connect Incentive revenue adjustment | C214: t+3
B215: Losses discretionary reward scheme revenue adjustment | C215: t+1
B218: Bond or loan types
B219: Fixed rate
B220: Floating
B221: Inflation-linked
B224: Reference rate
B225: Not applicable
B226: LIBOR 3 month
B227: LIBOR 6 month
B228: EURIBOR 3 month
B229: BOE base rate
B230: RPI 12 month
B231: CPI 12 month
B235: Currency
B236: GBP
B237: EUR
B238: USD
B239: HKD
B240: CAD
B243: Rank
B244: Senior
B245: Junior
B248: Hedged
B249: Yes - fully hedged
B250: Yes - partially hedged
B251: No
B253: Special features
B254: Callable
B255: Puttable
B259: Counterparty
B260: EIB
... 4 more rows

Sheet Content & Version Control
A1: Version control
A2: ='RFPR cover'!C5 -> Cadent-EOE
A3: ='RFPR cover'!C7 -> 2021
B6: Version:
B8: Submission | C8: Date submitted | D8: Changes
B9: Submission 1
B10: Submission 2
B11: Submission 3
B12: Submission 4
B13: Submission 5
B14: Submission 6
B15: Submission 7
B16: Submission 8
B17: Submission 9
B18: Submission 10
B21: R1 - RoRE
B22: R2 - Revenue
B23: R3 - Rec to totex
B24: R4 - Totex
B25: R5 - Output Incentives
B26: R6 - Innovation
B27: R7 - Financing
B28: R7a - Financing input
B29: R8 - Net Debt
B30: R8a - Net Debt input
B31: R9 - RAV
B32: R10 - Tax
B33: R11 - Dividends
B34: R12 - Pensions
B35: R13 - Other Activities

Sheet Change log
A1: Change log
A2: ='RFPR cover'!C5 -> Cadent-EOE
A3: ='RFPR cover'!C7 -> 2021
A5: Version | B5: Table Reference | C5: Changes made to RFPR template
A6: 1.1 | B6: R8 | C6: Row 26 added to pick up unamortised issues costs row in table R8a.
A7: 1.1 | B7: R8 | C7: Row 42 updated to include new row 26 (unamortised issue costs) in the subtotal
A8: 1.1 | B8: R1 | C8: Amended formating to percentages (Column M:N, rows 10-23 and rows 29-42)
A9: 1.1 | B9: R7 | C9: B29 to add "Net Interest" into the title to make it clear that this should include regulatory definition of net interest associated with new/refinanced debt raised in future years
A10: 1.1 | B10: R7 | C10: Row 47 added to allow input of issuance expenses forecast for new/refinanced debt in future years
A11: 1.1 | B11: R8a | C11: Additional row added for restricted cash balances in table R8a in row 18, guidance updated.
A12: 1.1 | B12: R7 | C12: D37 - formula amended to read =('R8 - Net Debt'!D54-AVERAGE('R8 - Net Debt'!D8,('R8 - Net Debt'!E10-'R8a - Net Debt input'!T18)))*(Data!C36-1)
A13: 1.1 | B13: R7 | C13: E37 - formula amended to read =('R8 - Net Debt'!E54-AVERAGE(('R8 - Net Debt'!E8-'R8a - Net Debt input'!T18),('R8 - Net Debt'!E10-'R8a - Net Debt input'!U18)))*(Data!D36-1) Formula copied across to F37:K37
A14: 1.1 | B14: R10 | C14: Amended formula in D50 to read =D85-D87, and dragged formula across to E5:K5
A15: 1.1 | B15: R1 | C15: Amended formula in B3 to correct spelling of system, originally spelt 'syestem'
A16: 1.1 | B16: R9 | C16: Formula in row 32 changed from =IF(D5="Actuals",IF(D31>=0,(D29-SUM($D$31:D31))-D11<'RFPR cover'!$F$14,(D29-SUM($D$31:D31))-D11<'RFPR cover'!$F$14), "NA") to =IF(D5="Actuals",IF(ABS((D29-SUM($D$31:D31))-D11)<'RFPR cover'!$F$14,"TRUE","FALSE"),"NA")
A17: 1.1 | B17: R8a | C17: Removed content in F12 ("Income statement debits and cash out flows (entered as +ve values, credits as -ve values")
A18: 1.1 | B18: R8a | C18: Changed "Restricted cash balances (entered as +ve values, credits as -ve values)" in F18 to "Restricted cash balances (-ive)"
A19: 1.1 | B19: Data | C19: J63:J68 updated to be consistent with Nov 2019 PCFM
A20: 1.1 | B20: Data | C20: Populated the incentives for NGGT SO and NGET SO in the Data tab, based on the incentives in the 2019 RFPR template for both entities.
A21: 1.1 | B21: R7a | C21: Removed data validation between rows 498:509
A22: 1.1 | B22: R10 | C22: Added in "Tax arising from MOD values" in "Other adjustments" in R10
A23: 1.1 | B23: R10 | C23: Changed the formulas in row 6 from =IF(H6<=('RFPR cover'!$C$7),"Actuals","Forecast") to =IF(H6<=('RFPR cover'!$C$7-1),"Actuals","Forecast")
A24: 1.1 | B24: R9 | C24: Changed the formulas in row 5 from =IF(D6<='RFPR cover'!$C$7,"Actuals","Forecast") to =IF(D6<='RFPR cover'!$C$7-1,"Actuals","Forecast").
A25: 1.1 | B25: Data | C25: Changed the tax rate from G25:G30 to be in line with the 2020 Budget, where Government announced the corporate tax rate would be 19% for the years beginning April 2020 and 2021.
A26: 1.1 | B26: R10 | C26: Blocked out G36 as this will be actual information, not forecast.
A27: 1.1 | B27: Data | C27: Updated the cost of debt figures for 2022 and 2023 to match latest PCFM
A28: 1.1 | B28: Data | C28: Updated the cost of debt figures for 2022 and 2023 to match latest PCFM, M3 New Forecasts RPI for 2021, 2022 and 2023 and Financial Year Average RPI and Year end RPI in cells E24 and F24
A29: 2 | B29: Data | C29: Updated RPI Index for 2020 and 2021, M3 New Forecasts RPI for 2021, 2022 and 2023
A30: 2 | B30: Data | C30: Updated the cost of debt figures for 2021, 2022 and 2023
A31: 2 | B31: Data | C31: Row 196 - NGESO incentive added
A32: 2 | B32: R7 - Financing | C32: Cell D37 - formula has been corrected.
A33: 2 | B33: RFPR Cover | C33: Changed NGET(SO) to NGESO in the Drop down list
A34: 2.1 | B34: R10 - Tax | C34: Formula in cell E37 has been corrected
A35: 2.1 | B35: R7 - Financing | C35: Cell M30 -formula has been removed.

Sheet R1 - RoRE
A1: R1 - Return on Regulatory Equity (RoRE)
A2: ='RFPR cover'!C5 -> Cadent-EOE
A3: ='RFPR cover'!C7 -> 2021 | B3: =IF('RFPR cover'!C5=Data!B98,"Not required to be completed for System Operator",(IF('RFPR cover'!C5=Data!B96,"Not required to be completed for System Operator",""))) -> 
D5: =IF(D6<='RFPR cover'!$C$7,"Actuals","Forecast") -> Actuals | E5: =IF(E6<='RFPR cover'!$C$7,"Actuals","Forecast") -> Actuals | F5: =IF(F6<='RFPR cover'!$C$7,"Actuals","Forecast") -> Actuals | G5: =IF(G6<='RFPR cover'!$C$7,"Actuals","Forecast") -> Actuals | H5: =IF(H6<='RFPR cover'!$C$7,"Actuals","Forecast") -> Actuals | I5: =IF(I6<='RFPR cover'!$C$7,"Actuals","Forecast") -> Actuals | J5: =IF(J6<='RFPR cover'!$C$7,"Actuals","Forecast") -> Actuals | K5: =IF(K6<='RFPR cover'!$C$7,"Actuals","Forecast") -> Actuals
D6: ='RFPR cover'!$C$13 -> 2014 | E6: =D6+1 -> 2015 | F6: =E6+1 -> 2016 | G6: 2017 | H6: 2018 | I6: 2019 | J6: 2020 | K6: 2021 | M6: ="Cumulative to "&'RFPR cover'!$C$7 -> Cumulative to 2021 | N6: RIIO-1 period
B8: RoRE based on Notional Gearing
B10: Allowed Equity Return | C10: % | D10: =D48/D$65 -> 0.067 | E10: 0.067 | F10: 0.067 | G10: 0.067 | H10: 0.067 | I10: 0.067 | J10: 0.067 | K10: 0.067 | M10: =AVERAGE(D48:INDEX(D48:K48,0,MATCH('RFPR cover'!$C$7,$D$6:$K$6,0)))/AVERAGE($D$65:INDEX($D$65:$K$65,0,MATCH('RFPR cover'!$C$7,$D$6:$K$6,0))) -> 0.067 | N10: =AVERAGE(D48:K48)/AVERAGE($D$65:$K$65) -> 0.067
B11: =B49 -> Totex outperformance | C11: % | D11: -0.0007699228835 | E11: -0.002554452156 | F11: 0.01035007039 | G11: 0.001977857816 | H11: 0.004700457664 | I11: 0.01140650112 | J11: 0.005371185674 | K11: -0.02761776787 | M11: =AVERAGE(D49:INDEX(D49:K49,0,MATCH('RFPR cover'!$C$7,$D$6:$K$6,0)))/AVERAGE($D$65:INDEX($D$65:$K$65,0,MATCH('RFPR cover'!$C$7,$D$6:$K$6,0))) -> 0.0003039628844 | N11: =AVERAGE(D49:K49)/AVERAGE($D$65:$K$65) -> 0.0003039628844
B12: IQI Reward | C12: % | D12: 0.001279727212 | E12: 0.001266631349 | F12: 0.001271972812 | G12: 0.001281127978 | H12: 0.001303030376 | I12: 0.001292285816 | J12: 0.001264552903 | K12: 0.001241144863 | M12: =AVERAGE(D50:INDEX(D50:K50,0,MATCH('RFPR cover'!$C$7,$D$6:$K$6,0)))/AVERAGE($D$65:INDEX($D$65:$K$65,0,MATCH('RFPR cover'!$C$7,$D$6:$K$6,0))) -> 0.001274979838 | N12: 0.001274979838
B13: Broad Measure of Customer Satisfaction | C13: % | D13: 0.002028315107 | E13: 0.001325326222 | F13: 0.002455079415 | G13: 0.003206871038 | H13: 0.00318519454 | I13: 0.003086656149 | J13: 0.003627771294 | K13: 0.003230313642 | M13: =AVERAGE(D51:INDEX(D51:K51,0,MATCH('RFPR cover'!$C$7,$D$6:$K$6,0)))/AVERAGE($D$65:INDEX($D$65:$K$65,0,MATCH('RFPR cover'!$C$7,$D$6:$K$6,0))) -> 0.002765686189 | N13: 0.002765686189
B14: Shrinkage Allowance Revenue Adjustment | C14: % | D14: 0.0006786804554 | E14: 0.000503859402 | F14: 0.0004498485971 | G14: 0.0002760523962 | H14: 0.0002946209284 | I14: 0.0005347508217 | J14: 0.0002308604683 | K14: 0.0005939451313 | M14: =AVERAGE(D52:INDEX(D52:K52,0,MATCH('RFPR cover'!$C$7,$D$6:$K$6,0)))/AVERAGE($D$65:INDEX($D$65:$K$65,0,MATCH('RFPR cover'!$C$7,$D$6:$K$6,0))) -> 0.0004461579813 | N14: 0.0004461579813
B15: Environment Emissions Incentive | C15: % | D15: 0.002108687755 | E15: 0.00226064646 | F15: 0.002523606999 | G15: 0.001671408608 | H15: 0.001582444792 | I15: 0.002332104299 | J15: 0.002174144277 | K15: 0.005006002206 | M15: =AVERAGE(D53:INDEX(D53:K53,0,MATCH('RFPR cover'!$C$7,$D$6:$K$6,0)))/AVERAGE($D$65:INDEX($D$65:$K$65,0,MATCH('RFPR cover'!$C$7,$D$6:$K$6,0))) -> 0.002461036509 | N15: 0.002461036509
B16: Discretionary Reward Scheme | C16: % | D16: 7.59655087e-05 | E16: 7.67759877e-05 | F16: 4.969869892e-05 | G16: 4.983335087e-05 | H16: 4.994907272e-05 | I16: 0 | J16: 0 | K16: 0 | M16: =AVERAGE(D54:INDEX(D54:K54,0,MATCH('RFPR cover'!$C$7,$D$6:$K$6,0)))/AVERAGE($D$65:INDEX($D$65:$K$65,0,MATCH('RFPR cover'!$C$7,$D$6:$K$6,0))) -> 3.783454489e-05 | N16: 3.783454489e-05
B17: NTS Exit Capacity | C17: % | D17: 0.001428718174 | E17: 0.004368347783 | F17: 0.009250256195 | G17: 0.006446303911 | H17: 0.006505554933 | I17: 0.006745893368 | J17: 0.00516388021 | K17: 0.00384188828 | M17: =AVERAGE(D55:INDEX(D55:K55,0,MATCH('RFPR cover'!$C$7,$D$6:$K$6,0)))/AVERAGE($D$65:INDEX($D$65:$K$65,0,MATCH('RFPR cover'!$C$7,$D$6:$K$6,0))) -> 0.005454759573 | N17: 0.005454759573
B18: Network Innovation | C18: % | D18: -0.0001105253912 | E18: -0.0002746977561 | F18: -0.0004400596288 | G18: -0.0004668182849 | H18: -0.0004353937734 | I18: -0.0002618596165 | J18: -0.0004211266192 | K18: -0.0003560854535 | M18: =AVERAGE(D56:INDEX(D56:K56,0,MATCH('RFPR cover'!$C$7,$D$6:$K$6,0)))/AVERAGE($D$65:INDEX($D$65:$K$65,0,MATCH('RFPR cover'!$C$7,$D$6:$K$6,0))) -> -0.0003452188717 | N18: -0.0003452188717
B19: =B57 -> Penalties and fines | C19: % | D19: -0.0005961666706 | E19: -0.0007021730501 | F19: -0.000544692696 | G19: -0.0009318442938 | H19: -0.0002536820207 | I19: -0.0008400269399 | J19: -0.0004226909788 | K19: -0.0003078426536 | M19: =AVERAGE(D57:INDEX(D57:K57,0,MATCH('RFPR cover'!$C$7,$D$6:$K$6,0)))/AVERAGE($D$65:INDEX($D$65:$K$65,0,MATCH('RFPR cover'!$C$7,$D$6:$K$6,0))) -> -0.0005745508054 | N19: -0.0005745508054
B20: =B58 -> RoRE - Operational performance | C20: % | D20: =SUM(D10:D19) -> 0.07312347927 | E20: 0.07327026424 | F20: 0.09236578078 | G20: 0.08051079252 | H20: 0.08393217651 | I20: 0.09129630502 | J20: 0.08398857723 | K20: 0.05263159814 | M20: =SUM(M10:M19) -> 0.07882464784 | N20: =SUM(N10:N19) -> 0.07882464784
B21: =B59 -> Debt performance - at notional gearing | C21: % | D21: =(D59)/D$65 -> 0.02623206217 | E21: =(E59)/E$65 -> -0.001172165953 | F21: 0.007053616408 | G21: 0.01173050465 | H21: 0.03656610635 | I21: 0.01954250065 | J21: 0.001498133572 | K21: -0.02144667066 | M21: =AVERAGE(D59:INDEX(D59:K59,0,MATCH('RFPR cover'!$C$7,$D$6:$K$6,0)))/AVERAGE($D$65:INDEX($D$65:$K$65,0,MATCH('RFPR cover'!$C$7,$D$6:$K$6,0))) -> 0.009954883937 | N21: =AVERAGE(D59:K59)/AVERAGE($D$65:$K$65) -> 0.009954883937
B22: =B61 -> Tax performance - at notional gearing | C22: % | D22: =(D61)/D$65 -> -0.00386629258 | E22: =(E61)/E$65 -> -0.005087717413 | F22: -0.002976670461 | G22: -0.003867426759 | H22: -0.007852557516 | I22: -0.003167111229 | J22: -0.0002388694347 | K22: -0.001204507308 | M22: =AVERAGE(D61:INDEX(D61:K61,0,MATCH('RFPR cover'!$C$7,$D$6:$K$6,0)))/AVERAGE($D$65:INDEX($D$65:$K$65,0,MATCH('RFPR cover'!$C$7,$D$6:$K$6,0))) -> -0.003527538357 | N22: =AVERAGE(D61:K61)/AVERAGE($D$65:$K$65) -> -0.003527538357
B23: =B63 -> RoRE - including financing and tax | C23: % | D23: =SUM(D20:D22) -> 0.09548924886 | E23: =SUM(E20:E22) -> 0.06701038087 | F23: 0.09644272673 | G23: 0.08837387041 | H23: 0.1126457253 | I23: 0.1076716944 | J23: 0.08524784137 | K23: 0.02998042017 | M23: =SUM(M20:M22) -> 0.08525199342 | N23: =SUM(N20:N22) -> 0.08525199342
B27: RoRE based on Actual Gearing
B29: Allowed Equity Return | C29: % | D29: =D48/D$66 -> 0.05040268736 | E29: 0.05505326909 | F29: 0.05352005425 | G29: 0.05681939696 | H29: 0.06231452521 | I29: 0.06340141251 | J29: 0.06448001043 | K29: 0.06346353078 | M29: =AVERAGE(D48:INDEX(D48:K48,0,MATCH('RFPR cover'!$C$7,$D$6:$K$6,0)))/AVERAGE($D$66:INDEX($D$66:$K$66,0,MATCH('RFPR cover'!$C$7,$D$6:$K$6,0))) -> 0.05821675049 | N29: =AVERAGE(D48:K48)/AVERAGE($D$66:$K$66) -> 0.05821675049
B30: =B49 -> Totex outperformance | C30: % | D30: -0.000579196752 | E30: -0.002098969282 | F30: 0.008267706396 | G30: 0.001677323707 | H30: 0.004371743098 | I30: 0.01079385497 | J30: 0.005169165795 | K30: -0.02616001584 | M30: =AVERAGE(D49:INDEX(D49:K49,0,MATCH('RFPR cover'!$C$7,$D$6:$K$6,0)))/AVERAGE($D$66:INDEX($D$66:$K$66,0,MATCH('RFPR cover'!$C$7,$D$6:$K$6,0))) -> 0.000264115394 | N30: =AVERAGE(D49:K49)/AVERAGE($D$66:$K$66) -> 0.000264115394
B31: IQI Reward | C31: % | D31: 0.0009627117992 | E31: 0.001040779052 | F31: 0.001016060506 | G31: 0.00108646148 | H31: 0.001211906257 | I31: 0.001222876807 | J31: 0.001216990812 | K31: 0.001175633362 | M31: =AVERAGE(D50:INDEX(D50:K50,0,MATCH('RFPR cover'!$C$7,$D$6:$K$6,0)))/AVERAGE($D$66:INDEX($D$66:$K$66,0,MATCH('RFPR cover'!$C$7,$D$6:$K$6,0))) -> 0.001107838553 | N31: 0.001107838553
B32: Broad Measure of Customer Satisfaction | C32: % | D32: 0.00152585869 | E32: 0.001089008077 | F32: 0.001961134082 | G32: 0.002719589232 | H32: 0.002962446052 | I32: 0.002920871042 | J32: 0.003491324342 | K32: 0.003059807601 | M32: =AVERAGE(D51:INDEX(D51:K51,0,MATCH('RFPR cover'!$C$7,$D$6:$K$6,0)))/AVERAGE($D$66:INDEX($D$66:$K$66,0,MATCH('RFPR cover'!$C$7,$D$6:$K$6,0))) -> 0.002403123325 | N32: 0.002403123325
B33: Shrinkage Allowance Revenue Adjustment | C33: % | D33: 0.0005105569972 | E33: 0.000414016526 | F33: 0.0003593421092 | G33: 0.0002341064281 | H33: 0.0002740173622 | I33: 0.0005060292155 | J33: 0.0002221773941 | K33: 0.0005625948526 | M33: =AVERAGE(D52:INDEX(D52:K52,0,MATCH('RFPR cover'!$C$7,$D$6:$K$6,0)))/AVERAGE($D$66:INDEX($D$66:$K$66,0,MATCH('RFPR cover'!$C$7,$D$6:$K$6,0))) -> 0.0003876696698 | N33: 0.0003876696698
B34: Environment Emissions Incentive | C34: % | D34: 0.001586321338 | E34: 0.001857551908 | F34: 0.002015874381 | G34: 0.001417439241 | H34: 0.001471780535 | I34: 0.002206846368 | J34: 0.002092370831 | K34: 0.004741769778 | M34: =AVERAGE(D53:INDEX(D53:K53,0,MATCH('RFPR cover'!$C$7,$D$6:$K$6,0)))/AVERAGE($D$66:INDEX($D$66:$K$66,0,MATCH('RFPR cover'!$C$7,$D$6:$K$6,0))) -> 0.00213841117 | N34: 0.00213841117
B35: Discretionary Reward Scheme | C35: % | D35: 5.714725052e-05 | E35: 6.308610612e-05 | F35: 3.969965764e-05 | G35: 4.226120813e-05 | H35: 4.645601121e-05 | I35: 0 | J35: 0 | K35: 0 | M35: =AVERAGE(D54:INDEX(D54:K54,0,MATCH('RFPR cover'!$C$7,$D$6:$K$6,0)))/AVERAGE($D$66:INDEX($D$66:$K$66,0,MATCH('RFPR cover'!$C$7,$D$6:$K$6,0))) -> 3.287469044e-05 | N35: 3.287469044e-05
B36: NTS Exit Capacity | C36: % | D36: 0.001074794559 | E36: 0.003589430238 | F36: 0.007389167363 | G36: 0.00546679255 | H36: 0.006050605476 | I36: 0.006383569674 | J36: 0.00496965746 | K36: 0.00363910142 | M36: =AVERAGE(D55:INDEX(D55:K55,0,MATCH('RFPR cover'!$C$7,$D$6:$K$6,0)))/AVERAGE($D$66:INDEX($D$66:$K$66,0,MATCH('RFPR cover'!$C$7,$D$6:$K$6,0))) -> 0.004739677269 | N36: 0.004739677269
B37: Network Innovation | C37: % | D37: -8.314592146e-05 | E37: -0.0002257165594 | F37: -0.000351522615 | G37: -0.0003958855737 | H37: -0.0004049456159 | I37: -0.0002477950682 | J37: -0.0004052872954 | K37: -0.0003372901513 | M37: =AVERAGE(D56:INDEX(D56:K56,0,MATCH('RFPR cover'!$C$7,$D$6:$K$6,0)))/AVERAGE($D$66:INDEX($D$66:$K$66,0,MATCH('RFPR cover'!$C$7,$D$6:$K$6,0))) -> -0.0002999629988 | N37: -0.0002999629988
B38: =B57 -> Penalties and fines | C38: % | D38: -0.0004484836166 | E38: -0.0005769689832 | F38: -0.0004351042185 | G38: -0.0007902512065 | H38: -0.0002359414131 | I38: -0.0007949088737 | J38: -0.0004067928168 | K38: -0.000291593757 | M38: =AVERAGE(D57:INDEX(D57:K57,0,MATCH('RFPR cover'!$C$7,$D$6:$K$6,0)))/AVERAGE($D$66:INDEX($D$66:$K$66,0,MATCH('RFPR cover'!$C$7,$D$6:$K$6,0))) -> -0.0004992310579 | N38: -0.0004992310579
B39: =B58 -> RoRE - Operational performance | C39: % | D39: =SUM(D29:D38) -> 0.0550092517 | E39: 0.06020548617 | F39: 0.07378241191 | G39: 0.06827723403 | H39: 0.07806259297 | I39: 0.08639275664 | J39: 0.08082961695 | K39: 0.04985353804 | M39: =SUM(M29:M38) -> 0.0684912665 | N39: =SUM(N29:N38) -> 0.0684912665
B40: Debt performance - at actual gearing | C40: % | D40: =(D59+D60)/D$66 -> 0.022004094 | E40: =(E59+E60)/E$66 -> 0.002764423084 | F40: 0.008355166282 | G40: 0.01188981175 | H40: 0.03423819935 | I40: 0.01901003178 | J40: 0.002539529583 | K40: -0.01874038514 | M40: =(AVERAGE(D59:INDEX(D59:K59,0,MATCH('RFPR cover'!$C$7,$D$6:$K$6,0)))+AVERAGE(D60:INDEX(D60:K60,0,MATCH('RFPR cover'!$C$7,$D$6:$K$6,0))))/AVERAGE($D$66:INDEX($D$66:$K$66,0,MATCH('RFPR cover'!$C$7,$D$6:$K$6,0))) -> 0.01048390259 | N40: =(AVERAGE(D59:K59)+AVERAGE(D60:K60))/AVERAGE($D$66:$K$66) -> 0.01048390259
B41: Tax performance - at actual gearing | C41: % | D41: =(D61+D62)/D$66 -> -0.00290853039 | E41: =(E61+E62)/E$66 -> -0.004180529489 | F41: -0.002377784545 | G41: -0.003279773973 | H41: -0.007303408855 | I41: -0.002997004858 | J41: -0.000229885129 | K41: -0.001140929651 | M41: =(AVERAGE(D61:INDEX(D61:K61,0,MATCH('RFPR cover'!$C$7,$D$6:$K$6,0)))+AVERAGE(D62:INDEX(D62:K62,0,MATCH('RFPR cover'!$C$7,$D$6:$K$6,0))))/AVERAGE($D$66:INDEX($D$66:$K$66,0,MATCH('RFPR cover'!$C$7,$D$6:$K$6,0))) -> -0.003065101797 | N41: =(AVERAGE(D61:K61)+AVERAGE(D62:K62))/AVERAGE($D$66:$K$66) -> -0.003065101797
B42: =B63 -> RoRE - including financing and tax | C42: % | D42: =SUM(D39:D41) -> 0.07410481531 | E42: =SUM(E39:E41) -> 0.05878937976 | F42: 0.07975979364 | G42: 0.0768872718 | H42: 0.1049973835 | I42: 0.1024057836 | J42: 0.0831392614 | K42: 0.02997222325 | M42: =SUM(M39:M41) -> 0.07591006729 | N42: =SUM(N39:N41) -> 0.07591006729
B45: RoRE input values
B46: ="Input values provided in "&'RFPR cover'!C14&" prices" -> Input values provided in £m 09/10 prices
B48: Equity Return on the RAV | C48: ='RFPR cover'!$C$14 -> £m 09/10 | D48: ='R9 - RAV'!D50 -> 57.93645481 | E48: ='R9 - RAV'!E50 -> 57.32485369 | F48: ='R9 - RAV'!F50 -> 56.9202875 | G48: ='R9 - RAV'!G50 -> 56.76648633 | H48: ='R9 - RAV'!H50 -> 56.63496992 | I48: ='R9 - RAV'!I50 -> 56.69992216 | J48: ='R9 - RAV'!J50 -> 57.07202709 | K48: ='R9 - RAV'!K50 -> 57.60667906 | M48: =SUM(D48:INDEX(D48:K48,0,MATCH('RFPR cover'!$C$7,$D$6:$K$6,0))) -> 456.9616806 | N48: =SUM(D48:K48) -> 456.9616806
B49: Totex outperformance | C49: ='RFPR cover'!$C$14 -> £m 09/10 | D49: ='R4 - Totex'!D35+'R4 - Totex'!D63 -> -0.6657701843 | E49: ='R4 - Totex'!E35+'R4 - Totex'!E63 -> -2.185576061 | F49: ='R4 - Totex'!F35+'R4 - Totex'!F63 -> 8.792969882 | G49: ='R4 - Totex'!G35+'R4 - Totex'!G63 -> 1.675761771 | H49: ='R4 - Totex'!H35+'R4 - Totex'!H63 -> 3.973287737 | I49: ='R4 - Totex'!I35+'R4 - Totex'!I63 -> 9.652951131 | J49: ='R4 - Totex'!J35+'R4 - Totex'!J63 -> 4.575290362 | K49: ='R4 - Totex'!K35+'R4 - Totex'!K63 -> -23.74578941 | M49: =SUM(D49:INDEX(D49:K49,0,MATCH('RFPR cover'!$C$7,$D$6:$K$6,0))) -> 2.073125231 | N49: =SUM(D49:K49) -> 2.073125231
B50: IQI Reward | C50: ='RFPR cover'!$C$14 -> £m 09/10 | D50: ='R4 - Totex'!D79 -> 1.106609817 | E50: ='R4 - Totex'!E79 -> 1.083723235 | F50: ='R4 - Totex'!F79 -> 1.080612809 | G50: ='R4 - Totex'!G79 -> 1.085449759 | H50: ='R4 - Totex'!H79 -> 1.101449047 | I50: ='R4 - Totex'!I79 -> 1.09361948 | J50: ='R4 - Totex'!J79 -> 1.077173098 | K50: ='R4 - Totex'!K79 -> 1.067137818 | M50: =SUM(D50:INDEX(D50:K50,0,MATCH('RFPR cover'!$C$7,$D$6:$K$6,0))) -> 8.695775063 | N50: =SUM(D50:K50) -> 8.695775063
B51: ='R5 - Output Incentives'!B39 -> Broad Measure of Customer Satisfaction | C51: ='RFPR cover'!$C$14 -> £m 09/10 | D51: ='R5 - Output Incentives'!D39 -> 1.753931143 | E51: ='R5 - Output Incentives'!E39 -> 1.133942265 | F51: ='R5 - Output Incentives'!F39 -> 2.085728748 | G51: ='R5 - Output Incentives'!G39 -> 2.717056731 | H51: ='R5 - Output Incentives'!H39 -> 2.692438761 | I51: ='R5 - Output Incentives'!I39 -> 2.612136767 | J51: ='R5 - Output Incentives'!J39 -> 3.09021286 | K51: ='R5 - Output Incentives'!K39 -> 2.777427481 | M51: =SUM(D51:INDEX(D51:K51,0,MATCH('RFPR cover'!$C$7,$D$6:$K$6,0))) -> 18.86287476 | N51: 18.86287476
B52: ='R5 - Output Incentives'!B40 -> Shrinkage Allowance Revenue Adjustment | C52: ='RFPR cover'!$C$14 -> £m 09/10 | D52: ='R5 - Output Incentives'!D40 -> 0.5868707394 | E52: ='R5 - Output Incentives'!E40 -> 0.4310995 | F52: ='R5 - Output Incentives'!F40 -> 0.3821718131 | G52: ='R5 - Output Incentives'!G40 -> 0.2338884265 | H52: ='R5 - Output Incentives'!H40 -> 0.2490424988 | I52: ='R5 - Output Incentives'!I40 -> 0.4525422383 | J52: ='R5 - Output Incentives'!J40 -> 0.1966518642 | K52: ='R5 - Output Incentives'!K40 -> 0.5106747247 | M52: =SUM(D52:INDEX(D52:K52,0,MATCH('RFPR cover'!$C$7,$D$6:$K$6,0))) -> 3.042941805 | N52: 3.042941805
B53: ='R5 - Output Incentives'!B41 -> Environment Emissions Incentive | C53: ='RFPR cover'!$C$14 -> £m 09/10 | D53: ='R5 - Output Incentives'!D41 -> 1.823431236 | E53: ='R5 - Output Incentives'!E41 -> 1.934197426 | F53: ='R5 - Output Incentives'!F41 -> 2.143946805 | G53: ='R5 - Output Incentives'!G41 -> 1.416119312 | H53: ='R5 - Output Incentives'!H41 -> 1.33763751 | I53: ='R5 - Output Incentives'!I41 -> 1.973584063 | J53: ='R5 - Output Incentives'!J41 -> 1.851982404 | K53: ='R5 - Output Incentives'!K41 -> 4.304166604 | M53: =SUM(D53:INDEX(D53:K53,0,MATCH('RFPR cover'!$C$7,$D$6:$K$6,0))) -> 16.78506536 | N53: 16.78506536
B54: ='R5 - Output Incentives'!B42 -> Discretionary Reward Scheme | C54: ='RFPR cover'!$C$14 -> £m 09/10 | D54: ='R5 - Output Incentives'!D42 -> 0.06568913824 | E54: ='R5 - Output Incentives'!E42 -> 0.06568913824 | F54: ='R5 - Output Incentives'!F42 -> 0.04222185419 | G54: ='R5 - Output Incentives'!G42 -> 0.04222185419 | H54: ='R5 - Output Incentives'!H42 -> 0.04222185419 | I54: ='R5 - Output Incentives'!I42 -> 0 | J54: ='R5 - Output Incentives'!J42 -> 0 | K54: ='R5 - Output Incentives'!K42 -> 0 | M54: =SUM(D54:INDEX(D54:K54,0,MATCH('RFPR cover'!$C$7,$D$6:$K$6,0))) -> 0.258043839 | N54: 0.258043839
B55: ='R5 - Output Incentives'!B43 -> NTS Exit Capacity | C55: ='RFPR cover'!$C$14 -> £m 09/10 | D55: ='R5 - Output Incentives'!D43 -> 1.23544576 | E55: ='R5 - Output Incentives'!E43 -> 3.737535784 | F55: ='R5 - Output Incentives'!F43 -> 7.858615553 | G55: ='R5 - Output Incentives'!G43 -> 5.461701834 | H55: ='R5 - Output Incentives'!H43 -> 5.499132954 | I55: ='R5 - Output Incentives'!I43 -> 5.708830282 | J55: ='R5 - Output Incentives'!J43 -> 4.398703153 | K55: ='R5 - Output Incentives'!K43 -> 3.303260077 | M55: =SUM(D55:INDEX(D55:K55,0,MATCH('RFPR cover'!$C$7,$D$6:$K$6,0))) -> 37.2032254 | N55: 37.2032254
B56: Network Innovation | C56: ='RFPR cover'!$C$14 -> £m 09/10 | D56: =-'R6 - Innovation'!D28 -> -0.09557387064 | E56: =-'R6 - Innovation'!E28 -> -0.2350299802 | F56: =-'R6 - Innovation'!F28 -> -0.3738555311 | G56: =-'R6 - Innovation'!G28 -> -0.3955169222 | H56: =-'R6 - Innovation'!H28 -> -0.3680375113 | I56: =-'R6 - Innovation'!I28 -> -0.2216032817 | J56: =-'R6 - Innovation'!J28 -> -0.3587246242 | K56: =-'R6 - Innovation'!K28 -> -0.3061626931 | M56: =SUM(D56:INDEX(D56:K56,0,MATCH('RFPR cover'!$C$7,$D$6:$K$6,0))) -> -2.354504414 | N56: -2.354504414
B57: Penalties and fines | C57: ='RFPR cover'!$C$14 -> £m 09/10 | D57: =-'R13 - Other Activities'!D8 -> -0.5155191548 | E57: =-'R13 - Other Activities'!E8 -> -0.6007756322 | F57: =-'R13 - Other Activities'!F8 -> -0.4627472366 | G57: =-'R13 - Other Activities'!G8 -> -0.7895153189 | H57: =-'R13 - Other Activities'!H8 -> -0.2144369196 | I57: =-'R13 - Other Activities'!I8 -> -0.7108874942 | J57: =-'R13 - Other Activities'!J8 -> -0.3600571791 | K57: =-'R13 - Other Activities'!K8 -> -0.2646834768 | M57: =SUM(D57:INDEX(D57:K57,0,MATCH('RFPR cover'!$C$7,$D$6:$K$6,0))) -> -3.918622412 | N57: -3.918622412
B58: RoRE - Operational performance | C58: ='RFPR cover'!$C$14 -> £m 09/10 | D58: =SUM(D48:D57) -> 63.23156943 | E58: 62.68965936 | F58: 78.46995219 | G58: 68.21365377 | H58: 70.94770585 | I58: 77.26109535 | J58: 71.54325903 | K58: 45.25271019 | M58: =SUM(M48:M57) -> 537.6096052 | N58: =SUM(N48:N57) -> 537.6096052
B59: Debt performance - at notional gearing | C59: ='RFPR cover'!$C$14 -> £m 09/10 | D59: ='R7 - Financing'!D90+'R10 - Tax'!D91 -> 22.68347291 | E59: ='R7 - Financing'!E90+'R10 - Tax'!E91 -> -1.002899131 | F59: ='R7 - Financing'!F90+'R10 - Tax'!F91 -> 5.992445879 | G59: ='R7 - Financing'!G90+'R10 - Tax'!G91 -> 9.93879898 | H59: ='R7 - Financing'!H90+'R10 - Tax'!H91 -> 30.90925871 | I59: ='R7 - Financing'!I90+'R10 - Tax'!I91 -> 16.53818307 | J59: ='R7 - Financing'!J90+'R10 - Tax'!J91 -> 1.276142087 | K59: ='R7 - Financing'!K90+'R10 - Tax'!K91 -> -18.43987274 | M59: =SUM(D59:INDEX(D59:K59,0,MATCH('RFPR cover'!$C$7,$D$6:$K$6,0))) -> 67.89552976 | N59: =SUM(D59:K59) -> 67.89552976
B60: Debt performance - impact of actual gearing | C60: ='RFPR cover'!$C$14 -> £m 09/10 | D60: ='R7 - Financing'!D92+'R10 - Tax'!D92 -> 2.609606977 | E60: ='R7 - Financing'!E92+'R10 - Tax'!E92 -> 3.881386665 | F60: ='R7 - Financing'!F92+'R10 - Tax'!F92 -> 2.893540385 | G60: ='R7 - Financing'!G92+'R10 - Tax'!G92 -> 1.939940887 | H60: ='R7 - Financing'!H92+'R10 - Tax'!H92 -> 0.2083560677 | I60: ='R7 - Financing'!I92+'R10 - Tax'!I92 -> 0.4625000338 | J60: ='R7 - Financing'!J92+'R10 - Tax'!J92 -> 0.9716258678 | K60: ='R7 - Financing'!K92+'R10 - Tax'!K92 -> 1.428979416 | M60: =SUM(D60:INDEX(D60:K60,0,MATCH('RFPR cover'!$C$7,$D$6:$K$6,0))) -> 14.3959363 | N60: =SUM(D60:K60) -> 14.3959363
B61: Tax performance - at notional gearing | C61: ='RFPR cover'!$C$14 -> £m 09/10 | D61: ='R10 - Tax'!D84-'R10 - Tax'!D91 -> -3.343272915 | E61: ='R10 - Tax'!E84-'R10 - Tax'!E91 -> -4.353024721 | F61: ='R10 - Tax'!F84-'R10 - Tax'!F91 -> -2.528849827 | G61: ='R10 - Tax'!G84-'R10 - Tax'!G91 -> -3.276719824 | H61: ='R10 - Tax'!H84-'R10 - Tax'!H91 -> -6.637751622 | I61: ='R10 - Tax'!I84-'R10 - Tax'!I91 -> -2.680223286 | J61: ='R10 - Tax'!J84-'R10 - Tax'!J91 -> -0.2034740724 | K61: ='R10 - Tax'!K84-'R10 - Tax'!K91 -> -1.035636805 | M61: =SUM(D61:INDEX(D61:K61,0,MATCH('RFPR cover'!$C$7,$D$6:$K$6,0))) -> -24.05895307 | N61: =SUM(D61:K61) -> -24.05895307
B62: Tax performance - impact of actual gearing | C62: ='RFPR cover'!$C$14 -> £m 09/10 | D62: ='R10 - Tax'!D86-'R10 - Tax'!D92 -> 8.881784197e-16 | E62: ='R10 - Tax'!E86-'R10 - Tax'!E92 -> 8.881784197e-16 | F62: ='R10 - Tax'!F86-'R10 - Tax'!F92 -> 3.552713679e-15 | G62: ='R10 - Tax'!G86-'R10 - Tax'!G92 -> -1.776356839e-15 | H62: ='R10 - Tax'!H86-'R10 - Tax'!H92 -> 4.440892099e-16 | I62: ='R10 - Tax'!I86-'R10 - Tax'!I92 -> -8.881784197e-16 | J62: ='R10 - Tax'!J86-'R10 - Tax'!J92 -> -9.436895709e-16 | K62: ='R10 - Tax'!K86-'R10 - Tax'!K92 -> 8.881784197e-16 | M62: =SUM(D62:INDEX(D62:K62,0,MATCH('RFPR cover'!$C$7,$D$6:$K$6,0))) -> 3.053113318e-15 | N62: =SUM(D62:K62) -> 3.053113318e-15
B63: RoRE - including financing and tax | C63: ='RFPR cover'!$C$14 -> £m 09/10 | D63: =SUM(D58:D62) -> 85.1813764 | E63: =SUM(E58:E62) -> 61.21512218 | F63: 84.82708863 | G63: 76.81567382 | H63: 95.427569 | I63: 91.58155517 | J63: 73.58755291 | K63: 27.20618006 | M63: =SUM(M58:M62) -> 595.8421182 | N63: =SUM(N58:N62) -> 595.8421182
B65: NPV-neutral equity element of RAV | C65: ='RFPR cover'!$C$14 -> £m 09/10 | D65: ='R9 - RAV'!D46 -> 864.7232061 | E65: ='R9 - RAV'!E46 -> 855.5948312 | F65: ='R9 - RAV'!F46 -> 849.5565298 | G65: ='R9 - RAV'!G46 -> 847.26099 | H65: ='R9 - RAV'!H46 -> 845.2980585 | I65: ='R9 - RAV'!I46 -> 846.267495 | J65: ='R9 - RAV'!J46 -> 851.8212999 | K65: ='R9 - RAV'!K46 -> 859.80118
B66: Equity RAV based on actual gearing | C66: ='RFPR cover'!$C$14 -> £m 09/10 | D66: ='R8 - Net Debt'!D62 -> 1149.471543 | E66: ='R8 - Net Debt'!E62 -> 1041.261575 | F66: ='R8 - Net Debt'!F62 -> 1063.531947 | G66: ='R8 - Net Debt'!G62 -> 999.0687928 | H66: ='R8 - Net Debt'!H62 -> 908.8566386 | I66: ='R8 - Net Debt'!I62 -> 894.3006145 | J66: ='R8 - Net Debt'!J62 -> 885.1119396 | K66: ='R8 - Net Debt'!K62 -> 907.7131126

Sheet R2 - Revenue
A1: R2 - Revenue
A2: ='RFPR cover'!C5 -> Cadent-EOE
A3: ='RFPR cover'!C7 -> 2021
D5: =IF(D6<='RFPR cover'!$C$7,"Actuals","Forecast") -> Actuals | E5: =IF(E6<='RFPR cover'!$C$7,"Actuals","Forecast") -> Actuals | F5: =IF(F6<='RFPR cover'!$C$7,"Actuals","Forecast") -> Actuals | G5: =IF(G6<='RFPR cover'!$C$7,"Actuals","Forecast") -> Actuals | H5: =IF(H6<='RFPR cover'!$C$7,"Actuals","Forecast") -> Actuals | I5: =IF(I6<='RFPR cover'!$C$7,"Actuals","Forecast") -> Actuals | J5: =IF(J6<='RFPR cover'!$C$7,"Actuals","Forecast") -> Actuals | K5: =IF(K6<='RFPR cover'!$C$7,"Actuals","Forecast") -> Actuals
D6: ='RFPR cover'!$C$13 -> 2014 | E6: =D6+1 -> 2015 | F6: =E6+1 -> 2016 | G6: 2017 | H6: 2018 | I6: 2019 | J6: 2020 | K6: 2021
B8: Allowed Revenue - per latest submitted Revenue Return
B10: Opening Base Revenue Allowance | C10: ='RFPR cover'!$C$14 -> £m 09/10 | D10: 525.5 | E10: 506.4 | F10: 509.7 | G10: 500.2 | H10: 499 | I10: 497.9 | J10: 495.1 | K10: 496.2
B11: MOD | C11: ='RFPR cover'!$C$14 -> £m 09/10 | D11: 0 | E11: -3.2 | F11: -7.6 | G11: -13.6 | H11: -12.3 | I11: -13.1 | J11: -21.5 | K11: -34
B12: True Up | C12: ='RFPR cover'!$C$14 -> £m 09/10 | D12: 0 | E12: 0 | F12: 1.79702182 | G12: -7.11209011 | H12: -10.9701259 | I12: -1.92717515 | J12: 1.284369146 | K12: -0.39341636
B13: Retail Price Index Forecast (RPIF term) | C13: Index | D13: 1.163016333 | E13: 1.205083814 | F13: 1.226652821 | G13: 1.232733287 | H13: 1.270922538 | I13: 1.314024254 | J13: 1.358588448 | K13: 1.379839549
B14: Nominal Base Revenue | C14: £m nominal | D14: =SUM(D10:D12)*D13 -> 611.165083 | E14: =SUM(E10:E12)*E13 -> 606.3981754 | F14: 618.1067034 | G14: 591.0807074 | H14: 604.6158191 | I14: 634.5066036 | J14: 645.1724179 | K14: 637.2189882
B15: Incentive revenue adjustment | C15: £m nominal | D15: ='R5 - Output Incentives'!D102 -> 0.3272481 | E15: ='R5 - Output Incentives'!E102 -> 0.30502755 | F15: ='R5 - Output Incentives'!F102 -> 7.99708247 | G15: ='R5 - Output Incentives'!G102 -> 11.59700658 | H15: ='R5 - Output Incentives'!H102 -> 20.12273983 | I15: ='R5 - Output Incentives'!I102 -> 16.14434186 | J15: ='R5 - Output Incentives'!J102 -> 16.85801472 | K15: ='R5 - Output Incentives'!K102 -> 18.52401439
B16: Adjustments for Allowed Pass-Through items | C16: £m nominal | D16: 0.10414516 | E16: 0.02295513 | F16: 1.62233598 | G16: 1.94841504 | H16: 5.9483852 | I16: 5.96082329 | J16: -2.035863169 | K16: -1.81747883
B17: Network Innovation Allowance | C17: £m nominal | D17: ='R6 - Innovation'!D12 -> 0.92245514 | E17: ='R6 - Innovation'!E12 -> 2.51623262 | F17: ='R6 - Innovation'!F12 -> 3.14563328 | G17: ='R6 - Innovation'!G12 -> 2.50425 | H17: ='R6 - Innovation'!H12 -> 2.42023807 | I17: ='R6 - Innovation'!I12 -> 1.603326713 | J17: ='R6 - Innovation'!J12 -> 2.008314144 | K17: ='R6 - Innovation'!K12 -> 2.592
B18: Low Carbon Networks Fund revenue adjustment | C18: £m nominal | D18: ='R6 - Innovation'!D17 -> 0 | E18: ='R6 - Innovation'!E17 -> 0 | F18: ='R6 - Innovation'!F17 -> 0 | G18: ='R6 - Innovation'!G17 -> 0 | H18: ='R6 - Innovation'!H17 -> 0 | I18: ='R6 - Innovation'!I17 -> 0 | J18: ='R6 - Innovation'!J17 -> 0 | K18: ='R6 - Innovation'!K17 -> 0
B19: NTS Exit Capacity Cost Adjustment | C19: £m nominal | D19: 0 | E19: 0 | F19: -2.29650987 | G19: -4.10947234 | H19: -7.58485922 | I19: -6.49263783 | J19: -6.82728962 | K19: -14.35686465
B20: Shrinkage Cost Adjustment | C20: £m nominal | D20: 0 | E20: 0 | F20: -2.59062413 | G20: -6.07471599 | H20: -7.95663334 | I20: -4.32595238 | J20: -3.247126377 | K20: -1.7864988
B21: [Input description] | C21: £m nominal | D21: 0 | E21: 0 | F21: 0 | G21: 0 | H21: 0 | I21: 0 | J21: 0 | K21: 0
B22: [Input description] | C22: £m nominal | D22: 0 | E22: 0 | F22: 0 | G22: 0 | H22: 0 | I22: 0 | J22: 0 | K22: 0
B23: [Input description] | C23: £m nominal | D23: 0 | E23: 0 | F23: 0 | G23: 0 | H23: 0 | I23: 0 | J23: 0 | K23: 0
B24: [Input description] | C24: £m nominal | D24: 0 | E24: 0 | F24: 0 | G24: 0 | H24: 0 | I24: 0 | J24: 0 | K24: 0
B25: Correction factor | C25: £m nominal | D25: -5.93797057 | E25: 0 | F25: 2.90256308 | G25: 0.3134313 | H25: -0.1339372 | I25: 4.70339765 | J25: 1.84873531 | K25: 3.38791869
B26: Allowed Network Revenue | C26: £m nominal | D26: =SUM(D14:D24,-D25) -> 618.456902 | E26: =SUM(E14:E24,-E25) -> 609.2423907 | F26: 623.0820581 | G26: 596.6327594 | H26: 617.6996268 | I26: 642.6931076 | J26: 650.0797323 | K26: 636.9862416
B28: (Under) / Over recovery | D28: =IF(ISBLANK(D33),0,D33-D26) -> 2.789853019 | E28: =IF(ISBLANK(E33),0,E33-E26) -> 0.3012603783 | F28: -0.1289431888 | G28: 4.534603146 | H28: 1.776652581 | I28: 3.200103219 | J28: 1.708065661 | K28: -0.9483934349
B31: Reconciliation: Regulated Network Revenue to Accounts
B33: Collected Regulated Network Revenue | D33: 621.246755 | E33: 609.5436511 | F33: 622.9531149 | G33: 601.1673625 | H33: 619.4762794 | I33: 645.8932109 | J33: 651.787798 | K33: 636.0378482
B35: Other Turnover Items
B36: Network Innovation Competition (NIC) payments received from SO | C36: £m nominal | D36: 0 | E36: 0 | F36: 0 | G36: 0 | H36: 0 | I36: 0 | J36: 0 | K36: 0
B37: Legacy Metering Equipment charges | C37: £m nominal | D37: 0 | E37: 0 | F37: 0 | G37: 0 | H37: 0 | I37: 0 | J37: 0 | K37: 0
B38: Directly Remunerated Services revenue | C38: £m nominal | D38: 0 | E38: 0 | F38: 0 | G38: 0 | H38: 0 | I38: 0 | J38: 0 | K38: 0
B39: Network Asset Secondary Deliverables incentive/penalty | C39: £m nominal | D39: 0 | E39: 0 | F39: 0 | G39: 0 | H39: 0 | I39: 0 | J39: 0 | K39: 0
B40: Charging outside the Distribution Services Area (Out of Area Charges) | C40: £m nominal | D40: 0 | E40: 0 | F40: 0 | G40: 0 | H40: 0 | I40: 0 | J40: 0 | K40: 0
B41: De Minimis Business of the licensee | C41: £m nominal | D41: 0.3365281228 | E41: 1.675831479 | F41: 1.457056703 | G41: 3.423352033 | H41: 4.544852225 | I41: 3.33871285 | J41: 1.97520991 | K41: 1.313359914
B42: Other consented activities | C42: £m nominal | D42: 0 | E42: 0 | F42: 0 | G42: 0 | H42: 0 | I42: 0 | J42: 0 | K42: 0
B43: Data Services revenue | C43: £m nominal | D43: 0 | E43: 0 | F43: 0 | G43: 0 | H43: 0 | I43: 0 | J43: 0 | K43: 0
B44: [Input description, add additional rows as required] | C44: £m nominal | D44: 0 | E44: 0 | F44: 0 | G44: 0 | H44: 0 | I44: 0 | J44: 0 | K44: 0
B45: Total Other Turnover Items | C45: £m nominal | D45: =SUM(D36:D44) -> 0.3365281228 | E45: =SUM(E36:E44) -> 1.675831479 | F45: 1.457056703 | G45: 3.423352033 | H45: 4.544852225 | I45: 3.33871285 | J45: 1.97520991 | K45: 1.313359914
B47: Other adjustments - please list
B48: Excluded Services (Inc. Customer Contributions) | C48: £m nominal | D48: 7.623142404 | E48: 6.091598003 | F48: 6.662760351 | G48: 6.972170302 | H48: 6.893831572 | I48: 8.362411521 | J48: 7.480216566 | K48: 7.398403925
B49: Meter Reading and metering | C49: £m nominal | D49: 15.59508264 | E49: 13.5842405 | F49: 12.15248572 | G49: 6.662657357 | H49: 5.215519142 | I49: 5.233092041 | J49: 5.321644008 | K49: 1.07029361
B50: Services provided under consents | C50: £m nominal | D50: 3.067640783 | E50: 3.765469421 | F50: 3.42223793 | G50: 3.209909076 | H50: 1.325130532 | I50: 1.530121318 | J50: 1.521733786 | K50: 1.517498104
B51: Other transportation Revenue | C51: £m nominal | D51: 0 | E51: 0 | F51: 0 | G51: 0.08763980898 | H51: -0.08763980898 | I51: 0.1258081535 | J51: 0.1602423152 | K51: 0
B52: Customer contributions | C52: £m nominal | D52: 0.11166664 | E52: 0.4678842 | F52: 0 | G52: 0 | H52: 0 | I52: 0 | J52: 0 | K52: 0
B53: Xoserve | C53: £m nominal | D53: 18.21307234 | E53: 19.35117626 | F53: 18.51316837 | G53: 0 | H53: 0 | I53: 0 | J53: 0 | K53: 0
B54: Elimination of Inter Group/Business Trading | C54: £m nominal | D54: -45.70734259 | E54: -36.43455694 | F54: -27.3579207 | G54: 0 | H54: 0 | I54: 0 | J54: 0 | K54: 0
B55: Revenue classified as expenditure | C55: £m nominal | D55: 0 | E55: 0 | F55: 0 | G55: 2.548244958 | H55: 0 | I55: 0 | J55: 0 | K55: 0
B56: Other three network revenues | C56: £m nominal | D56: 1249.091499 | E56: 1229.820866 | F56: 1272.761813 | G56: 1263.097966 | H56: 1214.446824 | I56: 1308.231557 | J56: 1422.686905 | K56: 1423.080701
B57: Metering | C57: £m nominal | D57: 321 | E57: 309 | F57: 300 | G57: 0 | H57: 0 | I57: 0 | J57: 0 | K57: 0
B58: IFRS 15 Contribution released | C58: £m nominal | D58: 0 | E58: 0 | F58: 0 | G58: 0 | H58: 0 | I58: 21.9970921 | J58: 22.31658366 | K58: 5.20784353
B59: [Input description] | C59: £m nominal | D59: 0 | E59: 0 | F59: 0 | G59: 0 | H59: 0 | I59: 0 | J59: 0 | K59: 0
B60: [Input description] | C60: £m nominal | D60: 0 | E60: 0 | F60: 0 | G60: 0 | H60: 0 | I60: 0 | J60: 0 | K60: 0
B61: [Input description] | C61: £m nominal | D61: 0 | E61: 0 | F61: 0 | G61: 0 | H61: 0 | I61: 0 | J61: 0 | K61: 0
B62: [Input description] | C62: £m nominal | D62: 0 | E62: 0 | F62: 0 | G62: 0 | H62: 0 | I62: 0 | J62: 0 | K62: 0
B63: Roundings | C63: £m nominal | D63: 0.4 | E63: 1.1 | F63: 0.4 | G63: -0.2 | H63: 0.1 | I63: 0.28799428 | J63: 1.749667023 | K63: -0.6259486
B64: Total other adjustments | C64: £m nominal | D64: =SUM(D48:D63) -> 1569.394761 | E64: 1546.746677 | F64: 1586.554545 | G64: 1282.378587 | H64: 1227.893666 | I64: 1345.768076 | J64: 1461.236992 | K64: 1437.648792
B66: Reconciled total revenue | C66: £m nominal | D66: =D33+D45+D64 -> 2190.978045 | E66: 2157.96616 | F66: 2210.964717 | G66: 1886.969302 | H66: 1851.914797 | I66: 1995 | J66: 2115 | K66: 2075
B67: Turnover as per Profit and Loss (Accounts) | C67: £m nominal | D67: 2191 | E67: 2158 | F67: 2211 | G67: 1887 | H67: 1852 | I67: 1995 | J67: 2115 | K67: 2075
B68: Check | D68: =IF(ABS(D66-D67)<'RFPR cover'!$F$14,"OK","Error") -> OK | E68: =IF(ABS(E66-E67)<'RFPR cover'!$F$14,"OK","Error") -> OK | F68: =IF(ABS(F66-F67)<'RFPR cover'!$F$14,"OK","Error") -> OK | G68: =IF(ABS(G66-G67)<'RFPR cover'!$F$14,"OK","Error") -> OK | H68: =IF(ABS(H66-H67)<'RFPR cover'!$F$14,"OK","Error") -> OK | I68: =IF(ABS(I66-I67)<'RFPR cover'!$F$14,"OK","Error") -> OK | J68: =IF(ABS(J66-J67)<'RFPR cover'!$F$14,"OK","Error") -> OK | K68: =IF(ABS(K66-K67)<'RFPR cover'!$F$14,"OK","Error") -> OK

Sheet R3 - Rec to totex
A1: R3 - Reconciliation to totex
A2: ='RFPR cover'!C5 -> Cadent-EOE
A3: ='RFPR cover'!C7 -> 2021
D5: =IF(D6<='RFPR cover'!$C$7,"Actuals","N/A") -> Actuals | E5: =IF(E6<='RFPR cover'!$C$7,"Actuals","N/A") -> Actuals | F5: =IF(F6<='RFPR cover'!$C$7,"Actuals","N/A") -> Actuals | G5: =IF(G6<='RFPR cover'!$C$7,"Actuals","N/A") -> Actuals | H5: =IF(H6<='RFPR cover'!$C$7,"Actuals","N/A") -> Actuals | I5: =IF(I6<='RFPR cover'!$C$7,"Actuals","N/A") -> Actuals | J5: =IF(J6<='RFPR cover'!$C$7,"Actuals","N/A") -> Actuals | K5: =IF(K6<='RFPR cover'!$C$7,"Actuals","N/A") -> Actuals
D6: ='RFPR cover'!$C$13 -> 2014 | E6: =D6+1 -> 2015 | F6: =E6+1 -> 2016 | G6: 2017 | H6: 2018 | I6: 2019 | J6: 2020 | K6: 2021
B8: Total Expenditure Per Accounts
B9: Tangible Fixed Asset Additions | C9: £m nominal | D9: 509 | E9: 520 | F9: 581 | G9: 549 | H9: 610 | I9: 706 | J9: 815 | K9: 995
B10: Intangible Asset Additions (under IFRS) - IT Software | C10: £m nominal | D10: 35 | E10: 40 | F10: 24 | G10: 11 | H10: 2 | I10: 30 | J10: 46 | K10: 34
B11: Disposals (cash proceeds) [If Statutory Accounts treat this as an exceptional item, leave the input blank] | C11: £m nominal | D11: 0 | E11: 0 | F11: 0 | G11: 0 | H11: 0 | I11: -2 | J11: -1 | K11: 0
B12: Customer Contributions Additions | C12: £m nominal | D12: -21.08830086 | E12: -20.50484706 | F12: -22.98658171 | G12: -39.2042886 | H12: -59 | I12: -109 | J12: -94 | K12: -85
B13: Capitalised interest | C13: £m nominal | D13: -2 | E13: -2 | F13: 0 | G13: -1 | H13: 0 | I13: 0 | J13: 0 | K13: 0
B14: Revaluation of tangible fixed assets | C14: £m nominal | D14: 0 | E14: 0 | F14: 0 | G14: 0 | H14: 0 | I14: 0 | J14: 0 | K14: 0
A15: 1 | B15: [Input description] | C15: £m nominal | D15: 0 | E15: 0 | F15: 0 | G15: 0 | H15: 0 | I15: 0 | J15: 0 | K15: 0
A16: 2 | B16: [Input description] | C16: £m nominal | D16: 0 | E16: 0 | F16: 0 | G16: 0 | H16: 0 | I16: 0 | J16: 0 | K16: 0
A17: 3 | B17: [Input description] | C17: £m nominal | D17: 0 | E17: 0 | F17: 0 | G17: 0 | H17: 0 | I17: 0 | J17: 0 | K17: 0
B18: Capex Incurred | C18: £m nominal | D18: =SUM(D9:D17) -> 520.9116991 | E18: =SUM(E9:E17) -> 537.4951529 | F18: 582.0134183 | G18: 519.7957114 | H18: 553 | I18: 625 | J18: 766 | K18: 944
B19: Operational Costs Incurred | C19: £m nominal | D19: 1187 | E19: 1153 | F19: 1178 | G19: 1129 | H19: 1128 | I19: 1182 | J19: 1191 | K19: 1174
A20: 1 | B20: [Input description] | C20: £m nominal | D20: 0 | E20: 0 | F20: 0 | G20: 0 | H20: 0 | I20: 0 | J20: 0 | K20: 0
A21: 2 | B21: [Input description] | C21: £m nominal | D21: 0 | E21: 0 | F21: 0 | G21: 0 | H21: 0 | I21: 0 | J21: 0 | K21: 0
A22: 3 | B22: [Input description] | C22: £m nominal | D22: 0 | E22: 0 | F22: 0 | G22: 0 | H22: 0 | I22: 0 | J22: 0 | K22: 0
B23: Total Expenditure Incurred | C23: £m nominal | D23: =SUM(D18:D22) -> 1707.911699 | E23: =SUM(E18:E22) -> 1690.495153 | F23: 1760.013418 | G23: 1648.795711 | H23: 1681 | I23: 1807 | J23: 1957 | K23: 2118
B25: Reconciling Items to Total Net costs after non-price control allocations | C25: £m nominal
A26: 1 | B26: Total expenditure relating to excluded services (deminimis, excluded, consented and meter reading) | C26: £m nominal | D26: -88.77479166 | E26: -86.64717082 | F26: -66.48738517 | G26: -42.34823526 | H26: -33 | I26: -31.2133087 | J26: -29.41254488 | K26: -13.51016604
A27: 2 | B27: Depreciation & amortisation of Intangibles | C27: £m nominal | D27: -271 | E27: -287 | F27: -298 | G27: -309 | H27: -305 | I27: -319 | J27: -343 | K27: -376
A28: 3 | B28: Customer Contribution Amortisation | C28: £m nominal | D28: 21.10836141 | E28: 21.59868519 | F28: 22.23225969 | G28: 22.23225969 | H28: 20.73451775 | I28: 0 | J28: 0 | K28: 0
A29: 4 | B29: Total expenditure relating to Metering business | C29: £m nominal | D29: -215 | E29: -199 | F29: -179 | G29: 0 | H29: 0 | I29: 0 | J29: 0 | K29: 0
A30: 5 | B30: Inter business unit charging elimination | C30: £m nominal | D30: 45.70734259 | E30: 36.43455694 | F30: 27.3579207 | G30: 0 | H30: 0 | I30: 0 | J30: 0 | K30: 0
A31: 6 | B31: Profit / (Loss) on disposal | C31: £m nominal | D31: 83 | E31: 40 | F31: 0 | G31: -11 | H31: 0.4511035798 | I31: 2 | J31: 3 | K31: 1
A32: 7 | B32: Cadent Total GSOP Payments | C32: £m nominal | D32: -1.802924563 | E32: -2.269957382 | F32: -2.87115647 | G32: -3.112271917 | H32: -2.916930748 | I32: -3.31741929 | J32: -5.00557129 | K32: -2.35883085
A33: 8 | B33: Network Innovation Competition Costs | C33: £m nominal | D33: 0 | E33: 0 | F33: 0 | G33: -0.03567741 | H33: -1.06975698 | I33: -0.72411407 | J33: -0.99611846 | K33: 0.28220298
A34: 9 | B34: Supplier of Last Resort (SoLR) | C34: £m nominal | D34: 0 | E34: 0 | F34: 0 | G34: 0 | H34: 0 | I34: -3.18509389 | J34: -3.1000725 | K34: -3.94609369
A35: 10 | B35: Cash typical adjustments (provision movements) | C35: £m nominal | D35: -30 | E35: -1 | F35: 0 | G35: -15 | H35: -1 | I35: -6 | J35: -39 | K35: 8.65084533
A36: 11 | B36: Atypical items - Separation expenditure (Opex) | C36: £m nominal | D36: 0 | E36: 0 | F36: 0 | G36: -4.91904316 | H36: -21.22645788 | I36: -17.52971129 | J36: -19 | K36: -7
A37: 12 | B37: Atypical items - Separation expenditure (Capex) | C37: £m nominal | D37: 0 | E37: 0 | F37: 0 | G37: 0 | H37: 0 | I37: 0 | J37: -5.92985427 | K37: -2.2169228
A38: 13 | B38: Atypical Items - Grenfell investigation | C38: £m nominal | D38: 0 | E38: 0 | F38: 0 | G38: 0 | H38: -1.35563067 | I38: -1.09242274 | J38: 0.73110853 | K38: -0.23005095
A39: 14 | B39: Atypical Items - Energy Savings Trust contributions | C39: £m nominal | D39: 0 | E39: 0 | F39: 0 | G39: 0 | H39: 0 | I39: -8.9 | J39: 0 | K39: 0
A40: 15 | B40: Atypical Items - HRB recovery programme costs | C40: £m nominal | D40: 0 | E40: 0 | F40: 0 | G40: 0 | H40: 0 | I40: -3.67517683 | J40: -0.08331893 | K40: 0
A41: 16 | B41: Atypical Items - Guaranteed minimum pensions payments | C41: £m nominal | D41: 0 | E41: 0 | F41: 0 | G41: 0 | H41: 0 | I41: -14 | J41: 0 | K41: -0.7
A42: 17 | B42: Atypical Items - Service transformation costs | C42: £m nominal | D42: 0 | E42: 0 | F42: 0 | G42: 0 | H42: 0 | I42: -0.61276066 | J42: 0 | K42: 0
A43: 18 | B43: Atypical Items - Donation to National Energy Action | C43: £m nominal | D43: 0 | E43: 0 | F43: -3 | G43: 0 | H43: 0 | I43: 0 | J43: 0 | K43: 0
A44: 19 | B44: Atypical items - Legal fines and penalties | C44: £m nominal | D44: 0 | E44: 0 | F44: -3 | G44: 0 | H44: 0 | I44: 0 | J44: 0 | K44: 0
A45: 20 | B45: Atypical Items - Enhanced GSOP payments | C45: £m nominal | D45: 0 | E45: 0 | F45: 0 | G45: 0 | H45: -1.33857 | I45: 0 | J45: 0 | K45: 0
A46: 21 | B46: Atypical Items - Establishment of a Community Fund | C46: £m nominal | D46: 0 | E46: 0 | F46: 0 | G46: 0 | H46: 0 | I46: -4.123628 | J46: -5.691342 | K46: -8.48665578
A47: 22 | B47: IFRS 16 Impact | C47: £m nominal | D47: 0 | E47: 0 | F47: 0 | G47: 0 | H47: 0 | I47: 0 | J47: 4.03311072 | K47: 8
A48: 23 | B48: Total expenditure relating to other three networks | C48: £m nominal | D48: -837.1320106 | E48: -803.1382618 | F48: -845.9832223 | G48: -859.1018949 | H48: -904.1905044 | I48: -946.5945675 | J48: -1006.699428 | K48: -1144.778686
A49: 24 | B49: Connections Income (including Biogas connections income) | C49: £m nominal | D49: -3.889162016 | E49: -3.958381518 | F49: -4.494577302 | G49: -5.097148025 | H49: -5.406634202 | I49: -6.195993578 | J49: -5.858772536 | K49: -5.9658798
A50: 25 | B50: Ongoing Pension Costs Accrued under IAS 19 (-ve) | C50: £m nominal | D50: 1.217177529 | E50: 0.2580190355 | F50: -0.5507506714 | G50: -1.860962406 | H50: -3.093860856 | I50: 3.428641062 | J50: 0.0009406123932 | K50: 0.03276
A51: 26 | B51: Incremental pension deficit funding | C51: £m nominal | D51: 0 | E51: 0 | F51: 0 | G51: 0 | H51: 0.4058080369 | I51: 0.4297955701 | J51: 0.2680887519 | K51: -0.1092778868
A52: 27 | B52: Established pension deficit recovery plan payment | C52: £m nominal | D52: 0 | E52: 0 | F52: 0 | G52: 0 | H52: 12.99589902 | I52: 13.80918211 | J52: 8.398772361 | K52: 0.382648068
A53: 28 | B53: A grossing up of costs and revenue in the regulatory accounts | C53: £m nominal | D53: 0 | E53: 0 | F53: 0 | G53: -2.315338205 | H53: 0 | I53: 0 | J53: 0 | K53: 0
A54: 29 | B54: Adjustment for efficient level of fines | C54: £m nominal | D54: -0.5687007949 | E54: 0 | F54: 0 | G54: 0 | H54: 0 | I54: 0 | J54: 0 | K54: 0
A55: 30 | B55: Cash typical adjustments (Utilisation) | C55: £m nominal | D55: -1.275120517 | E55: 6.680534827 | F55: 5.20109839 | G55: 0.992360368 | H55: 2.786890693 | I55: 1.834204658 | J55: 7.063822179 | K55: 4.981760442
A56: 31 | B56: Cumulative impact of rounding in reg accounts | C56: £m nominal | D56: -0.4396448337 | E56: 1.225129883 | F56: 0.4325942051 | G56: -0.5561421694 | H56: -0.07188273061 | I56: 1.382949271 | J56: 1.324651379 | K56: 0.7502145915
A57: 32 | B57: 0 | C57: £m nominal | D57: 0 | E57: 0 | F57: 0 | G57: 0 | H57: 0 | I57: 0 | J57: 0 | K57: 0
A58: 33 | B58: 0 | C58: £m nominal | D58: 0 | E58: 0 | F58: 0 | G58: 0 | H58: 0 | I58: 0 | J58: 0 | K58: 0
A59: 34 | B59: 0 | C59: £m nominal | D59: 0 | E59: 0 | F59: 0 | G59: 0 | H59: 0 | I59: 0 | J59: 0 | K59: 0
A60: 35 | B60: 0 | C60: £m nominal | D60: 0 | E60: 0 | F60: 0 | G60: 0 | H60: 0 | I60: 0 | J60: 0 | K60: 0
B61: Total Reconciling Items | C61: £m nominal | D61: =SUM(D26:D60) -> -1298.849473 | E61: =SUM(E26:E60) -> -1276.816846 | F61: -1348.163219 | G61: -1231.122093 | H61: -1242.296009 | I61: -1343.279424 | J61: -1438.956529 | K61: -1541.222133
B63: Total Net costs after non-price control allocations | C63: £m nominal | D63: =D61+D23 -> 409.0622257 | E63: =E61+E23 -> 413.6783073 | F63: 411.8501993 | G63: 417.673618 | H63: 438.7039906 | I63: 463.7205762 | J63: 518.0434713 | K63: 576.7778674
B64: Total Costs per latest RRP submission | C64: £m nominal | D64: 409.0622257 | E64: 413.6783073 | F64: 411.8501993 | G64: 417.7251051 | H64: 438.7039906 | I64: 463.7205762 | J64: 518.0434713 | K64: 576.7778674
C65: check | D65: =IF(D$5="Actuals",IF(ABS(D63-D64)<1,"OK","ERROR"),"N/A") -> OK | E65: =IF(E$5="Actuals",IF(ABS(E63-E64)<1,"OK","ERROR"),"N/A") -> OK | F65: OK | G65: OK | H65: OK | I65: OK | J65: OK | K65: OK
B67: Reconciling Items to Totex
A68: 1 | B68: Shrinkage | C68: £m nominal | D68: 10.71950434 | E68: 8.19850715 | F68: 5.67707158 | G68: 5.727277251 | H68: 6.701000023 | I68: 8.372865425 | J68: 3.91895299 | K68: 4.33045128
A69: 2 | B69: Ofgem Licence | C69: £m nominal | D69: 2.255 | E69: 2.337892009 | F69: 2.436571837 | G69: 2.055419431 | H69: 2.66436537 | I69: 2.765858156 | J69: 3.0646799 | K69: 3.06803859
A70: 3 | B70: Network Rates | C70: £m nominal | D70: 60.472 | E70: 61.88025529 | F70: 63.28798595 | G70: 63.88986433 | H70: 63.16513294 | I70: 64.8671159 | J70: 78.419612 | K70: 71.5533312
A71: 4 | B71: Established pension deficit recovery plan payment | C71: £m nominal | D71: 2.350311606 | E71: 4.161 | F71: 4.181002136 | G71: 4.25335679 | H71: 12.96017004 | I71: 13.80918211 | J71: 8.398772361 | K71: 0.382648068
A72: 5 | B72: PPF levy costs | C72: £m nominal | D72: 0.02923737997 | E72: 0.247 | F72: 0.01912526287 | G72: 0.02044004757 | H72: 0.0357289799 | I72: 0.05776876047 | J72: 0.03619331882 | K72: 0.0548505216
A73: 6 | B73: Pension scheme administration costs | C73: £m nominal | D73: 0.2010069873 | E73: 0.214 | F73: 0.2139637098 | G73: 0.2141917254 | H73: 1.05325748 | I73: 1.195112581 | J73: 0.8603789964 | K73: 1.205726491
A74: 7 | B74: NTS Pension Recharge | C74: £m nominal | D74: 7.529 | E74: 7.833468455 | F74: 10.98460426 | G74: 11.04162505 | H74: 7.10144247 | I74: 7.340064 | J74: 0 | K74: 0
A75: 8 | B75: Bad debt | C75: £m nominal | D75: 0.06339931681 | E75: 0.183286374 | F75: -0.472841848 | G75: 0.2542679548 | H75: 0.6166123794 | I75: 0.03773307769 | J75: 0.2144078747 | K75: 1.97345637
A76: 9 | B76: NTS exit costs | C76: £m nominal | D76: 26.804 | E76: 25.64830559 | F76: 23.16710006 | G76: 24.77708606 | H76: 25.42635765 | I76: 19.69204463 | J76: 21.83865456 | K76: 40.91412688
A77: 10 | B77: Network Innovation (ex IRM) | C77: £m nominal | D77: 1.038329232 | E77: 2.996861206 | F77: 3.230706951 | G77: 2.791258095 | H77: 2.689153893 | I77: 1.781474126 | J77: 2.23146016 | K77: 2.88
A78: 11 | B78: Innovation Roll-out expenditure (IRM) | C78: £m nominal | D78: 0 | E78: 0 | F78: 0 | G78: 0 | H78: 0 | I78: 0 | J78: 0 | K78: 0
A79: 12 | B79: Unfunded Network Innovation | C79: £m nominal | D79: 0 | E79: 0.002678945 | F79: 0 | G79: 0.3595191746 | H79: 0.2547386296 | I79: 0.2495810936 | J79: 0.5102937199 | K79: -1.003161375
A80: 13 | B80: SIU Gas Cost Price Differential | C80: £m nominal | D80: 0 | E80: 0 | F80: 0 | G80: 0.0008982225 | H80: 0.00015525 | I80: 0 | J80: 0 | K80: 0
A81: 14 | B81: [Input description] | C81: £m nominal | D81: 0 | E81: 0 | F81: 0 | G81: 0 | H81: 0 | I81: 0 | J81: 0 | K81: 0
A82: 15 | B82: [Input description] | C82: £m nominal | D82: 0 | E82: 0 | F82: 0 | G82: 0 | H82: 0 | I82: 0 | J82: 0 | K82: 0
A83: 16 | B83: [Input description] | C83: £m nominal | D83: 0 | E83: 0 | F83: 0 | G83: 0 | H83: 0 | I83: 0 | J83: 0 | K83: 0
A84: 17 | B84: [Input description] | C84: £m nominal | D84: 0 | E84: 0 | F84: 0 | G84: 0 | H84: 0 | I84: 0 | J84: 0 | K84: 0
A85: 18 | B85: [Input description] | C85: £m nominal | D85: 0 | E85: 0 | F85: 0 | G85: 0 | H85: 0 | I85: 0 | J85: 0 | K85: 0
A86: 19 | B86: [Input description] | C86: £m nominal | D86: 0 | E86: 0 | F86: 0 | G86: 0 | H86: 0 | I86: 0 | J86: 0 | K86: 0
A87: 20 | B87: [Input description] | C87: £m nominal | D87: 0 | E87: 0 | F87: 0 | G87: 0 | H87: 0 | I87: 0 | J87: 0 | K87: 0
A88: 21 | B88: [Input description] | C88: £m nominal | D88: 0 | E88: 0 | F88: 0 | G88: 0 | H88: 0 | I88: 0 | J88: 0 | K88: 0
A89: 22 | B89: [Input description] | C89: £m nominal | D89: 0 | E89: 0 | F89: 0 | G89: 0 | H89: 0 | I89: 0 | J89: 0 | K89: 0
A90: 23 | B90: [Input description] | C90: £m nominal | D90: 0 | E90: 0 | F90: 0 | G90: 0 | H90: 0 | I90: 0 | J90: 0 | K90: 0
A91: 24 | B91: [Input description] | C91: £m nominal | D91: 0 | E91: 0 | F91: 0 | G91: 0 | H91: 0 | I91: 0 | J91: 0 | K91: 0
A92: 25 | B92: [Input description] | C92: £m nominal | D92: 0 | E92: 0 | F92: 0 | G92: 0 | H92: 0 | I92: 0 | J92: 0 | K92: 0
B93: Total reconciling items not recognised in totex | C93: £m nominal | D93: =SUM(D68:D92) -> 111.4617889 | E93: =SUM(E68:E92) -> 113.703255 | F93: 112.7252899 | G93: 115.3852041 | H93: 122.6681151 | I93: 120.1687999 | J93: 119.4934059 | K93: 125.359468
B95: PCFM Totex (excluding enduring value) | C95: £m nominal | D95: =D63-D93 -> 297.6004368 | E95: =E63-E93 -> 299.9750523 | F95: 299.1249094 | G95: 302.2884139 | H95: 316.0358755 | I95: 343.5517763 | J95: 398.5500654 | K95: 451.4183994
B96: RRP reported totex | C96: £m nominal | D96: ='R4 - Totex'!D90+'R4 - Totex'!D118 -> 297.6007938 | E96: ='R4 - Totex'!E90+'R4 - Totex'!E118 -> 299.9631144 | F96: ='R4 - Totex'!F90+'R4 - Totex'!F118 -> 299.1252954 | G96: ='R4 - Totex'!G90+'R4 - Totex'!G118 -> 302.2884139 | H96: ='R4 - Totex'!H90+'R4 - Totex'!H118 -> 316.0451627 | I96: ='R4 - Totex'!I90+'R4 - Totex'!I118 -> 343.5517763 | J96: ='R4 - Totex'!J90+'R4 - Totex'!J118 -> 398.5500654 | K96: ='R4 - Totex'!K90+'R4 - Totex'!K118 -> 451.4183994
C97: check | D97: =IF(D$5="Actuals",IF(ABS(D95-('R4 - Totex'!D90+'R4 - Totex'!D118))<'RFPR cover'!$F$14,"OK","Error"),"N/A") -> OK | E97: =IF(E$5="Actuals",IF(ABS(E95-('R4 - Totex'!E90+'R4 - Totex'!E118))<'RFPR cover'!$F$14,"OK","Error"),"N/A") -> OK | F97: =IF(F$5="Actuals",IF(ABS(F95-('R4 - Totex'!F90+'R4 - Totex'!F118))<'RFPR cover'!$F$14,"OK","Error"),"N/A") -> OK | G97: =IF(G$5="Actuals",IF(ABS(G95-('R4 - Totex'!G90+'R4 - Totex'!G118))<'RFPR cover'!$F$14,"OK","Error"),"N/A") -> OK | H97: =IF(H$5="Actuals",IF(ABS(H95-('R4 - Totex'!H90+'R4 - Totex'!H118))<'RFPR cover'!$F$14,"OK","Error"),"N/A") -> OK | I97: =IF(I$5="Actuals",IF(ABS(I95-('R4 - Totex'!I90+'R4 - Totex'!I118))<'RFPR cover'!$F$14,"OK","Error"),"N/A") -> OK | J97: =IF(J$5="Actuals",IF(ABS(J95-('R4 - Totex'!J90+'R4 - Totex'!J118))<'RFPR cover'!$F$14,"OK","Error"),"N/A") -> OK | K97: =IF(K$5="Actuals",IF(ABS(K95-('R4 - Totex'!K90+'R4 - Totex'!K118))<'RFPR cover'!$F$14,"OK","Error"),"N/A") -> OK

Sheet R4 - Totex
A1: R4 - Totex
A2: ='RFPR cover'!C5 -> Cadent-EOE
A3: ='RFPR cover'!C7 -> 2021
D5: =IF(D6<='RFPR cover'!$C$7,"Actuals","Forecast") -> Actuals | E5: =IF(E6<='RFPR cover'!$C$7,"Actuals","Forecast") -> Actuals | F5: =IF(F6<='RFPR cover'!$C$7,"Actuals","Forecast") -> Actuals | G5: =IF(G6<='RFPR cover'!$C$7,"Actuals","Forecast") -> Actuals | H5: =IF(H6<='RFPR cover'!$C$7,"Actuals","Forecast") -> Actuals | I5: =IF(I6<='RFPR cover'!$C$7,"Actuals","Forecast") -> Actuals | J5: =IF(J6<='RFPR cover'!$C$7,"Actuals","Forecast") -> Actuals | K5: =IF(K6<='RFPR cover'!$C$7,"Actuals","Forecast") -> Actuals
D6: ='RFPR cover'!$C$13 -> 2014 | E6: =D6+1 -> 2015 | F6: 2016 | G6: 2017 | H6: 2018 | I6: 2019 | J6: 2020 | K6: 2021 | L6: ="Cumulative to "&'RFPR cover'!$C$7 -> Cumulative to 2021 | M6: RIIO-1 period | N6: Enduring Value Appendix in Commentary
B8: Totex per the latest RRP submission
B10: =Data!B48 -> Totex excluding repex
B12: Latest Totex actuals/forecast | C12: ='RFPR cover'!$C$14 -> £m 09/10 | D12: 174.1778192 | E12: 164.8807987 | F12: 157.2201049 | G12: 166.2641848 | H12: 163.6877044 | I12: 164.2268925 | J12: 179.0943185 | K12: 193.495898 | L12: =SUM(D12:INDEX(D12:K12,0,MATCH('RFPR cover'!$C$7,$D$6:$K$6,0))) -> 1363.047721 | M12: =SUM(D12:K12) -> 1363.047721
B13: Totex allowance including allowed adjustments and uncertainty mechanisms | C13: ='RFPR cover'!$C$14 -> £m 09/10 | D13: 169.2547855 | E13: 160.5408306 | F13: 156.6864079 | G13: 159.425413 | H13: 166.9839619 | I13: 160.4095504 | J13: 147.0052713 | K13: 141.5596057 | L13: =SUM(D13:INDEX(D13:K13,0,MATCH('RFPR cover'!$C$7,$D$6:$K$6,0))) -> 1261.865826 | M13: =SUM(D13:K13) -> 1261.865826
B14: Totex out(under)performance | C14: ='RFPR cover'!$C$14 -> £m 09/10 | D14: =D13-D12 -> -4.923033642 | E14: -4.339968111 | F14: -0.533697008 | G14: -6.83877178 | H14: 3.296257432 | I14: -3.817342022 | J14: -32.0890472 | K14: -51.93629237 | L14: -101.1818947 | M14: -101.1818947
B16: Funding Adjustment Rate (often referred to as 'sharing factor') | C16: % | D16: =1-INDEX(Data!$D$73:$D$100,MATCH('RFPR cover'!$C$5,Data!$B$73:$B$100,0),0) -> 0.3696 | E16: =1-INDEX(Data!$D$73:$D$100,MATCH('RFPR cover'!$C$5,Data!$B$73:$B$100,0),0) -> 0.3696 | F16: =1-INDEX(Data!$D$73:$D$100,MATCH('RFPR cover'!$C$5,Data!$B$73:$B$100,0),0) -> 0.3696 | G16: =1-INDEX(Data!$D$73:$D$100,MATCH('RFPR cover'!$C$5,Data!$B$73:$B$100,0),0) -> 0.3696 | H16: =1-INDEX(Data!$D$73:$D$100,MATCH('RFPR cover'!$C$5,Data!$B$73:$B$100,0),0) -> 0.3696 | I16: =1-INDEX(Data!$D$73:$D$100,MATCH('RFPR cover'!$C$5,Data!$B$73:$B$100,0),0) -> 0.3696 | J16: =1-INDEX(Data!$D$73:$D$100,MATCH('RFPR cover'!$C$5,Data!$B$73:$B$100,0),0) -> 0.3696 | K16: =1-INDEX(Data!$D$73:$D$100,MATCH('RFPR cover'!$C$5,Data!$B$73:$B$100,0),0) -> 0.3696
B18: Customer share of out(under) performance | C18: ='RFPR cover'!$C$14 -> £m 09/10 | D18: =D14*D16 -> -1.819553234 | E18: -1.604052214 | F18: -0.1972544142 | G18: -2.52761005 | H18: 1.218296747 | I18: -1.410889611 | J18: -11.86011185 | K18: -19.19565366 | L18: =SUM(D18:INDEX(D18:K18,0,MATCH('RFPR cover'!$C$7,$D$6:$K$6,0))) -> -37.39682828 | M18: =SUM(D18:K18) -> -37.39682828
B19: NWO share of performance | C19: ='RFPR cover'!$C$14 -> £m 09/10 | D19: =D14*(1-D16) -> -3.103480408 | E19: -2.735915897 | F19: -0.3364425939 | G19: -4.31116173 | H19: 2.077960685 | I19: -2.406452411 | J19: -20.22893536 | K19: -32.74063871 | L19: =SUM(D19:INDEX(D19:K19,0,MATCH('RFPR cover'!$C$7,$D$6:$K$6,0))) -> -63.78506642 | M19: =SUM(D19:K19) -> -63.78506642
B21: Enduring Value adjustments to Totex performance
A22: a | B22: Gas Holders | C22: ='RFPR cover'!$C$14 -> £m 09/10 | D22: 11.02286755 | E22: -0.7662956053 | F22: -1.709428658 | G22: -1.709428658 | H22: -1.709428658 | I22: -1.709428658 | J22: -1.709428658 | K22: -1.709428658 | L22: =SUM(D22:INDEX(D22:K22,0,MATCH('RFPR cover'!$C$7,$D$6:$K$6,0))) -> 0 | M22: =SUM(D22:K22) -> 0
A23: b | B23: Capex Enduring Value | C23: ='RFPR cover'!$C$14 -> £m 09/10 | D23: -22.58775959 | E23: -11.00995288 | F23: -7.260825953 | G23: -8.850338903 | H23: -12.96394211 | I23: -1.881697367 | J23: 22.79853999 | K23: 41.75597682 | L23: =SUM(D23:INDEX(D23:K23,0,MATCH('RFPR cover'!$C$7,$D$6:$K$6,0))) -> 0 | M23: 0
A24: c | B24: [Enduring Value adjustment] | C24: ='RFPR cover'!$C$14 -> £m 09/10 | D24: 0 | E24: 0 | F24: 0 | G24: 0 | H24: 0 | I24: 0 | J24: 0 | K24: 0 | L24: =SUM(D24:INDEX(D24:K24,0,MATCH('RFPR cover'!$C$7,$D$6:$K$6,0))) -> 0 | M24: 0
A25: d | B25: [Enduring Value adjustment] | C25: ='RFPR cover'!$C$14 -> £m 09/10 | D25: 0 | E25: 0 | F25: 0 | G25: 0 | H25: 0 | I25: 0 | J25: 0 | K25: 0 | L25: =SUM(D25:INDEX(D25:K25,0,MATCH('RFPR cover'!$C$7,$D$6:$K$6,0))) -> 0 | M25: 0
A26: e | B26: [Enduring Value adjustment] | C26: ='RFPR cover'!$C$14 -> £m 09/10 | D26: 0 | E26: 0 | F26: 0 | G26: 0 | H26: 0 | I26: 0 | J26: 0 | K26: 0 | L26: =SUM(D26:INDEX(D26:K26,0,MATCH('RFPR cover'!$C$7,$D$6:$K$6,0))) -> 0 | M26: 0
A27: f | B27: [Enduring Value adjustment] | C27: ='RFPR cover'!$C$14 -> £m 09/10 | D27: 0 | E27: 0 | F27: 0 | G27: 0 | H27: 0 | I27: 0 | J27: 0 | K27: 0 | L27: =SUM(D27:INDEX(D27:K27,0,MATCH('RFPR cover'!$C$7,$D$6:$K$6,0))) -> 0 | M27: 0
B28: Total enduring value adjustments | C28: ='RFPR cover'!$C$14 -> £m 09/10 | D28: =SUM(D22:D27) -> -11.56489204 | E28: -11.77624848 | F28: -8.970254611 | G28: -10.55976756 | H28: -14.67337077 | I28: -3.591126025 | J28: 21.08911133 | K28: 40.04654816 | L28: =SUM(D28:INDEX(D28:K28,0,MATCH('RFPR cover'!$C$7,$D$6:$K$6,0))) -> 0 | M28: 0
B30: Enduring Value: Customer share of performance | C30: ='RFPR cover'!$C$14 -> £m 09/10 | D30: =D28*D16 -> -4.274384098 | E30: -4.352501438 | F30: -3.315406104 | G30: -3.90289009 | H30: -5.423277836 | I30: -1.327280179 | J30: 7.794535547 | K30: 14.8012042 | L30: =SUM(D30:INDEX(D30:K30,0,MATCH('RFPR cover'!$C$7,$D$6:$K$6,0))) -> 0 | M30: =SUM(D30:K30) -> 0
B31: Enduring Value: NWO share of performance | C31: ='RFPR cover'!$C$14 -> £m 09/10 | D31: =D28*(1-D16) -> -7.290507941 | E31: -7.423747042 | F31: -5.654848507 | G31: -6.65687747 | H31: -9.250092933 | I31: -2.263845846 | J31: 13.29457578 | K31: 25.24534396 | L31: =SUM(D31:INDEX(D31:K31,0,MATCH('RFPR cover'!$C$7,$D$6:$K$6,0))) -> 0 | M31: =SUM(D31:K31) -> 0
B33: Total out(under) performance (including enduring value adjustments)
B34: Customer share of performance | C34: ='RFPR cover'!$C$14 -> £m 09/10 | D34: =D18+D30 -> -6.093937332 | E34: -5.956553652 | F34: -3.512660518 | G34: -6.43050014 | H34: -4.204981089 | I34: -2.73816979 | J34: -4.065576299 | K34: -4.394449463 | L34: =SUM(D34:INDEX(D34:K34,0,MATCH('RFPR cover'!$C$7,$D$6:$K$6,0))) -> -37.39682828 | M34: =SUM(D34:K34) -> -37.39682828
B35: NWO share of performance | C35: ='RFPR cover'!$C$14 -> £m 09/10 | D35: -10.39398835 | E35: -10.15966294 | F35: -5.9912911 | G35: -10.9680392 | H35: -7.172132248 | I35: -4.670298257 | J35: -6.934359574 | K35: -7.495294755 | L35: =SUM(D35:INDEX(D35:K35,0,MATCH('RFPR cover'!$C$7,$D$6:$K$6,0))) -> -63.78506642 | M35: =SUM(D35:K35) -> -63.78506642
B36: Total | C36: ='RFPR cover'!$C$14 -> £m 09/10 | D36: =SUM(D34:D35) -> -16.48792568 | E36: -16.11621659 | F36: -9.503951619 | G36: -17.39853934 | H36: -11.37711334 | I36: -7.408468047 | J36: -10.99993587 | K36: -11.88974422 | L36: =SUM(D36:INDEX(D36:K36,0,MATCH('RFPR cover'!$C$7,$D$6:$K$6,0))) -> -101.1818947 | M36: =SUM(D36:K36) -> -101.1818947
B38: =Data!B51 -> Repex
B40: Latest Totex actuals/forecast | C40: ='RFPR cover'!$C$14 -> £m 09/10 | D40: 80.90367782 | E40: 87.28306071 | F40: 91.55845298 | G40: 79.8710352 | H40: 84.36661415 | I40: 97.42168828 | J40: 116.7815424 | K40: 137.6126008 | L40: =SUM(D40:INDEX(D40:K40,0,MATCH('RFPR cover'!$C$7,$D$6:$K$6,0))) -> 775.7986724 | M40: =SUM(D40:K40) -> 775.7986724
B41: Totex allowance including allowed adjustments and uncertainty mechanisms | C41: ='RFPR cover'!$C$14 -> £m 09/10 | D41: 108.9463372 | E41: 107.78066 | F41: 110.1466317 | G41: 109.2795427 | H41: 110.7366513 | I41: 110.3690166 | J41: 111.5678412 | K41: 111.4424735 | L41: =SUM(D41:INDEX(D41:K41,0,MATCH('RFPR cover'!$C$7,$D$6:$K$6,0))) -> 880.2691541 | M41: =SUM(D41:K41) -> 880.2691541
B42: Totex out(under)performance | C42: ='RFPR cover'!$C$14 -> £m 09/10 | D42: =D41-D40 -> 28.04265934 | E42: 20.49759932 | F42: 18.58817874 | G42: 29.40850746 | H42: 26.37003711 | I42: 12.94732831 | J42: -5.213701253 | K42: -26.17012733 | L42: 104.4704817 | M42: 104.4704817
B44: Funding Adjustment Rate (often referred to as 'sharing factor') | C44: % | D44: =1-INDEX(Data!$D$73:$D$100,MATCH('RFPR cover'!$C$5,Data!$B$73:$B$100,0),0) -> 0.3696 | E44: =1-INDEX(Data!$D$73:$D$100,MATCH('RFPR cover'!$C$5,Data!$B$73:$B$100,0),0) -> 0.3696 | F44: =1-INDEX(Data!$D$73:$D$100,MATCH('RFPR cover'!$C$5,Data!$B$73:$B$100,0),0) -> 0.3696 | G44: =1-INDEX(Data!$D$73:$D$100,MATCH('RFPR cover'!$C$5,Data!$B$73:$B$100,0),0) -> 0.3696 | H44: =1-INDEX(Data!$D$73:$D$100,MATCH('RFPR cover'!$C$5,Data!$B$73:$B$100,0),0) -> 0.3696 | I44: =1-INDEX(Data!$D$73:$D$100,MATCH('RFPR cover'!$C$5,Data!$B$73:$B$100,0),0) -> 0.3696 | J44: =1-INDEX(Data!$D$73:$D$100,MATCH('RFPR cover'!$C$5,Data!$B$73:$B$100,0),0) -> 0.3696 | K44: =1-INDEX(Data!$D$73:$D$100,MATCH('RFPR cover'!$C$5,Data!$B$73:$B$100,0),0) -> 0.3696
B46: Customer share of out(under) performance | C46: ='RFPR cover'!$C$14 -> £m 09/10 | D46: =D42*D44 -> 10.36456689 | E46: 7.575912707 | F46: 6.870190862 | G46: 10.86938436 | H46: 9.746365714 | I46: 4.785332542 | J46: -1.926983983 | K46: -9.672479059 | L46: =SUM(D46:INDEX(D46:K46,0,MATCH('RFPR cover'!$C$7,$D$6:$K$6,0))) -> 38.61229003 | M46: =SUM(D46:K46) -> 38.61229003
B47: NWO share of performance | C47: ='RFPR cover'!$C$14 -> £m 09/10 | D47: =D42*(1-D44) -> 17.67809245 | E47: 12.92168661 | F47: 11.71798788 | G47: 18.5391231 | H47: 16.62367139 | I47: 8.161995764 | J47: -3.28671727 | K47: -16.49764827 | L47: =SUM(D47:INDEX(D47:K47,0,MATCH('RFPR cover'!$C$7,$D$6:$K$6,0))) -> 65.85819165 | M47: =SUM(D47:K47) -> 65.85819165
B49: Enduring Value adjustments to Totex performance
A50: a | B50: Repex Enduring Value | C50: ='RFPR cover'!$C$14 -> £m 09/10 | D50: -12.61084119 | E50: -7.848349826 | F50: 4.864011906 | G50: -9.351716575 | H50: -8.690119618 | I50: 9.773562219 | J50: 23.47139468 | K50: 0.3920583979 | L50: =SUM(D50:INDEX(D50:K50,0,MATCH('RFPR cover'!$C$7,$D$6:$K$6,0))) -> 1.484368184e-13 | M50: =SUM(D50:K50) -> 1.484368184e-13
A51: b | B51: [Enduring Value adjustment] | C51: ='RFPR cover'!$C$14 -> £m 09/10 | D51: 0 | E51: 0 | F51: 0 | G51: 0 | H51: 0 | I51: 0 | J51: 0 | K51: 0 | L51: =SUM(D51:INDEX(D51:K51,0,MATCH('RFPR cover'!$C$7,$D$6:$K$6,0))) -> 0 | M51: 0
A52: c | B52: [Enduring Value adjustment] | C52: ='RFPR cover'!$C$14 -> £m 09/10 | D52: 0 | E52: 0 | F52: 0 | G52: 0 | H52: 0 | I52: 0 | J52: 0 | K52: 0 | L52: =SUM(D52:INDEX(D52:K52,0,MATCH('RFPR cover'!$C$7,$D$6:$K$6,0))) -> 0 | M52: 0
A53: d | B53: [Enduring Value adjustment] | C53: ='RFPR cover'!$C$14 -> £m 09/10 | D53: 0 | E53: 0 | F53: 0 | G53: 0 | H53: 0 | I53: 0 | J53: 0 | K53: 0 | L53: =SUM(D53:INDEX(D53:K53,0,MATCH('RFPR cover'!$C$7,$D$6:$K$6,0))) -> 0 | M53: 0
A54: e | B54: [Enduring Value adjustment] | C54: ='RFPR cover'!$C$14 -> £m 09/10 | D54: 0 | E54: 0 | F54: 0 | G54: 0 | H54: 0 | I54: 0 | J54: 0 | K54: 0 | L54: =SUM(D54:INDEX(D54:K54,0,MATCH('RFPR cover'!$C$7,$D$6:$K$6,0))) -> 0 | M54: 0
A55: f | B55: [Enduring Value adjustment] | C55: ='RFPR cover'!$C$14 -> £m 09/10 | D55: 0 | E55: 0 | F55: 0 | G55: 0 | H55: 0 | I55: 0 | J55: 0 | K55: 0 | L55: =SUM(D55:INDEX(D55:K55,0,MATCH('RFPR cover'!$C$7,$D$6:$K$6,0))) -> 0 | M55: 0
B56: Total enduring value adjustments | C56: ='RFPR cover'!$C$14 -> £m 09/10 | D56: =SUM(D50:D55) -> -12.61084119 | E56: -7.848349826 | F56: 4.864011906 | G56: -9.351716575 | H56: -8.690119618 | I56: 9.773562219 | J56: 23.47139468 | K56: 0.3920583979 | L56: =SUM(D56:INDEX(D56:K56,0,MATCH('RFPR cover'!$C$7,$D$6:$K$6,0))) -> 1.484368184e-13 | M56: 1.484368184e-13
B58: Enduring Value: Customer share of performance | C58: ='RFPR cover'!$C$14 -> £m 09/10 | D58: =D56*D44 -> -4.660966902 | E58: -2.900750096 | F58: 1.797738801 | G58: -3.456394446 | H58: -3.211868211 | I58: 3.612308596 | J58: 8.675027474 | K58: 0.1449047839 | L58: =SUM(D58:INDEX(D58:K58,0,MATCH('RFPR cover'!$C$7,$D$6:$K$6,0))) -> 5.373479439e-14 | M58: =SUM(D58:K58) -> 5.373479439e-14
B59: Enduring Value: NWO share of performance | C59: ='RFPR cover'!$C$14 -> £m 09/10 | D59: =D56*(1-D44) -> -7.949874284 | E59: -4.94759973 | F59: 3.066273106 | G59: -5.895322129 | H59: -5.478251407 | I59: 6.161253623 | J59: 14.79636721 | K59: 0.2471536141 | L59: =SUM(D59:INDEX(D59:K59,0,MATCH('RFPR cover'!$C$7,$D$6:$K$6,0))) -> 9.292566716e-14 | M59: =SUM(D59:K59) -> 9.292566716e-14
B61: Total out(under) performance (including enduring value adjustments)
B62: Customer share of performance | C62: ='RFPR cover'!$C$14 -> £m 09/10 | D62: =D46+D58 -> 5.70359999 | E62: 4.675162611 | F62: 8.667929662 | G62: 7.41298991 | H62: 6.534497504 | I62: 8.397641138 | J62: 6.748043491 | K62: -9.527574275 | L62: =SUM(D62:INDEX(D62:K62,0,MATCH('RFPR cover'!$C$7,$D$6:$K$6,0))) -> 38.61229003 | M62: =SUM(D62:K62) -> 38.61229003
B63: NWO share of performance | C63: ='RFPR cover'!$C$14 -> £m 09/10 | D63: 9.728218165 | E63: 7.974086878 | F63: 14.78426098 | G63: 12.64380097 | H63: 11.14541998 | I63: 14.32324939 | J63: 11.50964994 | K63: -16.25049465 | L63: =SUM(D63:INDEX(D63:K63,0,MATCH('RFPR cover'!$C$7,$D$6:$K$6,0))) -> 65.85819165 | M63: =SUM(D63:K63) -> 65.85819165
B64: Total | C64: ='RFPR cover'!$C$14 -> £m 09/10 | D64: =SUM(D62:D63) -> 15.43181816 | E64: 12.64924949 | F64: 23.45219064 | G64: 20.05679088 | H64: 17.67991749 | I64: 22.72089053 | J64: 18.25769343 | K64: -25.77806893 | L64: =SUM(D64:INDEX(D64:K64,0,MATCH('RFPR cover'!$C$7,$D$6:$K$6,0))) -> 104.4704817 | M64: =SUM(D64:K64) -> 104.4704817
B66: Totex Summary
B68: Total out(under) performance (including enduring value adjustments)
B69: Customer share of performance | C69: ='RFPR cover'!$C$14 -> £m 09/10 | D69: =D34+D62 -> -0.3903373416 | E69: -1.281391041 | F69: 5.155269144 | G69: 0.9824897693 | H69: 2.329516414 | I69: 5.659471348 | J69: 2.682467192 | K69: -13.92202374 | L69: =SUM(D69:INDEX(D69:K69,0,MATCH('RFPR cover'!$C$7,$D$6:$K$6,0))) -> 1.215461747 | M69: =SUM(D69:K69) -> 1.215461747
B70: NWO share of performance | C70: ='RFPR cover'!$C$14 -> £m 09/10 | D70: -0.6657701843 | E70: -2.185576061 | F70: 8.792969882 | G70: 1.675761771 | H70: 3.973287737 | I70: 9.652951131 | J70: 4.575290362 | K70: -23.74578941 | L70: =SUM(D70:INDEX(D70:K70,0,MATCH('RFPR cover'!$C$7,$D$6:$K$6,0))) -> 2.073125231 | M70: =SUM(D70:K70) -> 2.073125231
B71: Total | C71: ='RFPR cover'!$C$14 -> £m 09/10 | D71: =SUM(D69:D70) -> -1.056107526 | E71: -3.466967102 | F71: 13.94823903 | G71: 2.65825154 | H71: 6.302804151 | I71: 15.31242248 | J71: 7.257757555 | K71: -37.66781314 | L71: =SUM(D71:INDEX(D71:K71,0,MATCH('RFPR cover'!$C$7,$D$6:$K$6,0))) -> 3.288586978 | M71: =SUM(D71:K71) -> 3.288586978
B74: IQI Additional Income
B75: Additional Income is Pre-tax for Fast Track companies and Post-tax for Slow Track.
B77: IQI Additional Income per PCFM | C77: ='RFPR cover'!$C$14 -> £m 09/10 | D77: =INDEX(Data!$C$119:$L$146,MATCH('RFPR cover'!$C$5,Data!$B$119:$B$146,0),MATCH('R4 - Totex'!D$6,Data!$C$118:$L$118,0)) -> 1.437155607 | E77: =INDEX(Data!$C$119:$L$146,MATCH('RFPR cover'!$C$5,Data!$B$119:$B$146,0),MATCH('R4 - Totex'!E$6,Data!$C$118:$L$118,0)) -> 1.371801563 | F77: =INDEX(Data!$C$119:$L$146,MATCH('RFPR cover'!$C$5,Data!$B$119:$B$146,0),MATCH('R4 - Totex'!F$6,Data!$C$118:$L$118,0)) -> 1.350766011 | G77: =INDEX(Data!$C$119:$L$146,MATCH('RFPR cover'!$C$5,Data!$B$119:$B$146,0),MATCH('R4 - Totex'!G$6,Data!$C$118:$L$118,0)) -> 1.356812199 | H77: =INDEX(Data!$C$119:$L$146,MATCH('RFPR cover'!$C$5,Data!$B$119:$B$146,0),MATCH('R4 - Totex'!H$6,Data!$C$118:$L$118,0)) -> 1.359813639 | I77: =INDEX(Data!$C$119:$L$146,MATCH('RFPR cover'!$C$5,Data!$B$119:$B$146,0),MATCH('R4 - Totex'!I$6,Data!$C$118:$L$118,0)) -> 1.350147507 | J77: =INDEX(Data!$C$119:$L$146,MATCH('RFPR cover'!$C$5,Data!$B$119:$B$146,0),MATCH('R4 - Totex'!J$6,Data!$C$118:$L$118,0)) -> 1.329843331 | K77: =INDEX(Data!$C$119:$L$146,MATCH('RFPR cover'!$C$5,Data!$B$119:$B$146,0),MATCH('R4 - Totex'!K$6,Data!$C$118:$L$118,0)) -> 1.317454096 | L77: =SUM(D77:INDEX(D77:K77,0,MATCH('RFPR cover'!$C$7,$D$6:$K$6,0))) -> 10.87379395 | M77: =SUM(D77:K77) -> 10.87379395
B78: Corporation tax rate when recognised in allowed revenue | C78: % | D78: =IF(INDEX(Data!$J$73:$J$100,MATCH('RFPR cover'!$C$5,Data!$B$73:$B$100,0),0)="Pre",INDEX(Data!$G$18:$G$27,MATCH('R4 - Totex'!D$6,Data!$C$18:$C$27,0),0),"n/a") -> 0.23 | E78: =IF(INDEX(Data!$J$73:$J$100,MATCH('RFPR cover'!$C$5,Data!$B$73:$B$100,0),0)="Pre",INDEX(Data!$G$18:$G$27,MATCH('R4 - Totex'!E$6,Data!$C$18:$C$27,0),0),"n/a") -> 0.21 | F78: =IF(INDEX(Data!$J$73:$J$100,MATCH('RFPR cover'!$C$5,Data!$B$73:$B$100,0),0)="Pre",INDEX(Data!$G$18:$G$27,MATCH('R4 - Totex'!F$6,Data!$C$18:$C$27,0),0),"n/a") -> 0.2 | G78: =IF(INDEX(Data!$J$73:$J$100,MATCH('RFPR cover'!$C$5,Data!$B$73:$B$100,0),0)="Pre",INDEX(Data!$G$18:$G$27,MATCH('R4 - Totex'!G$6,Data!$C$18:$C$27,0),0),"n/a") -> 0.2 | H78: =IF(INDEX(Data!$J$73:$J$100,MATCH('RFPR cover'!$C$5,Data!$B$73:$B$100,0),0)="Pre",INDEX(Data!$G$18:$G$27,MATCH('R4 - Totex'!H$6,Data!$C$18:$C$27,0),0),"n/a") -> 0.19 | I78: =IF(INDEX(Data!$J$73:$J$100,MATCH('RFPR cover'!$C$5,Data!$B$73:$B$100,0),0)="Pre",INDEX(Data!$G$18:$G$27,MATCH('R4 - Totex'!I$6,Data!$C$18:$C$27,0),0),"n/a") -> 0.19 | J78: =IF(INDEX(Data!$J$73:$J$100,MATCH('RFPR cover'!$C$5,Data!$B$73:$B$100,0),0)="Pre",INDEX(Data!$G$18:$G$27,MATCH('R4 - Totex'!J$6,Data!$C$18:$C$27,0),0),"n/a") -> 0.19 | K78: =IF(INDEX(Data!$J$73:$J$100,MATCH('RFPR cover'!$C$5,Data!$B$73:$B$100,0),0)="Pre",INDEX(Data!$G$18:$G$27,MATCH('R4 - Totex'!K$6,Data!$C$18:$C$27,0),0),"n/a") -> 0.19
B79: Post tax | C79: ='RFPR cover'!$C$14 -> £m 09/10 | D79: =IF(ISNUMBER(D78),D77*(1-D78),D77) -> 1.106609817 | E79: 1.083723235 | F79: 1.080612809 | G79: 1.085449759 | H79: 1.101449047 | I79: 1.09361948 | J79: 1.077173098 | K79: 1.067137818 | L79: =SUM(D79:INDEX(D79:K79,0,MATCH('RFPR cover'!$C$7,$D$6:$K$6,0))) -> 8.695775063 | M79: =SUM(D79:K79) -> 8.695775063
B84: £m Nominal
B86: =Data!B34 -> Financial Year Average RPI (RPIt) | C86: Index | D86: =Data!C$34 -> 1.166689067 | E86: =Data!D$34 -> 1.189556327 | F86: =Data!E$34 -> 1.202375711 | G86: =Data!F$34 -> 1.228139614 | H86: =Data!G$34 -> 1.274096595 | I86: =Data!H$34 -> 1.313027479 | J86: =Data!I$34 -> 1.347017848 | K86: =Data!J$34 -> 1.363354915
B88: =B10 -> Totex excluding repex
B90: Latest Totex actuals/forecast | C90: £m nominal | D90: =D12*D$86 -> 203.2113574 | E90: 196.1349973 | F90: 189.0376354 | G90: 204.1956316 | H90: 208.5539468 | I90: 215.6344225 | J90: 241.2432435 | K90: 263.8035837 | L90: =SUM(D90:INDEX(D90:K90,0,MATCH('RFPR cover'!$C$7,$D$6:$K$6,0))) -> 1721.814818 | M90: =SUM(D90:K90) -> 1721.814818
B91: Totex allowance including forecast allowed adjustments and uncertainty mechanisms | C91: £m nominal | D91: 197.4677079 | E91: 190.9723608 | F91: 188.395931 | G91: 195.7966651 | H91: 212.7536972 | I91: 210.6221476 | J91: 198.0187242 | K91: 192.9959842 | L91: =SUM(D91:INDEX(D91:K91,0,MATCH('RFPR cover'!$C$7,$D$6:$K$6,0))) -> 1587.023218 | M91: =SUM(D91:K91) -> 1587.023218
B92: Totex out(under)performance | C92: £m nominal | D92: =D91-D90 -> -5.743649529 | E92: -5.162636525 | F92: -0.6417043194 | G92: -8.398966531 | H92: 4.19975037 | I92: -5.01227497 | J92: -43.2245193 | K92: -70.80759949 | L92: -134.7916003 | M92: -134.7916003
B94: Funding Adjustment Rate (often referred to as 'sharing factor') | C94: % | D94: =1-INDEX(Data!$D$73:$D$100,MATCH('RFPR cover'!$C$5,Data!$B$73:$B$100,0),0) -> 0.3696 | E94: =1-INDEX(Data!$D$73:$D$100,MATCH('RFPR cover'!$C$5,Data!$B$73:$B$100,0),0) -> 0.3696 | F94: =1-INDEX(Data!$D$73:$D$100,MATCH('RFPR cover'!$C$5,Data!$B$73:$B$100,0),0) -> 0.3696 | G94: =1-INDEX(Data!$D$73:$D$100,MATCH('RFPR cover'!$C$5,Data!$B$73:$B$100,0),0) -> 0.3696 | H94: =1-INDEX(Data!$D$73:$D$100,MATCH('RFPR cover'!$C$5,Data!$B$73:$B$100,0),0) -> 0.3696 | I94: =1-INDEX(Data!$D$73:$D$100,MATCH('RFPR cover'!$C$5,Data!$B$73:$B$100,0),0) -> 0.3696 | J94: =1-INDEX(Data!$D$73:$D$100,MATCH('RFPR cover'!$C$5,Data!$B$73:$B$100,0),0) -> 0.3696 | K94: =1-INDEX(Data!$D$73:$D$100,MATCH('RFPR cover'!$C$5,Data!$B$73:$B$100,0),0) -> 0.3696
B96: Customer share of out(under) performance | C96: £m nominal | D96: =D92*D94 -> -2.122852866 | E96: -1.90811046 | F96: -0.2371739164 | G96: -3.10425803 | H96: 1.552227737 | I96: -1.852536829 | J96: -15.97578233 | K96: -26.17048877 | L96: =SUM(D96:INDEX(D96:K96,0,MATCH('RFPR cover'!$C$7,$D$6:$K$6,0))) -> -49.81897547 | M96: =SUM(D96:K96) -> -49.81897547
B97: NWO share of performance | C97: £m nominal | D97: =D92*(1-D94) -> -3.620796663 | E97: -3.254526065 | F97: -0.4045304029 | G97: -5.294708501 | H97: 2.647522633 | I97: -3.159738141 | J97: -27.24873697 | K97: -44.63711072 | L97: =SUM(D97:INDEX(D97:K97,0,MATCH('RFPR cover'!$C$7,$D$6:$K$6,0))) -> -84.97262483 | M97: =SUM(D97:K97) -> -84.97262483
B99: Enduring Value adjustments to Totex performance
A100: a | B100: =B22 -> Gas Holders | C100: £m nominal | D100: =D22*D$86 -> 12.86025906 | E100: -0.9115517856 | F100: -2.055375498 | G100: -2.099417051 | H100: -2.177977232 | I100: -2.244526801 | J100: -2.302630912 | K100: -2.330557963 | L100: =SUM(D100:INDEX(D100:K100,0,MATCH('RFPR cover'!$C$7,$D$6:$K$6,0))) -> -1.261778178 | M100: =SUM(D100:K100) -> -1.261778178
A101: b | B101: Capex Enduring Value | C101: £m nominal | D101: -26.35289217 | E101: -13.0969591 | F101: -8.730240766 | G101: -10.8694518 | H101: -16.5173145 | I101: -2.470720349 | J101: 30.71004027 | K101: 56.92821623 | L101: =SUM(D101:INDEX(D101:K101,0,MATCH('RFPR cover'!$C$7,$D$6:$K$6,0))) -> 9.600677809 | M101: 9.600677809
A102: c | B102: [Enduring Value adjustment] | C102: £m nominal | D102: 0 | E102: 0 | F102: 0 | G102: 0 | H102: 0 | I102: 0 | J102: 0 | K102: 0 | L102: =SUM(D102:INDEX(D102:K102,0,MATCH('RFPR cover'!$C$7,$D$6:$K$6,0))) -> 0 | M102: 0
A103: d | B103: [Enduring Value adjustment] | C103: £m nominal | D103: 0 | E103: 0 | F103: 0 | G103: 0 | H103: 0 | I103: 0 | J103: 0 | K103: 0 | L103: =SUM(D103:INDEX(D103:K103,0,MATCH('RFPR cover'!$C$7,$D$6:$K$6,0))) -> 0 | M103: 0
A104: e | B104: [Enduring Value adjustment] | C104: £m nominal | D104: 0 | E104: 0 | F104: 0 | G104: 0 | H104: 0 | I104: 0 | J104: 0 | K104: 0 | L104: =SUM(D104:INDEX(D104:K104,0,MATCH('RFPR cover'!$C$7,$D$6:$K$6,0))) -> 0 | M104: 0
A105: f | B105: [Enduring Value adjustment] | C105: £m nominal | D105: 0 | E105: 0 | F105: 0 | G105: 0 | H105: 0 | I105: 0 | J105: 0 | K105: 0 | L105: =SUM(D105:INDEX(D105:K105,0,MATCH('RFPR cover'!$C$7,$D$6:$K$6,0))) -> 0 | M105: 0
B106: Total enduring value adjustments | C106: £m nominal | D106: =SUM(D100:D105) -> -13.49263311 | E106: -14.00851089 | F106: -10.78561626 | G106: -12.96886885 | H106: -18.69529173 | I106: -4.71524715 | J106: 28.40740936 | K106: 54.59765827 | L106: =SUM(D106:INDEX(D106:K106,0,MATCH('RFPR cover'!$C$7,$D$6:$K$6,0))) -> 8.338899631 | M106: 8.338899631
B108: Enduring Value: Customer share of performance | C108: £m nominal | D108: =D106*D94 -> -4.986877196 | E108: -5.177545624 | F108: -3.986363771 | G108: -4.793293927 | H108: -6.909779825 | I108: -1.742755347 | J108: 10.4993785 | K108: 20.1792945 | L108: =SUM(D108:INDEX(D108:K108,0,MATCH('RFPR cover'!$C$7,$D$6:$K$6,0))) -> 3.082057304 | M108: =SUM(D108:K108) -> 3.082057304
B109: Enduring Value: NWO share of performance | C109: £m nominal | D109: =D106*(1-D94) -> -8.505755911 | E109: -8.830965264 | F109: -6.799252493 | G109: -8.175574924 | H109: -11.78551191 | I109: -2.972491803 | J109: 17.90803086 | K109: 34.41836377 | L109: =SUM(D109:INDEX(D109:K109,0,MATCH('RFPR cover'!$C$7,$D$6:$K$6,0))) -> 5.256842328 | M109: =SUM(D109:K109) -> 5.256842328
B111: Total out(under) performance (including enduring value adjustments)
B112: Customer share of performance | C112: £m nominal | D112: =D96+D108 -> -7.109730062 | E112: -7.085656084 | F112: -4.223537688 | G112: -7.897551957 | H112: -5.357552088 | I112: -3.595292176 | J112: -5.476403836 | K112: -5.991194275 | L112: =SUM(D112:INDEX(D112:K112,0,MATCH('RFPR cover'!$C$7,$D$6:$K$6,0))) -> -46.73691817 | M112: =SUM(D112:K112) -> -46.73691817
B113: NWO share of performance | C113: £m nominal | D113: -12.12655257 | E113: -12.08549133 | F113: -7.203782896 | G113: -13.47028343 | H113: -9.137989275 | I113: -6.132229945 | J113: -9.34070611 | K113: -10.21874694 | L113: =SUM(D113:INDEX(D113:K113,0,MATCH('RFPR cover'!$C$7,$D$6:$K$6,0))) -> -79.7157825 | M113: =SUM(D113:K113) -> -79.7157825
B114: Total | C114: £m nominal | D114: =SUM(D112:D113) -> -19.23628264 | E114: -19.17114741 | F114: -11.42732058 | G114: -21.36783538 | H114: -14.49554136 | I114: -9.72752212 | J114: -14.81710995 | K114: -16.20994122 | L114: =SUM(D114:INDEX(D114:K114,0,MATCH('RFPR cover'!$C$7,$D$6:$K$6,0))) -> -126.4527007 | M114: =SUM(D114:K114) -> -126.4527007
B116: =B38 -> Repex
B118: Latest Totex actuals/forecast | C118: £m nominal | D118: =D40*D$86 -> 94.38943642 | E118: 103.8281171 | F118: 110.08766 | G118: 98.0927823 | H118: 107.4912158 | I118: 127.9173537 | J118: 157.3068219 | K118: 187.6148157 | L118: =SUM(D118:INDEX(D118:K118,0,MATCH('RFPR cover'!$C$7,$D$6:$K$6,0))) -> 986.7282031 | M118: =SUM(D118:K118) -> 986.7282031
B119: Totex allowance including forecast allowed adjustments and uncertainty mechanisms | C119: £m nominal | D119: 127.1065005 | E119: 128.2111661 | F119: 132.4376346 | G119: 134.2105353 | H119: 141.0891903 | I119: 144.9175516 | J119: 150.2838733 | K119: 151.935644 | L119: =SUM(D119:INDEX(D119:K119,0,MATCH('RFPR cover'!$C$7,$D$6:$K$6,0))) -> 1110.192096 | M119: =SUM(D119:K119) -> 1110.192096
B120: Totex out(under)performance | C120: £m nominal | D120: =D119-D118 -> 32.71706407 | E120: 24.38304895 | F120: 22.34997462 | G120: 36.11775298 | H120: 33.59797449 | I120: 17.00019784 | J120: -7.022948642 | K120: -35.67917172 | L120: 123.4638926 | M120: 123.4638926
B122: Funding Adjustment Rate (often referred to as 'sharing factor') | C122: % | D122: =1-INDEX(Data!$D$73:$D$100,MATCH('RFPR cover'!$C$5,Data!$B$73:$B$100,0),0) -> 0.3696 | E122: =1-INDEX(Data!$D$73:$D$100,MATCH('RFPR cover'!$C$5,Data!$B$73:$B$100,0),0) -> 0.3696 | F122: =1-INDEX(Data!$D$73:$D$100,MATCH('RFPR cover'!$C$5,Data!$B$73:$B$100,0),0) -> 0.3696 | G122: =1-INDEX(Data!$D$73:$D$100,MATCH('RFPR cover'!$C$5,Data!$B$73:$B$100,0),0) -> 0.3696 | H122: =1-INDEX(Data!$D$73:$D$100,MATCH('RFPR cover'!$C$5,Data!$B$73:$B$100,0),0) -> 0.3696 | I122: =1-INDEX(Data!$D$73:$D$100,MATCH('RFPR cover'!$C$5,Data!$B$73:$B$100,0),0) -> 0.3696 | J122: =1-INDEX(Data!$D$73:$D$100,MATCH('RFPR cover'!$C$5,Data!$B$73:$B$100,0),0) -> 0.3696 | K122: =1-INDEX(Data!$D$73:$D$100,MATCH('RFPR cover'!$C$5,Data!$B$73:$B$100,0),0) -> 0.3696
B124: Customer share of out(under) performance | C124: £m nominal | D124: =D120*D122 -> 12.09222688 | E124: 9.011974893 | F124: 8.260550621 | G124: 13.3491215 | H124: 12.41781137 | I124: 6.283273123 | J124: -2.595681818 | K124: -13.18702187 | L124: =SUM(D124:INDEX(D124:K124,0,MATCH('RFPR cover'!$C$7,$D$6:$K$6,0))) -> 45.6322547 | M124: =SUM(D124:K124) -> 45.6322547
B125: NO share of performance | C125: £m nominal | D125: =D120*(1-D122) -> 20.62483719 | E125: 15.37107406 | F125: 14.089424 | G125: 22.76863148 | H125: 21.18016312 | I125: 10.71692472 | J125: -4.427266824 | K125: -22.49214985 | L125: =SUM(D125:INDEX(D125:K125,0,MATCH('RFPR cover'!$C$7,$D$6:$K$6,0))) -> 77.83163789 | M125: =SUM(D125:K125) -> 77.83163789
B127: Enduring Value adjustments to Totex performance
A128: a | B128: =B50 -> Repex Enduring Value | C128: £m nominal | D128: =D50*D$86 -> -14.71293054 | E128: -9.336054191 | F128: 5.848369773 | G128: -11.48521358 | H128: -11.07205181 | I128: 12.83295576 | J128: 31.61638755 | K128: 0.5345147439 | L128: =SUM(D128:INDEX(D128:K128,0,MATCH('RFPR cover'!$C$7,$D$6:$K$6,0))) -> 4.225977699 | M128: =SUM(D128:K128) -> 4.225977699
A129: b | B129: [Enduring Value adjustment] | C129: £m nominal | D129: 0 | E129: 0 | F129: 0 | G129: 0 | H129: 0 | I129: 0 | J129: 0 | K129: 0 | L129: =SUM(D129:INDEX(D129:K129,0,MATCH('RFPR cover'!$C$7,$D$6:$K$6,0))) -> 0 | M129: 0
A130: c | B130: [Enduring Value adjustment] | C130: £m nominal | D130: 0 | E130: 0 | F130: 0 | G130: 0 | H130: 0 | I130: 0 | J130: 0 | K130: 0 | L130: =SUM(D130:INDEX(D130:K130,0,MATCH('RFPR cover'!$C$7,$D$6:$K$6,0))) -> 0 | M130: 0
A131: d | B131: [Enduring Value adjustment] | C131: £m nominal | D131: 0 | E131: 0 | F131: 0 | G131: 0 | H131: 0 | I131: 0 | J131: 0 | K131: 0 | L131: =SUM(D131:INDEX(D131:K131,0,MATCH('RFPR cover'!$C$7,$D$6:$K$6,0))) -> 0 | M131: 0
A132: e | B132: [Enduring Value adjustment] | C132: £m nominal | D132: 0 | E132: 0 | F132: 0 | G132: 0 | H132: 0 | I132: 0 | J132: 0 | K132: 0 | L132: =SUM(D132:INDEX(D132:K132,0,MATCH('RFPR cover'!$C$7,$D$6:$K$6,0))) -> 0 | M132: 0
A133: f | B133: [Enduring Value adjustment] | C133: £m nominal | D133: 0 | E133: 0 | F133: 0 | G133: 0 | H133: 0 | I133: 0 | J133: 0 | K133: 0 | L133: =SUM(D133:INDEX(D133:K133,0,MATCH('RFPR cover'!$C$7,$D$6:$K$6,0))) -> 0 | M133: 0
B134: Total enduring value adjustments | C134: £m nominal | D134: =SUM(D128:D133) -> -14.71293054 | E134: -9.336054191 | F134: 5.848369773 | G134: -11.48521358 | H134: -11.07205181 | I134: 12.83295576 | J134: 31.61638755 | K134: 0.5345147439 | L134: =SUM(D134:INDEX(D134:K134,0,MATCH('RFPR cover'!$C$7,$D$6:$K$6,0))) -> 4.225977699 | M134: 4.225977699
B136: Enduring Value: Customer share of performance | C136: £m nominal | D136: =D134*D122 -> -5.437899128 | E136: -3.450605629 | F136: 2.161557468 | G136: -4.244934939 | H136: -4.092230351 | I136: 4.743060448 | J136: 11.68541684 | K136: 0.1975566493 | L136: =SUM(D136:INDEX(D136:K136,0,MATCH('RFPR cover'!$C$7,$D$6:$K$6,0))) -> 1.561921358 | M136: =SUM(D136:K136) -> 1.561921358
B137: Enduring Value: NWO share of performance | C137: £m nominal | D137: =D134*(1-D122) -> -9.275031414 | E137: -5.885448562 | F137: 3.686812305 | G137: -7.240278641 | H137: -6.979821464 | I137: 8.08989531 | J137: 19.93097071 | K137: 0.3369580946 | L137: =SUM(D137:INDEX(D137:K137,0,MATCH('RFPR cover'!$C$7,$D$6:$K$6,0))) -> 2.664056341 | M137: =SUM(D137:K137) -> 2.664056341
B139: Total out(under) performance (including enduring value adjustments)
B140: Customer share of performance | C140: £m nominal | D140: =D124+D136 -> 6.654327753 | E140: 5.561369264 | F140: 10.42210809 | G140: 9.104186563 | H140: 8.325581019 | I140: 11.02633357 | J140: 9.089735021 | K140: -12.98946522 | L140: =SUM(D140:INDEX(D140:K140,0,MATCH('RFPR cover'!$C$7,$D$6:$K$6,0))) -> 47.19417606 | M140: =SUM(D140:K140) -> 47.19417606
B141: NWO share of performance | C141: £m nominal | D141: 11.34980578 | E141: 9.485625498 | F141: 17.77623631 | G141: 15.52835284 | H141: 14.20034165 | I141: 18.80682003 | J141: 15.50370389 | K141: -22.15519176 | L141: =SUM(D141:INDEX(D141:K141,0,MATCH('RFPR cover'!$C$7,$D$6:$K$6,0))) -> 80.49569423 | M141: =SUM(D141:K141) -> 80.49569423
B142: Total | C142: £m nominal | D142: =SUM(D140:D141) -> 18.00413353 | E142: 15.04699476 | F142: 28.1983444 | G142: 24.6325394 | H142: 22.52592267 | I142: 29.8331536 | J142: 24.59343891 | K142: -35.14465698 | L142: =SUM(D142:INDEX(D142:K142,0,MATCH('RFPR cover'!$C$7,$D$6:$K$6,0))) -> 127.6898703 | M142: =SUM(D142:K142) -> 127.6898703
B144: Totex Summary
B146: Total out(under) performance (including enduring value adjustments)
B147: Customer share of performance | C147: £m nominal | D147: =D112+D140 -> -0.455402309 | E147: -1.52428682 | F147: 6.198570401 | G147: 1.206634606 | H147: 2.968028931 | I147: 7.431041395 | J147: 3.613331184 | K147: -18.98065949 | L147: =SUM(D147:INDEX(D147:K147,0,MATCH('RFPR cover'!$C$7,$D$6:$K$6,0))) -> 0.4572578952 | M147: =SUM(D147:K147) -> 0.4572578952
B148: NWO share of performance | C148: £m nominal | D148: -0.7767467954 | E148: -2.599865831 | F148: 10.57245341 | G148: 2.058069414 | H148: 5.062352376 | I148: 12.67459009 | J148: 6.162997778 | K148: -32.3739387 | L148: =SUM(D148:INDEX(D148:K148,0,MATCH('RFPR cover'!$C$7,$D$6:$K$6,0))) -> 0.7799117346 | M148: =SUM(D148:K148) -> 0.7799117346
B149: Total | C149: £m nominal | D149: =SUM(D147:D148) -> -1.232149104 | E149: -4.124152651 | F149: 16.77102381 | G149: 3.264704019 | H149: 8.030381308 | I149: 20.10563148 | J149: 9.776328962 | K149: -51.3545982 | L149: =SUM(D149:INDEX(D149:K149,0,MATCH('RFPR cover'!$C$7,$D$6:$K$6,0))) -> 1.23716963 | M149: =SUM(D149:K149) -> 1.23716963

Sheet R5 - Output Incentives
A1: R5 - Output Incentives
A2: ='RFPR cover'!C5 -> Cadent-EOE
A3: ='RFPR cover'!C7 -> 2021
D5: =IF(D6<='RFPR cover'!$C$7,"Actuals","Forecast") -> Actuals | E5: =IF(E6<='RFPR cover'!$C$7,"Actuals","Forecast") -> Actuals | F5: =IF(F6<='RFPR cover'!$C$7,"Actuals","Forecast") -> Actuals | G5: =IF(G6<='RFPR cover'!$C$7,"Actuals","Forecast") -> Actuals | H5: =IF(H6<='RFPR cover'!$C$7,"Actuals","Forecast") -> Actuals | I5: =IF(I6<='RFPR cover'!$C$7,"Actuals","Forecast") -> Actuals | J5: =IF(J6<='RFPR cover'!$C$7,"Actuals","Forecast") -> Actuals | K5: =IF(K6<='RFPR cover'!$C$7,"Actuals","Forecast") -> Actuals
D6: ='RFPR cover'!$C$13 -> 2014 | E6: =D6+1 -> 2015 | F6: =E6+1 -> 2016 | G6: 2017 | H6: 2018 | I6: 2019 | J6: 2020 | K6: 2021 | L6: ="Cumulative to "&'RFPR cover'!$C$7 -> Cumulative to 2021 | M6: RIIO-1 period
B8: Pre-tax Earned Incentives (Actuals may be updated once all incentives are determined)
B9: These values exclude any inflation, interest or time value of money adjustments
A11: a | B11: =Data!B153 -> Broad Measure of Customer Satisfaction | C11: ='RFPR cover'!$C$14 -> £m 09/10 | D11: 2.192413928 | E11: 1.417427831 | F11: 2.574973763 | G11: 3.354391025 | H11: 3.32399847 | I11: 3.224860207 | J11: 3.815077605 | K11: 3.428922816 | L11: =SUM(D11:INDEX(D11:K11,0,MATCH('RFPR cover'!$C$7,$D$6:$K$6,0))) -> 23.33206565 | M11: =SUM(D11:K11) -> 23.33206565
A12: b | B12: =Data!B154 -> Shrinkage Allowance Revenue Adjustment | C12: ='RFPR cover'!$C$14 -> £m 09/10 | D12: 0.7335884242 | E12: 0.538874375 | F12: 0.4718170532 | G12: 0.2887511439 | H12: 0.307459875 | I12: 0.5586941214 | J12: 0.2427800792 | K12: 0.6304626231 | L12: =SUM(D12:INDEX(D12:K12,0,MATCH('RFPR cover'!$C$7,$D$6:$K$6,0))) -> 3.772427695 | M12: 3.772427695
A13: c | B13: =Data!B155 -> Environment Emissions Incentive | C13: ='RFPR cover'!$C$14 -> £m 09/10 | D13: 2.279289045 | E13: 2.417746782 | F13: 2.646847908 | G13: 1.748295446 | H13: 1.651404334 | I13: 2.436523535 | J13: 2.28639803 | K13: 5.313785931 | L13: =SUM(D13:INDEX(D13:K13,0,MATCH('RFPR cover'!$C$7,$D$6:$K$6,0))) -> 20.78029101 | M13: 20.78029101
A14: d | B14: =Data!B156 -> Discretionary Reward Scheme | C14: ='RFPR cover'!$C$14 -> £m 09/10 | D14: 0.08211142279 | E14: 0.08211142279 | F14: 0.05212574592 | G14: 0.05212574592 | H14: 0.05212574592 | I14: 0 | J14: 0 | K14: 0 | L14: =SUM(D14:INDEX(D14:K14,0,MATCH('RFPR cover'!$C$7,$D$6:$K$6,0))) -> 0.3206000833 | M14: 0.3206000833
A15: e | B15: =Data!B157 -> NTS Exit Capacity | C15: ='RFPR cover'!$C$14 -> £m 09/10 | D15: 1.5443072 | E15: 4.67191973 | F15: 9.70199451 | G15: 6.74284177 | H15: 6.78905303 | I15: 7.04793862 | J15: 5.43049772 | K15: 4.07809886 | L15: =SUM(D15:INDEX(D15:K15,0,MATCH('RFPR cover'!$C$7,$D$6:$K$6,0))) -> 46.00665144 | M15: 46.00665144
A16: f | B16: =Data!B158 ->  | C16: ='RFPR cover'!$C$14 -> £m 09/10 | D16: 0 | E16: 0 | F16: 0 | G16: 0 | H16: 0 | I16: 0 | J16: 0 | K16: 0 | L16: =SUM(D16:INDEX(D16:K16,0,MATCH('RFPR cover'!$C$7,$D$6:$K$6,0))) -> 0 | M16: 0
A17: g | B17: =Data!B159 ->  | C17: ='RFPR cover'!$C$14 -> £m 09/10 | D17: 0 | E17: 0 | F17: 0 | G17: 0 | H17: 0 | I17: 0 | J17: 0 | K17: 0 | L17: =SUM(D17:INDEX(D17:K17,0,MATCH('RFPR cover'!$C$7,$D$6:$K$6,0))) -> 0 | M17: 0
B18: Earned Incentive revenue | C18: ='RFPR cover'!$C$14 -> £m 09/10 | D18: =SUM(D11:D17) -> 6.831710021 | E18: =SUM(E11:E17) -> 9.128080142 | F18: 15.44775898 | G18: 12.18640513 | H18: 12.12404145 | I18: 13.26801648 | J18: 11.77475343 | K18: 13.45127023 | L18: =SUM(L11:L17) -> 94.21203587 | M18: =SUM(M11:M17) -> 94.21203587
B20: Additional Commentary
A21: =A11 -> a
A22: =A12 -> b
A23: =A13 -> c
A24: =A14 -> d
A25: =A15 -> e
A26: f
A27: g
B30: Post-tax Earned Incentives (Actuals may be updated once all incentives are determined)
B32: Year tax paid when incentive recognised in allowed revenue. Select from dropdown in Column C
B33: -
B34: t+0
B35: t+1
B36: t+2
B37: t+3
A39: =A11 -> a | B39: =$B$11&"" -> Broad Measure of Customer Satisfaction | C39: ='RFPR cover'!$C$14 -> £m 09/10 | D39: =D51 -> 1.753931143 | E39: =E51 -> 1.133942265 | F39: 2.085728748 | G39: 2.717056731 | H39: 2.692438761 | I39: 2.612136767 | J39: 3.09021286 | K39: 2.777427481 | L39: =SUM(D39:INDEX(D39:K39,0,MATCH('RFPR cover'!$C$7,$D$6:$K$6,0))) -> 18.86287476 | M39: =SUM(D39:K39) -> 18.86287476
A40: b | B40: =$B$12&"" -> Shrinkage Allowance Revenue Adjustment | C40: ='RFPR cover'!$C$14 -> £m 09/10 | D40: =D55 -> 0.5868707394 | E40: =E55 -> 0.4310995 | F40: 0.3821718131 | G40: 0.2338884265 | H40: 0.2490424988 | I40: 0.4525422383 | J40: 0.1966518642 | K40: 0.5106747247 | L40: =SUM(D40:INDEX(D40:K40,0,MATCH('RFPR cover'!$C$7,$D$6:$K$6,0))) -> 3.042941805 | M40: 3.042941805
A41: c | B41: =$B$13&"" -> Environment Emissions Incentive | C41: ='RFPR cover'!$C$14 -> £m 09/10 | D41: =D59 -> 1.823431236 | E41: =E59 -> 1.934197426 | F41: 2.143946805 | G41: 1.416119312 | H41: 1.33763751 | I41: 1.973584063 | J41: 1.851982404 | K41: 4.304166604 | L41: =SUM(D41:INDEX(D41:K41,0,MATCH('RFPR cover'!$C$7,$D$6:$K$6,0))) -> 16.78506536 | M41: 16.78506536
A42: d | B42: =$B$14&"" -> Discretionary Reward Scheme | C42: ='RFPR cover'!$C$14 -> £m 09/10 | D42: =D63 -> 0.06568913824 | E42: =E63 -> 0.06568913824 | F42: 0.04222185419 | G42: 0.04222185419 | H42: 0.04222185419 | I42: 0 | J42: 0 | K42: 0 | L42: =SUM(D42:INDEX(D42:K42,0,MATCH('RFPR cover'!$C$7,$D$6:$K$6,0))) -> 0.258043839 | M42: 0.258043839
A43: e | B43: =$B$15&"" -> NTS Exit Capacity | C43: ='RFPR cover'!$C$14 -> £m 09/10 | D43: =D67 -> 1.23544576 | E43: =E67 -> 3.737535784 | F43: 7.858615553 | G43: 5.461701834 | H43: 5.499132954 | I43: 5.708830282 | J43: 4.398703153 | K43: 3.303260077 | L43: =SUM(D43:INDEX(D43:K43,0,MATCH('RFPR cover'!$C$7,$D$6:$K$6,0))) -> 37.2032254 | M43: 37.2032254
A44: f | B44: =$B$16&"" ->  | C44: ='RFPR cover'!$C$14 -> £m 09/10 | D44: =D71 -> 0 | E44: =E71 -> 0 | F44: 0 | G44: 0 | H44: 0 | I44: 0 | J44: 0 | K44: 0 | L44: =SUM(D44:INDEX(D44:K44,0,MATCH('RFPR cover'!$C$7,$D$6:$K$6,0))) -> 0 | M44: 0
A45: g | B45: =$B$17&"" ->  | C45: ='RFPR cover'!$C$14 -> £m 09/10 | D45: =D75 -> 0 | E45: =E75 -> 0 | F45: 0 | G45: 0 | H45: 0 | I45: 0 | J45: 0 | K45: 0 | L45: =SUM(D45:INDEX(D45:K45,0,MATCH('RFPR cover'!$C$7,$D$6:$K$6,0))) -> 0 | M45: 0
B46: Post-Tax Earned Incentive revenue | C46: ='RFPR cover'!$C$14 -> £m 09/10 | D46: =SUM(D39:D45) -> 5.465368017 | E46: =SUM(E39:E45) -> 7.302464113 | F46: 12.51268477 | G46: 9.870988157 | H46: 9.820473578 | I46: 10.74709335 | J46: 9.537550282 | K46: 10.89552889 | L46: 76.15215116 | M46: 76.15215116
A49: =$A$11 -> a | B49: =INDEX($B$11:$B$15,MATCH($A49,$A$11:$A$15,0),0)&"" -> Broad Measure of Customer Satisfaction | C49: ='RFPR cover'!$C$14 -> £m 09/10 | D49: =INDEX($D$11:$K$17,MATCH($A49,$A$11:$A$17,0),0) -> 2.192413928 | E49: =INDEX($D$11:$K$17,MATCH($A49,$A$11:$A$17,0),0) -> 1.417427831 | F49: 2.574973763 | G49: 3.354391025 | H49: 3.32399847 | I49: 3.224860207 | J49: 3.815077605 | K49: 3.428922816 | L49: =SUM(D49:INDEX(D49:K49,0,MATCH('RFPR cover'!$C$7,$D$6:$K$6,0))) -> 23.33206565 | M49: =SUM(D49:K49) -> 23.33206565
B50: Corporation tax rate when recognised in allowed revenue | C50: t+2 | D50: =IF($C50=$B$33,$B$33,INDEX(Data!$G$14:$G$30,MATCH('R5 - Output Incentives'!D$6+RIGHT('R5 - Output Incentives'!$C50,2),Data!$C$14:$C$30,0),0)) -> 0.2 | E50: =IF($C50=$B$33,$B$33,INDEX(Data!$G$14:$G$30,MATCH('R5 - Output Incentives'!E$6+RIGHT('R5 - Output Incentives'!$C50,2),Data!$C$14:$C$30,0),0)) -> 0.2 | F50: =IF($C50=$B$33,$B$33,INDEX(Data!$G$14:$G$30,MATCH('R5 - Output Incentives'!F$6+RIGHT('R5 - Output Incentives'!$C50,2),Data!$C$14:$C$30,0),0)) -> 0.19 | G50: =IF($C50=$B$33,$B$33,INDEX(Data!$G$14:$G$30,MATCH('R5 - Output Incentives'!G$6+RIGHT('R5 - Output Incentives'!$C50,2),Data!$C$14:$C$30,0),0)) -> 0.19 | H50: =IF($C50=$B$33,$B$33,INDEX(Data!$G$14:$G$30,MATCH('R5 - Output Incentives'!H$6+RIGHT('R5 - Output Incentives'!$C50,2),Data!$C$14:$C$30,0),0)) -> 0.19 | I50: =IF($C50=$B$33,$B$33,INDEX(Data!$G$14:$G$30,MATCH('R5 - Output Incentives'!I$6+RIGHT('R5 - Output Incentives'!$C50,2),Data!$C$14:$C$30,0),0)) -> 0.19 | J50: =IF($C50=$B$33,$B$33,INDEX(Data!$G$14:$G$30,MATCH('R5 - Output Incentives'!J$6+RIGHT('R5 - Output Incentives'!$C50,2),Data!$C$14:$C$30,0),0)) -> 0.19 | K50: =IF($C50=$B$33,$B$33,INDEX(Data!$G$14:$G$30,MATCH('R5 - Output Incentives'!K$6+RIGHT('R5 - Output Incentives'!$C50,2),Data!$C$14:$C$30,0),0)) -> 0.19
B51: Post tax | D51: =IFERROR(D49*(1-D50),0) -> 1.753931143 | E51: =IFERROR(E49*(1-E50),0) -> 1.133942265 | F51: 2.085728748 | G51: 2.717056731 | H51: 2.692438761 | I51: 2.612136767 | J51: 3.09021286 | K51: 2.777427481 | L51: =SUM(D51:INDEX(D51:K51,0,MATCH('RFPR cover'!$C$7,$D$6:$K$6,0))) -> 18.86287476 | M51: =SUM(D51:K51) -> 18.86287476
A53: =$A$12 -> b | B53: =INDEX($B$11:$B$15,MATCH($A53,$A$11:$A$15,0),0)&"" -> Shrinkage Allowance Revenue Adjustment | C53: ='RFPR cover'!$C$14 -> £m 09/10 | D53: =INDEX($D$11:$K$17,MATCH($A53,$A$11:$A$17,0),0) -> 0.7335884242 | E53: =INDEX($D$11:$K$17,MATCH($A53,$A$11:$A$17,0),0) -> 0.538874375 | F53: 0.4718170532 | G53: 0.2887511439 | H53: 0.307459875 | I53: 0.5586941214 | J53: 0.2427800792 | K53: 0.6304626231 | L53: =SUM(D53:INDEX(D53:K53,0,MATCH('RFPR cover'!$C$7,$D$6:$K$6,0))) -> 3.772427695 | M53: =SUM(D53:K53) -> 3.772427695
B54: Corporation tax rate when recognised in allowed revenue | C54: t+2 | D54: =IF($C54=$B$33,$B$33,INDEX(Data!$G$14:$G$30,MATCH('R5 - Output Incentives'!D$6+RIGHT('R5 - Output Incentives'!$C54,2),Data!$C$14:$C$30,0),0)) -> 0.2 | E54: =IF($C54=$B$33,$B$33,INDEX(Data!$G$14:$G$30,MATCH('R5 - Output Incentives'!E$6+RIGHT('R5 - Output Incentives'!$C54,2),Data!$C$14:$C$30,0),0)) -> 0.2 | F54: =IF($C54=$B$33,$B$33,INDEX(Data!$G$14:$G$30,MATCH('R5 - Output Incentives'!F$6+RIGHT('R5 - Output Incentives'!$C54,2),Data!$C$14:$C$30,0),0)) -> 0.19 | G54: =IF($C54=$B$33,$B$33,INDEX(Data!$G$14:$G$30,MATCH('R5 - Output Incentives'!G$6+RIGHT('R5 - Output Incentives'!$C54,2),Data!$C$14:$C$30,0),0)) -> 0.19 | H54: =IF($C54=$B$33,$B$33,INDEX(Data!$G$14:$G$30,MATCH('R5 - Output Incentives'!H$6+RIGHT('R5 - Output Incentives'!$C54,2),Data!$C$14:$C$30,0),0)) -> 0.19 | I54: =IF($C54=$B$33,$B$33,INDEX(Data!$G$14:$G$30,MATCH('R5 - Output Incentives'!I$6+RIGHT('R5 - Output Incentives'!$C54,2),Data!$C$14:$C$30,0),0)) -> 0.19 | J54: =IF($C54=$B$33,$B$33,INDEX(Data!$G$14:$G$30,MATCH('R5 - Output Incentives'!J$6+RIGHT('R5 - Output Incentives'!$C54,2),Data!$C$14:$C$30,0),0)) -> 0.19 | K54: =IF($C54=$B$33,$B$33,INDEX(Data!$G$14:$G$30,MATCH('R5 - Output Incentives'!K$6+RIGHT('R5 - Output Incentives'!$C54,2),Data!$C$14:$C$30,0),0)) -> 0.19
B55: Post tax | D55: =IFERROR(D53*(1-D54),0) -> 0.5868707394 | E55: =IFERROR(E53*(1-E54),0) -> 0.4310995 | F55: 0.3821718131 | G55: 0.2338884265 | H55: 0.2490424988 | I55: 0.4525422383 | J55: 0.1966518642 | K55: 0.5106747247 | L55: =SUM(D55:INDEX(D55:K55,0,MATCH('RFPR cover'!$C$7,$D$6:$K$6,0))) -> 3.042941805 | M55: =SUM(D55:K55) -> 3.042941805
A57: =$A$13 -> c | B57: =INDEX($B$11:$B$15,MATCH($A57,$A$11:$A$15,0),0)&"" -> Environment Emissions Incentive | C57: ='RFPR cover'!$C$14 -> £m 09/10 | D57: =INDEX($D$11:$K$17,MATCH($A57,$A$11:$A$17,0),0) -> 2.279289045 | E57: =INDEX($D$11:$K$17,MATCH($A57,$A$11:$A$17,0),0) -> 2.417746782 | F57: 2.646847908 | G57: 1.748295446 | H57: 1.651404334 | I57: 2.436523535 | J57: 2.28639803 | K57: 5.313785931 | L57: =SUM(D57:INDEX(D57:K57,0,MATCH('RFPR cover'!$C$7,$D$6:$K$6,0))) -> 20.78029101 | M57: =SUM(D57:K57) -> 20.78029101
B58: Corporation tax rate when recognised in allowed revenue | C58: t+2 | D58: =IF($C58=$B$33,$B$33,INDEX(Data!$G$14:$G$30,MATCH('R5 - Output Incentives'!D$6+RIGHT('R5 - Output Incentives'!$C58,2),Data!$C$14:$C$30,0),0)) -> 0.2 | E58: =IF($C58=$B$33,$B$33,INDEX(Data!$G$14:$G$30,MATCH('R5 - Output Incentives'!E$6+RIGHT('R5 - Output Incentives'!$C58,2),Data!$C$14:$C$30,0),0)) -> 0.2 | F58: =IF($C58=$B$33,$B$33,INDEX(Data!$G$14:$G$30,MATCH('R5 - Output Incentives'!F$6+RIGHT('R5 - Output Incentives'!$C58,2),Data!$C$14:$C$30,0),0)) -> 0.19 | G58: =IF($C58=$B$33,$B$33,INDEX(Data!$G$14:$G$30,MATCH('R5 - Output Incentives'!G$6+RIGHT('R5 - Output Incentives'!$C58,2),Data!$C$14:$C$30,0),0)) -> 0.19 | H58: =IF($C58=$B$33,$B$33,INDEX(Data!$G$14:$G$30,MATCH('R5 - Output Incentives'!H$6+RIGHT('R5 - Output Incentives'!$C58,2),Data!$C$14:$C$30,0),0)) -> 0.19 | I58: =IF($C58=$B$33,$B$33,INDEX(Data!$G$14:$G$30,MATCH('R5 - Output Incentives'!I$6+RIGHT('R5 - Output Incentives'!$C58,2),Data!$C$14:$C$30,0),0)) -> 0.19 | J58: =IF($C58=$B$33,$B$33,INDEX(Data!$G$14:$G$30,MATCH('R5 - Output Incentives'!J$6+RIGHT('R5 - Output Incentives'!$C58,2),Data!$C$14:$C$30,0),0)) -> 0.19 | K58: =IF($C58=$B$33,$B$33,INDEX(Data!$G$14:$G$30,MATCH('R5 - Output Incentives'!K$6+RIGHT('R5 - Output Incentives'!$C58,2),Data!$C$14:$C$30,0),0)) -> 0.19
B59: Post tax | D59: =IFERROR(D57*(1-D58),0) -> 1.823431236 | E59: =IFERROR(E57*(1-E58),0) -> 1.934197426 | F59: 2.143946805 | G59: 1.416119312 | H59: 1.33763751 | I59: 1.973584063 | J59: 1.851982404 | K59: 4.304166604 | L59: =SUM(D59:INDEX(D59:K59,0,MATCH('RFPR cover'!$C$7,$D$6:$K$6,0))) -> 16.78506536 | M59: =SUM(D59:K59) -> 16.78506536
A61: =$A$14 -> d | B61: =INDEX($B$11:$B$15,MATCH($A61,$A$11:$A$15,0),0)&"" -> Discretionary Reward Scheme | C61: ='RFPR cover'!$C$14 -> £m 09/10 | D61: =INDEX($D$11:$K$17,MATCH($A61,$A$11:$A$17,0),0) -> 0.08211142279 | E61: =INDEX($D$11:$K$17,MATCH($A61,$A$11:$A$17,0),0) -> 0.08211142279 | F61: 0.05212574592 | G61: 0.05212574592 | H61: 0.05212574592 | I61: 0 | J61: 0 | K61: 0 | L61: =SUM(D61:INDEX(D61:K61,0,MATCH('RFPR cover'!$C$7,$D$6:$K$6,0))) -> 0.3206000833 | M61: =SUM(D61:K61) -> 0.3206000833
B62: Corporation tax rate when recognised in allowed revenue | C62: t+2 | D62: =IF($C62=$B$33,$B$33,INDEX(Data!$G$14:$G$30,MATCH('R5 - Output Incentives'!D$6+RIGHT('R5 - Output Incentives'!$C62,2),Data!$C$14:$C$30,0),0)) -> 0.2 | E62: =IF($C62=$B$33,$B$33,INDEX(Data!$G$14:$G$30,MATCH('R5 - Output Incentives'!E$6+RIGHT('R5 - Output Incentives'!$C62,2),Data!$C$14:$C$30,0),0)) -> 0.2 | F62: =IF($C62=$B$33,$B$33,INDEX(Data!$G$14:$G$30,MATCH('R5 - Output Incentives'!F$6+RIGHT('R5 - Output Incentives'!$C62,2),Data!$C$14:$C$30,0),0)) -> 0.19 | G62: =IF($C62=$B$33,$B$33,INDEX(Data!$G$14:$G$30,MATCH('R5 - Output Incentives'!G$6+RIGHT('R5 - Output Incentives'!$C62,2),Data!$C$14:$C$30,0),0)) -> 0.19 | H62: =IF($C62=$B$33,$B$33,INDEX(Data!$G$14:$G$30,MATCH('R5 - Output Incentives'!H$6+RIGHT('R5 - Output Incentives'!$C62,2),Data!$C$14:$C$30,0),0)) -> 0.19 | I62: =IF($C62=$B$33,$B$33,INDEX(Data!$G$14:$G$30,MATCH('R5 - Output Incentives'!I$6+RIGHT('R5 - Output Incentives'!$C62,2),Data!$C$14:$C$30,0),0)) -> 0.19 | J62: =IF($C62=$B$33,$B$33,INDEX(Data!$G$14:$G$30,MATCH('R5 - Output Incentives'!J$6+RIGHT('R5 - Output Incentives'!$C62,2),Data!$C$14:$C$30,0),0)) -> 0.19 | K62: =IF($C62=$B$33,$B$33,INDEX(Data!$G$14:$G$30,MATCH('R5 - Output Incentives'!K$6+RIGHT('R5 - Output Incentives'!$C62,2),Data!$C$14:$C$30,0),0)) -> 0.19
B63: Post tax | D63: =IFERROR(D61*(1-D62),0) -> 0.06568913824 | E63: =IFERROR(E61*(1-E62),0) -> 0.06568913824 | F63: 0.04222185419 | G63: 0.04222185419 | H63: 0.04222185419 | I63: 0 | J63: 0 | K63: 0 | L63: =SUM(D63:INDEX(D63:K63,0,MATCH('RFPR cover'!$C$7,$D$6:$K$6,0))) -> 0.258043839 | M63: =SUM(D63:K63) -> 0.258043839
A65: =$A$15 -> e | B65: =INDEX($B$11:$B$15,MATCH($A65,$A$11:$A$15,0),0)&"" -> NTS Exit Capacity | C65: ='RFPR cover'!$C$14 -> £m 09/10 | D65: =INDEX($D$11:$K$17,MATCH($A65,$A$11:$A$17,0),0) -> 1.5443072 | E65: =INDEX($D$11:$K$17,MATCH($A65,$A$11:$A$17,0),0) -> 4.67191973 | F65: 9.70199451 | G65: 6.74284177 | H65: 6.78905303 | I65: 7.04793862 | J65: 5.43049772 | K65: 4.07809886 | L65: =SUM(D65:INDEX(D65:K65,0,MATCH('RFPR cover'!$C$7,$D$6:$K$6,0))) -> 46.00665144 | M65: =SUM(D65:K65) -> 46.00665144
B66: Corporation tax rate when recognised in allowed revenue | C66: t+2 | D66: =IF($C66=$B$33,$B$33,INDEX(Data!$G$14:$G$30,MATCH('R5 - Output Incentives'!D$6+RIGHT('R5 - Output Incentives'!$C66,2),Data!$C$14:$C$30,0),0)) -> 0.2 | E66: =IF($C66=$B$33,$B$33,INDEX(Data!$G$14:$G$30,MATCH('R5 - Output Incentives'!E$6+RIGHT('R5 - Output Incentives'!$C66,2),Data!$C$14:$C$30,0),0)) -> 0.2 | F66: =IF($C66=$B$33,$B$33,INDEX(Data!$G$14:$G$30,MATCH('R5 - Output Incentives'!F$6+RIGHT('R5 - Output Incentives'!$C66,2),Data!$C$14:$C$30,0),0)) -> 0.19 | G66: =IF($C66=$B$33,$B$33,INDEX(Data!$G$14:$G$30,MATCH('R5 - Output Incentives'!G$6+RIGHT('R5 - Output Incentives'!$C66,2),Data!$C$14:$C$30,0),0)) -> 0.19 | H66: =IF($C66=$B$33,$B$33,INDEX(Data!$G$14:$G$30,MATCH('R5 - Output Incentives'!H$6+RIGHT('R5 - Output Incentives'!$C66,2),Data!$C$14:$C$30,0),0)) -> 0.19 | I66: =IF($C66=$B$33,$B$33,INDEX(Data!$G$14:$G$30,MATCH('R5 - Output Incentives'!I$6+RIGHT('R5 - Output Incentives'!$C66,2),Data!$C$14:$C$30,0),0)) -> 0.19 | J66: =IF($C66=$B$33,$B$33,INDEX(Data!$G$14:$G$30,MATCH('R5 - Output Incentives'!J$6+RIGHT('R5 - Output Incentives'!$C66,2),Data!$C$14:$C$30,0),0)) -> 0.19 | K66: =IF($C66=$B$33,$B$33,INDEX(Data!$G$14:$G$30,MATCH('R5 - Output Incentives'!K$6+RIGHT('R5 - Output Incentives'!$C66,2),Data!$C$14:$C$30,0),0)) -> 0.19
B67: Post tax | D67: =IFERROR(D65*(1-D66),0) -> 1.23544576 | E67: =IFERROR(E65*(1-E66),0) -> 3.737535784 | F67: 7.858615553 | G67: 5.461701834 | H67: 5.499132954 | I67: 5.708830282 | J67: 4.398703153 | K67: 3.303260077 | L67: =SUM(D67:INDEX(D67:K67,0,MATCH('RFPR cover'!$C$7,$D$6:$K$6,0))) -> 37.2032254 | M67: =SUM(D67:K67) -> 37.2032254
A69: =$A$16 -> f | B69: =INDEX($B$11:$B$17,MATCH($A69,$A$11:$A$17,0),0)&"" ->  | C69: ='RFPR cover'!$C$14 -> £m 09/10 | D69: =INDEX($D$11:$K$17,MATCH($A69,$A$11:$A$17,0),0) -> 0 | E69: =INDEX($D$11:$K$17,MATCH($A69,$A$11:$A$17,0),0) -> 0 | F69: 0 | G69: 0 | H69: 0 | I69: 0 | J69: 0 | K69: 0 | L69: =SUM(D69:INDEX(D69:K69,0,MATCH('RFPR cover'!$C$7,$D$6:$K$6,0))) -> 0 | M69: =SUM(D69:K69) -> 0
B70: Corporation tax rate when recognised in allowed revenue | C70: t+2 | D70: =IF($C70=$B$33,$B$33,INDEX(Data!$G$14:$G$30,MATCH('R5 - Output Incentives'!D$6+RIGHT('R5 - Output Incentives'!$C70,2),Data!$C$14:$C$30,0),0)) -> 0.2 | E70: =IF($C70=$B$33,$B$33,INDEX(Data!$G$14:$G$30,MATCH('R5 - Output Incentives'!E$6+RIGHT('R5 - Output Incentives'!$C70,2),Data!$C$14:$C$30,0),0)) -> 0.2 | F70: =IF($C70=$B$33,$B$33,INDEX(Data!$G$14:$G$30,MATCH('R5 - Output Incentives'!F$6+RIGHT('R5 - Output Incentives'!$C70,2),Data!$C$14:$C$30,0),0)) -> 0.19 | G70: =IF($C70=$B$33,$B$33,INDEX(Data!$G$14:$G$30,MATCH('R5 - Output Incentives'!G$6+RIGHT('R5 - Output Incentives'!$C70,2),Data!$C$14:$C$30,0),0)) -> 0.19 | H70: =IF($C70=$B$33,$B$33,INDEX(Data!$G$14:$G$30,MATCH('R5 - Output Incentives'!H$6+RIGHT('R5 - Output Incentives'!$C70,2),Data!$C$14:$C$30,0),0)) -> 0.19 | I70: =IF($C70=$B$33,$B$33,INDEX(Data!$G$14:$G$30,MATCH('R5 - Output Incentives'!I$6+RIGHT('R5 - Output Incentives'!$C70,2),Data!$C$14:$C$30,0),0)) -> 0.19 | J70: =IF($C70=$B$33,$B$33,INDEX(Data!$G$14:$G$30,MATCH('R5 - Output Incentives'!J$6+RIGHT('R5 - Output Incentives'!$C70,2),Data!$C$14:$C$30,0),0)) -> 0.19 | K70: =IF($C70=$B$33,$B$33,INDEX(Data!$G$14:$G$30,MATCH('R5 - Output Incentives'!K$6+RIGHT('R5 - Output Incentives'!$C70,2),Data!$C$14:$C$30,0),0)) -> 0.19
B71: Post tax | D71: =IFERROR(D69*(1-D70),0) -> 0 | E71: =IFERROR(E69*(1-E70),0) -> 0 | F71: 0 | G71: 0 | H71: 0 | I71: 0 | J71: 0 | K71: 0 | L71: =SUM(D71:INDEX(D71:K71,0,MATCH('RFPR cover'!$C$7,$D$6:$K$6,0))) -> 0 | M71: =SUM(D71:K71) -> 0
A73: g | B73: =INDEX($B$11:$B$17,MATCH($A73,$A$11:$A$17,0),0)&"" ->  | C73: ='RFPR cover'!$C$14 -> £m 09/10 | D73: =INDEX($D$11:$K$17,MATCH($A73,$A$11:$A$17,0),0) -> 0 | E73: =INDEX($D$11:$K$17,MATCH($A73,$A$11:$A$17,0),0) -> 0 | F73: 0 | G73: 0 | H73: 0 | I73: 0 | J73: 0 | K73: 0 | L73: =SUM(D73:INDEX(D73:K73,0,MATCH('RFPR cover'!$C$7,$D$6:$K$6,0))) -> 0 | M73: =SUM(D73:K73) -> 0
B74: Corporation tax rate when recognised in allowed revenue | C74: t+2 | D74: =IF($C74=$B$33,$B$33,INDEX(Data!$G$14:$G$30,MATCH('R5 - Output Incentives'!D$6+RIGHT('R5 - Output Incentives'!$C74,2),Data!$C$14:$C$30,0),0)) -> 0.2 | E74: =IF($C74=$B$33,$B$33,INDEX(Data!$G$14:$G$30,MATCH('R5 - Output Incentives'!E$6+RIGHT('R5 - Output Incentives'!$C74,2),Data!$C$14:$C$30,0),0)) -> 0.2 | F74: =IF($C74=$B$33,$B$33,INDEX(Data!$G$14:$G$30,MATCH('R5 - Output Incentives'!F$6+RIGHT('R5 - Output Incentives'!$C74,2),Data!$C$14:$C$30,0),0)) -> 0.19 | G74: =IF($C74=$B$33,$B$33,INDEX(Data!$G$14:$G$30,MATCH('R5 - Output Incentives'!G$6+RIGHT('R5 - Output Incentives'!$C74,2),Data!$C$14:$C$30,0),0)) -> 0.19 | H74: =IF($C74=$B$33,$B$33,INDEX(Data!$G$14:$G$30,MATCH('R5 - Output Incentives'!H$6+RIGHT('R5 - Output Incentives'!$C74,2),Data!$C$14:$C$30,0),0)) -> 0.19 | I74: =IF($C74=$B$33,$B$33,INDEX(Data!$G$14:$G$30,MATCH('R5 - Output Incentives'!I$6+RIGHT('R5 - Output Incentives'!$C74,2),Data!$C$14:$C$30,0),0)) -> 0.19 | J74: =IF($C74=$B$33,$B$33,INDEX(Data!$G$14:$G$30,MATCH('R5 - Output Incentives'!J$6+RIGHT('R5 - Output Incentives'!$C74,2),Data!$C$14:$C$30,0),0)) -> 0.19 | K74: =IF($C74=$B$33,$B$33,INDEX(Data!$G$14:$G$30,MATCH('R5 - Output Incentives'!K$6+RIGHT('R5 - Output Incentives'!$C74,2),Data!$C$14:$C$30,0),0)) -> 0.19
B75: Post tax | D75: =IFERROR(D73*(1-D74),0) -> 0 | E75: =IFERROR(E73*(1-E74),0) -> 0 | F75: 0 | G75: 0 | H75: 0 | I75: 0 | J75: 0 | K75: 0 | L75: =SUM(D75:INDEX(D75:K75,0,MATCH('RFPR cover'!$C$7,$D$6:$K$6,0))) -> 0 | M75: =SUM(D75:K75) -> 0
B77: Impact on Allowed Revenue within RIIO-1
B78: This table shows the impact on allowed revenue in the relevant year - with actuals (subject to determination) and forecasts thereafter.
B79: The cells above the allowed revenue indicate the year of performance
C81: Performance Year | D81: =IF($C50=$B$33,D$6,IF(D$6-RIGHT($C50,1)<$D$6,"Pre-RIIO",D$6-RIGHT($C50,1))) -> Pre-RIIO | E81: Pre-RIIO | F81: 2014 | G81: 2015 | H81: 2016 | I81: 2017 | J81: 2018 | K81: 2019
A82: =A11 -> a | B82: =B11&"" -> Broad Measure of Customer Satisfaction | C82: £m nominal | D82: 0 | E82: 0 | F82: 2.5578727 | G82: 1.68611066 | H82: 3.09609467 | I82: 4.11966168 | J82: 4.23510681 | K82: 4.23434159
C84: Performance Year | D84: =IF($C54=$B$33,D$6,IF(D$6-RIGHT($C54,1)<$D$6,"Pre-RIIO",D$6-RIGHT($C54,1))) -> Pre-RIIO | E84: Pre-RIIO | F84: 2014 | G84: 2015 | H84: 2016 | I84: 2017 | J84: 2018 | K84: 2019
A85: =A12 -> b | B85: =B12&"" -> Shrinkage Allowance Revenue Adjustment | C85: £m nominal | D85: 0 | E85: 0 | F85: 0.82377685 | G85: 0.63300881 | H85: 0.56029923 | I85: 0.35024871 | J85: 0.39173466 | K85: 0.71590604
C87: Performance Year | D87: =IF($C58=$B$33,D$6,IF(D$6-RIGHT($C58,1)<$D$6,"Pre-RIIO",D$6-RIGHT($C58,1))) -> Pre-RIIO | E87: Pre-RIIO | F87: 2014 | G87: 2015 | H87: 2016 | I87: 2017 | J87: 2018 | K87: 2019
A88: =A13 -> c | B88: =B13&"" -> Environment Emissions Incentive | C88: £m nominal | D88: 0 | E88: 0 | F88: 2.55950814 | G88: 2.84009611 | H88: 3.14322433 | I88: 2.12064347 | J88: 2.10405444 | K88: 3.12214116
C90: Performance Year | D90: =IF($C62=$B$33,D$6,IF(D$6-RIGHT($C62,1)<$D$6,"Pre-RIIO",D$6-RIGHT($C62,1))) -> Pre-RIIO | E90: Pre-RIIO | F90: 2014 | G90: 2015 | H90: 2016 | I90: 2017 | J90: 2018 | K90: 2019
A91: =A14 -> d | B91: =B14&"" -> Discretionary Reward Scheme | C91: £m nominal | D91: 0.3272481 | E91: 0.30502755 | F91: 0 | G91: 0.20168864 | H91: 0 | I91: 0 | J91: 0.21085631 | K91: 0
C93: Performance Year | D93: =IF($C66=$B$33,D$6,IF(D$6-RIGHT($C66,1)<$D$6,"Pre-RIIO",D$6-RIGHT($C66,1))) -> Pre-RIIO | E93: =IF($C66=$B$33,E$6,IF(E$6-RIGHT($C66,1)<$D$6,"Pre-RIIO",E$6-RIGHT($C66,1))) -> Pre-RIIO | F93: 2014 | G93: 2015 | H93: 2016 | I93: 2017 | J93: 2018 | K93: 2019
A94: =A15 -> e | B94: =B15&"" -> NTS Exit Capacity | C94: £m nominal | D94: 0 | E94: 0 | F94: 2.05592478 | G94: 6.23610236 | H94: 13.3231216 | I94: 9.553788 | J94: 9.9162625 | K94: 10.4516256
C96: Performance Year | D96: =IF($C70=$B$33,D$6,IF(D$6-RIGHT($C70,1)<$D$6,"Pre-RIIO",D$6-RIGHT($C70,1))) -> Pre-RIIO | E96: =IF($C70=$B$33,E$6,IF(E$6-RIGHT($C70,1)<$D$6,"Pre-RIIO",E$6-RIGHT($C70,1))) -> Pre-RIIO | F96: 2014 | G96: 2015 | H96: 2016 | I96: 2017 | J96: 2018 | K96: 2019
A97: =A16 -> f | B97: =B16&"" ->  | C97: £m nominal | D97: 0 | E97: 0 | F97: 0 | G97: 0 | H97: 0 | I97: 0 | J97: 0 | K97: 0
C99: Performance Year | D99: =IF($C74=$B$33,D$6,IF(D$6-RIGHT($C74,1)<$D$6,"Pre-RIIO",D$6-RIGHT($C74,1))) -> Pre-RIIO | E99: =IF($C74=$B$33,E$6,IF(E$6-RIGHT($C74,1)<$D$6,"Pre-RIIO",E$6-RIGHT($C74,1))) -> Pre-RIIO | F99: 2014 | G99: 2015 | H99: 2016 | I99: 2017 | J99: 2018 | K99: 2019
A100: =A17 -> g | B100: =B17&"" ->  | C100: £m nominal | D100: 0 | E100: 0 | F100: 0 | G100: 0 | H100: 0 | I100: 0 | J100: 0 | K100: 0
B102: Total Impact on Allowed Revenue | C102: £m nominal | D102: =SUM(D82,D85,D88,D91,D94,D97,D100) -> 0.3272481 | E102: =SUM(E82,E85,E88,E91,E94,E97,E100) -> 0.30502755 | F102: 7.99708247 | G102: 11.59700658 | H102: =SUM(H82,H85,H88,H91,H94,H97,H100) -> 20.12273983 | I102: 16.14434186 | J102: 16.85801472 | K102: 18.52401439
B104: Additional Commentary
A105: =A82 -> a
A106: =A85 -> b
A107: =A88 -> c
A108: =A91 -> d
A109: =A94 -> e
A110: =A97 -> f
A111: =A100 -> g

Sheet R6 - Innovation
A1: R6 - Innovation
A2: ='RFPR cover'!C5 -> Cadent-EOE
A3: ='RFPR cover'!C7 -> 2021 | B3: ='R1 - RoRE'!B3 -> 
D5: =IF(D6<='RFPR cover'!$C$7,"Actuals","Forecast") -> Actuals | E5: =IF(E6<='RFPR cover'!$C$7,"Actuals","Forecast") -> Actuals | F5: =IF(F6<='RFPR cover'!$C$7,"Actuals","Forecast") -> Actuals | G5: =IF(G6<='RFPR cover'!$C$7,"Actuals","Forecast") -> Actuals | H5: =IF(H6<='RFPR cover'!$C$7,"Actuals","Forecast") -> Actuals | I5: =IF(I6<='RFPR cover'!$C$7,"Actuals","Forecast") -> Actuals | J5: =IF(J6<='RFPR cover'!$C$7,"Actuals","Forecast") -> Actuals | K5: =IF(K6<='RFPR cover'!$C$7,"Actuals","Forecast") -> Actuals
D6: ='RFPR cover'!$C$13 -> 2014 | E6: =D6+1 -> 2015 | F6: =E6+1 -> 2016 | G6: 2017 | H6: 2018 | I6: 2019 | J6: 2020 | K6: 2021
B8: Network Innovation Allowance
B9: Eligible NIA expenditure and Bid Preparation costs | C9: £m nominal | D9: 1.03396013 | E9: 2.79581402 | F9: 3.49514809 | G9: 2.79 | H9: 2.68915341 | I9: 1.781474126 | J9: 2.23146016 | K9: 2.88
B10: Unrecoverable Expenditure (eg not conforming to technical requirements) | C10: £m nominal | D10: 0 | E10: 0 | F10: 0 | G10: 0 | H10: 0 | I10: 0 | J10: 0 | K10: 0
B11: Company Compulsory Contribution (including % contribution funded by licensee) | C11: £m nominal | D11: 0.11150499 | E11: 0.2795814 | F11: 0.34951481 | G11: 0.28575 | H11: 0.26891534 | I11: 0.1781474126 | J11: 0.223146016 | K11: 0.288
B12: Allowed NIA adjustment | C12: £m nominal | D12: =D9-D10-D11 -> 0.92245514 | E12: =E9-E10-E11 -> 2.51623262 | F12: 3.14563328 | G12: 2.50425 | H12: 2.42023807 | I12: 1.603326713 | J12: 2.008314144 | K12: 2.592
B14: Low Carbon Networks Fund
B15: Second Tier and Discretionary (as per latest Revenue RRP) | C15: £m nominal | D15: 0 | E15: 0 | F15: 0 | G15: 0 | H15: 0 | I15: 0 | J15: 0 | K15: 0
B16: First Tier Funding Mechanism (as per latest Revenue RRP) | C16: £m nominal | D16: 0 | E16: 0 | F16: 0 | G16: 0 | H16: 0 | I16: 0 | J16: 0 | K16: 0
B17: Low Carbon Networks Fund revenue adjustment | C17: £m nominal | D17: =D15-D16 -> 0 | E17: =E15-E16 -> 0 | F17: 0 | G17: 0 | H17: 0 | I17: 0 | J17: 0 | K17: 0
B19: Network Innovation Competition
B20: Awarded NIC funding actually spent or forecast to be spent | C20: £m nominal | D20: 0 | E20: 0.3 | F20: 0.3 | G20: 2.3 | H20: 1.9 | I20: 1.471902818 | J20: 1.720513537 | K20: 1.6
B21: Company Compulsory Contribution (including % contribution funded by licensee) | C21: £m nominal | D21: 0 | E21: 0 | F21: 0.1 | G21: 0.2 | H21: 0.2 | I21: 0.1906777944 | J21: 0.2600624553 | K21: 0.1294084125
B23: Successful Delivery Rewards | C23: £m nominal | D23: 0 | E23: 0 | F23: 0 | G23: 0 | H23: 0 | I23: 0.07785400875 | J23: 0 | K23: 0
B27: RoRE Inputs
B28: Network innovation | C28: ='RFPR cover'!$C$14 -> £m 09/10 | D28: =(SUM(D10,D11,D21)-D23)/Data!C34 -> 0.09557387064 | E28: =(SUM(E10,E11,E21)-E23)/Data!D34 -> 0.2350299802 | F28: =(SUM(F10,F11,F21)-F23)/Data!E34 -> 0.3738555311 | G28: =(SUM(G10,G11,G21)-G23)/Data!F34 -> 0.3955169222 | H28: =(SUM(H10,H11,H21)-H23)/Data!G34 -> 0.3680375113 | I28: =(SUM(I10,I11,I21)-I23)/Data!H34 -> 0.2216032817 | J28: =(SUM(J10,J11,J21)-J23)/Data!I34 -> 0.3587246242 | K28: =(SUM(K10,K11,K21)-K23)/Data!J34 -> 0.3061626931

Sheet R7 - Financing
A1: R7 - Financing
A2: ='RFPR cover'!C5 -> Cadent-EOE
A3: ='RFPR cover'!C7 -> 2021 | B3: ='R1 - RoRE'!B3 -> 
D5: Actuals | E5: Actuals | F5: Actuals | G5: Actuals | H5: Actuals | I5: Actuals | J5: Actuals | K5: Actuals
D6: ='RFPR cover'!$C$13 -> 2014 | E6: =D6+1 -> 2015 | F6: =E6+1 -> 2016 | G6: 2017 | H6: 2018 | I6: 2019 | J6: 2020 | K6: 2021 | L6: ="Cumulative to "&'RFPR cover'!$C$7 -> Cumulative to 2021 | M6: RIIO-1 period
B8: Net Interest Per Statutory Accounts | C8: £m nominal | D8: 190 | E8: 202 | F8: 157 | G8: 1009.9592 | H8: 144.5319051 | I8: 146.4870987 | J8: 158.5290155 | K8: 124.1933551
B10: Reconciliation with Statutory Accounts
B11: Interest not qualifying for corporation tax relief | C11: £m nominal | D11: 0 | E11: 0 | F11: 0 | G11: 0 | H11: 0 | I11: 0 | J11: 0 | K11: 0
B12: Fair value adjustments (e.g. losses on derivatives) | C12: £m nominal | D12: 0 | E12: 0 | F12: 0 | G12: -12 | H12: 6.412367166 | I12: 8 | J12: 11.87911731 | K12: 12.94153078
B13: Dividends on preference shares | C13: £m nominal | D13: 0 | E13: 0 | F13: 0 | G13: 0 | H13: 0 | I13: 0 | J13: 0 | K13: 0
B14: Costs of early redemption on long term debt | C14: £m nominal | D14: 0 | E14: -18.13 | F14: 0 | G14: 0 | H14: 0 | I14: 0 | J14: -4.376 | K14: 0
B15: Swap Termination Costs paid | C15: £m nominal | D15: -0.3169319263 | E15: 0 | F15: 0 | G15: 0 | H15: 0 | I15: 0 | J15: 0 | K15: 0
B16: Movements relating to pension fund liabilities reported within net interest | C16: £m nominal | D16: 11.22097399 | E16: 0 | F16: 0 | G16: -1 | H16: 1.99999996 | I16: 14 | J16: 17 | K16: 21
B17: Debt issuance expenses (inc. amortisation to discounts that had previously benefitted from a tax deduction) | C17: £m nominal | D17: 0 | E17: 0 | F17: 0 | G17: -1 | H17: -2.750202954 | I17: -2.77 | J17: -4.566235503 | K17: -3.06516627
B18: Commitment fees for undrawn liquidity backup lines | C18: £m nominal | D18: 0 | E18: 0 | F18: 0 | G18: -1 | H18: -2.509623794 | I18: -2.15 | J18: -2.13299451 | K18: -1.95211823
B19: Less: Capitalised Interest | C19: £m nominal | D19: 0 | E19: 11.8 | F19: 0 | G19: 1 | H19: 0 | I19: 0 | J19: 0 | K19: 0
B20: Less: Unwind of discount | C20: £m nominal | D20: -1.234323432 | E20: -4.32 | F20: -4 | G20: -2 | H20: -2.16435857 | I20: -0.3 | J20: -0.30747824 | K20: -0.30747824
B21: Less: Term Debt / Letter of Credit / RCF Fees | C21: £m nominal | D21: 0 | E21: 0 | F21: 0 | G21: 0 | H21: -1.610053807 | I21: -1.63 | J21: -1.62036365 | K21: -2.26122196
B22: losses/(gains) on derivative financial instruments | C22: £m nominal | D22: 10.14087222 | E22: -15.53 | F22: -6 | G22: 0 | H22: 0 | I22: -18 | J22: -15.03896397 | K22: -0.7278433283
B23: Less: Commitment Commission and other | C23: £m nominal | D23: 0 | E23: -1.24 | F23: 0 | G23: 0 | H23: 0 | I23: 0 | J23: 0 | K23: 0
B24: Economic cost of changing capital structure in FY16/17 | C24: £m nominal | D24: 0 | E24: 0 | F24: 0 | G24: 9.194183496 | H24: 25.62678046 | I24: 30.45026393 | J24: 31.26637847 | K24: 28.82917155
B25: Less: Debt cap disallowance | C25: £m nominal | D25: -2.319436911 | E25: 0 | F25: 0 | G25: 0 | H25: 0 | I25: 0 | J25: 0 | K25: 0
B26: Less finance costs relating to metering | C26: £m nominal | D26: -15 | E26: -12 | F26: -11 | G26: 0 | H26: 0 | I26: 0 | J26: 0 | K26: 0
B27: Less finance costs relating to other three networks | C27: £m nominal | D27: -125.9470667 | E27: -107.55 | F27: -90 | G27: -105.27462 | H27: -94.98400567 | I27: -94.83956705 | J27: -105.2159655 | K27: -99.58713399
B28: Exceptional costs of early redemption on long term debt- TBC | C28: £m nominal | D28: 0 | E28: 0 | F28: 0 | G28: -833 | H28: 0 | I28: 0 | J28: 0 | K28: 0
B29: Rounding | C29: £m nominal | D29: -1.010654234 | E29: 0.36 | F29: 0 | G29: -1.452200429 | H29: 0.3216586914 | I29: 0 | J29: 0 | K29: 0
B30: Net Interest Per Regulatory (RIIO-1) Definition | C30: £m nominal | D30: =SUM(D8,D11:D29) -> 65.53343306 | E30: 55.39 | F30: 46 | G30: 63.4265635 | H30: 74.87446659 | I30: 79.24779558 | J30: 85.41650988 | K30: 79.06309546
B31: Forecast new financing/refinancing Net Interest costs | C31: £m nominal
B32: Net Interest including forecast new financing/refinancing costs | C32: £m nominal | D32: =SUM(D30:D31) -> 65.53343306 | E32: =SUM(E30:E31) -> 55.39 | F32: 46 | G32: 63.4265635 | H32: 74.87446659 | I32: 79.24779558 | J32: 85.41650988 | K32: 79.06309546
B33: External Net Interest | C33: £m nominal | D33: 61.03343306 | E33: 51.29 | F33: 43 | G33: 45.6265635 | H33: 74.87446659 | I33: 79.24779558 | J33: 85.41650988 | K33: 79.06309546
B34: Intra-company Net Interest | C34: £m nominal | D34: 4.5 | E34: 4.1 | F34: 3 | G34: 17.8 | H34: 0 | I34: 0 | J34: 0 | K34: 0
D35: =IF(ABS(D32-SUM(D33:D34))<'RFPR cover'!$F$14,"OK","ERROR") -> OK | E35: =IF(ABS(E32-SUM(E33:E34))<'RFPR cover'!$F$14,"OK","ERROR") -> OK | F35: =IF(ABS(F32-SUM(F33:F34))<'RFPR cover'!$F$14,"OK","ERROR") -> OK | G35: =IF(ABS(G32-SUM(G33:G34))<'RFPR cover'!$F$14,"OK","ERROR") -> OK | H35: =IF(ABS(H32-SUM(H33:H34))<'RFPR cover'!$F$14,"OK","ERROR") -> OK | I35: =IF(ABS(I32-SUM(I33:I34))<'RFPR cover'!$F$14,"OK","ERROR") -> OK | J35: =IF(ABS(J32-SUM(J33:J34))<'RFPR cover'!$F$14,"OK","ERROR") -> OK | K35: =IF(ABS(K32-SUM(K33:K34))<'RFPR cover'!$F$14,"OK","ERROR") -> OK
B37: Memo: Net interest (RIIO-1) Definition that relates to non-cash principal inflation accretion on bonds and loans | C37: £m nominal | D37: 0 | E37: 0 | F37: 0 | G37: 0 | H37: 10.59445335 | I37: 8.545162015 | J37: 9.555893962 | K37: 3.985876065
B39: Less inflation in interest charge | C39: £m nominal | D39: 56.57517914 | E39: 38.11964761 | F39: 19.62132476 | G39: 39.35794491 | H39: 76.83938506 | I39: 69.6311319 | J39: 63.30683717 | K39: 33.1881277
B41: Assumed Regulatory finance cost at actual gearing | C41: £m nominal | D41: =D32-D39 -> 8.958253919 | E41: 17.27035239 | F41: 26.37867524 | G41: 24.06861859 | H41: -1.964918467 | I41: 9.616663676 | J41: 22.1096727 | K41: 45.87496776
B43: Financial Year Average RPI (RPIt) | C43: Index | D43: 1.166689067 | E43: 1.189556327 | F43: 1.202375711 | G43: 1.228139614 | H43: 1.274096595 | I43: 1.313027479 | J43: 1.347017848 | K43: 1.363354915
B45: Assumed regulatory finance cost at actual gearing | C45: £m 09/10 | D45: =D41/D43 -> 7.67835593 | E45: 14.5183141 | F45: 21.93879583 | G45: 19.59762418 | H45: -1.542205257 | I45: 7.324038401 | J45: 16.41379343 | K45: 33.64858794 | L45: =SUM(D45:INDEX(D45:K45,0,MATCH('RFPR cover'!$C$7,$D$6:$K$6,0))) -> 119.5773046 | M45: =SUM(D45:K45) -> 119.5773046
B47: Adjustments to be applied to Assumed Finance cost for performance assessment
B48: Add back Debt Issuance expenses | C48: £m nominal | D48: 0 | E48: 0 | F48: 0 | G48: 1 | H48: 2.750202954 | I48: 2.77 | J48: 4.566235503 | K48: 3.06516627 | L48: =SUM(D48:INDEX(D48:K48,0,MATCH('RFPR cover'!$C$7,$D$6:$K$6,0))) -> 14.15160473 | M48: =SUM(D48:K48) -> 14.15160473
B49: New/refinanced debt issuance expenses | C49: £m nominal | L49: =SUM(D49:INDEX(D49:K49,0,MATCH('RFPR cover'!$C$7,$D$6:$K$6,0))) -> 0 | M49: =SUM(D49:K49) -> 0
B50: Costs of early redemption on long term debt (excluding exceptional costs of buy backs associated with M&A activity) | C50: £m nominal | D50: 0 | E50: 18.13 | F50: 0 | G50: 0 | H50: 0 | I50: 0 | J50: 4.376 | K50: 0 | L50: =SUM(D50:INDEX(D50:K50,0,MATCH('RFPR cover'!$C$7,$D$6:$K$6,0))) -> 22.506 | M50: =SUM(D50:K50) -> 22.506
B51: Add accrual for inflation accretion on index-linked swaps (if applicable) | C51: £m nominal | D51: 0 | E51: 0 | F51: 0 | G51: 0 | H51: 0 | I51: 0 | J51: 0 | K51: 0 | L51: =SUM(D51:INDEX(D51:K51,0,MATCH('RFPR cover'!$C$7,$D$6:$K$6,0))) -> 0 | M51: 0
B52: Correction of debt issuance expense add back above | C52: £m nominal | D52: 0 | E52: 0 | F52: 0 | G52: -0.6567477153 | H52: -1.811514265 | I52: -1.828953683 | J52: 0 | K52: 0 | L52: =SUM(D52:INDEX(D52:K52,0,MATCH('RFPR cover'!$C$7,$D$6:$K$6,0))) -> -4.297215664 | M52: -4.297215664
B53: Correction of inflation strip calculation | C53: £m nominal | D53: 7.227440822 | E53: 3.114583784 | F53: 1.048841208 | G53: 0.7509989348 | H53: 2.507052284 | I53: 4.967062691 | J53: 0 | K53: 0 | L53: =SUM(D53:INDEX(D53:K53,0,MATCH('RFPR cover'!$C$7,$D$6:$K$6,0))) -> 19.61597972 | M53: 19.61597972
B54: Other Adjustments [please specify] | C54: £m nominal | D54: 0 | E54: 0 | F54: 0 | G54: 0 | H54: 0 | I54: 0 | J54: 0 | K54: 0 | L54: =SUM(D54:INDEX(D54:K54,0,MATCH('RFPR cover'!$C$7,$D$6:$K$6,0))) -> 0 | M54: 0
B55: Other Adjustments [please specify] | C55: £m nominal | D55: 0 | E55: 0 | F55: 0 | G55: 0 | H55: 0 | I55: 0 | J55: 0 | K55: 0 | L55: =SUM(D55:INDEX(D55:K55,0,MATCH('RFPR cover'!$C$7,$D$6:$K$6,0))) -> 0 | M55: 0
B57: Total Adjustments to be applied for performance assessment (at actual gearing) | C57: £m nominal | D57: =SUM(D48:D55) -> 7.227440822 | E57: =SUM(E48:E55) -> 21.24458378 | F57: 1.048841208 | G57: 1.094251219 | H57: 3.445740973 | I57: 5.908109008 | J57: 8.942235503 | K57: 3.06516627 | L57: =SUM(D57:INDEX(D57:K57,0,MATCH('RFPR cover'!$C$7,$D$6:$K$6,0))) -> 51.97636879 | M57: 51.97636879
B58: Total Adjustments to be applied for performance assessment (at actual gearing) | C58: £m 09/10 | D58: =D57/D43 -> 6.194830331 | E58: =E57/E43 -> 17.85924996 | F58: 0.8723073815 | G58: 0.8909827575 | H58: 2.704458192 | I58: 4.499608046 | J58: 6.638542701 | K58: 2.248252627 | L58: =SUM(D58:INDEX(D58:K58,0,MATCH('RFPR cover'!$C$7,$D$6:$K$6,0))) -> 41.908232 | M58: =SUM(D58:K58) -> 41.908232
B61: Cost of Debt out(under)performance at notional gearing
B62: Performance against allowance is impacted by deviating from notional levels of gearing
B64: Notional Gearing | C64: % | D64: 0.65 | E64: 0.65 | F64: 0.65 | G64: 0.65 | H64: 0.65 | I64: 0.65 | J64: 0.65 | K64: 0.65
B65: Actual Gearing | C65: % | D65: 0.5347470298 | E65: 0.5740489096 | F65: 0.561846483 | G65: 0.5872888265 | H65: 0.6236832437 | I65: 0.6301344233 | J65: 0.6363213988 | K65: 0.6304964487
B67: Assumed regulatory finance cost at actual gearing | C67: £m nominal | D67: =D41 -> 8.958253919 | E67: 17.27035239 | F67: 26.37867524 | G67: 24.06861859 | H67: -1.964918467 | I67: 9.616663676 | J67: 22.1096727 | K67: 45.87496776
B68: Adjustment to regulatory finance cost relating to variance from notional gearing | C68: £m nominal | D68: =((D64-D65)/D65)*D67 -> 1.930754758 | E68: =((E64-E65)/E65)*E67 -> 2.28500059 | F68: 4.138804936 | G68: 2.570066464 | H68: -0.08291112685 | I68: 0.3031743113 | J68: 0.47527774 | K68: 1.419079818
B69: Assumed regulatory finance cost at notional gearing | C69: £m nominal | D69: =SUM(D67:D68) -> 10.88900868 | E69: =SUM(E67:E68) -> 19.55535298 | F69: 30.51748017 | G69: 26.63868505 | H69: -2.047829593 | I69: 9.919837987 | J69: 22.58495044 | K69: 47.29404758
B71: Assumed regulatory finance cost at notional gearing | C71: £m 09/10 | D71: =D69/D43 -> 9.333256804 | E71: 16.43919884 | F71: 25.38098524 | G71: 21.69027427 | H71: -1.6072797 | I71: 7.554935558 | J71: 16.76663043 | K71: 34.6894613 | L71: =SUM(D71:INDEX(D71:K71,0,MATCH('RFPR cover'!$C$7,$D$6:$K$6,0))) -> 130.2474627 | M71: =SUM(D71:K71) -> 130.2474627
B72: Adjustments to be applied for performance assessment (at notional gearing) | C72: £m 09/10 | D72: =D58*((D64-D65)/D65)+D58 -> 7.529989867 | E72: =E58*((E64-E65)/E65)+E58 -> 20.22216623 | F72: 1.009172105 | G72: 0.9861226134 | H72: 2.818574721 | I72: 4.641462395 | J72: 6.781247282 | K72: 2.317799269 | L72: =SUM(D72:INDEX(D72:K72,0,MATCH('RFPR cover'!$C$7,$D$6:$K$6,0))) -> 46.30653448 | M72: =SUM(D72:K72) -> 46.30653448
B74: Cost of Debt Allowance
B76: The latest published PCFM contains the allowed cost of debt rate (%) for the reporting year.
B77: However, the RAV does not account for the reporting year actual expenditure and additional allowances.
B78: Consequently the return element of revenue does not currently reflect the monetary allowance. This is updated and available in the forthcoming annual iteration process.
B79: To address this timing issue, network operators should forecast the allowance in row 79 (linked to R9-RAV table) - which will be trued-up over time.
B81: Cost of Debt Allowance as per latest published PCFM (prior year AIP) | C81: £m 09/10 | D81: 46.94657684 | E81: 43.36093355 | F81: 40.39532297 | G81: 37.63511949 | H81: 35.10661106 | I81: 30.24291476 | J81: 25.06119537 | K81: 17.32530601
B82: Forecast revised Cost of Debt Allowance | C82: £m 09/10 | D82: 46.89270415 | E82: 43.21976176 | F82: 40.23256995 | G82: 37.44893576 | H82: 34.85043138 | I82: 30.018317 | J82: 24.99487071 | K82: 17.40483246 | L82: =SUM(D82:INDEX(D82:K82,0,MATCH('RFPR cover'!$C$7,$D$6:$K$6,0))) -> 275.0624232 | M82: =SUM(D82:K82) -> 275.0624232
B85: Out(under) performance
B87: Pre-Tax performance
B88: Pre-Tax Cost of Debt out(under)performance at actual gearing | C88: £m 09/10 | D88: =D82-D45-D58 -> 33.01951789 | E88: =E82-E45-E58 -> 10.8421977 | F88: 17.42146673 | G88: 16.96032882 | H88: 33.68817845 | I88: 18.19467055 | J88: 1.942534583 | K88: -18.49200811 | L88: =SUM(D88:INDEX(D88:K88,0,MATCH('RFPR cover'!$C$7,$D$6:$K$6,0))) -> 113.5768866 | M88: =SUM(D88:K88) -> 113.5768866
B90: Pre-Tax Cost of Debt out(under)performance at notional gearing | C90: £m 09/10 | D90: =D82-D71-D72 -> 30.02945748 | E90: =E82-E71-E72 -> 6.558396691 | F90: 13.8424126 | G90: 14.77253888 | H90: 33.63913636 | I90: 17.82191905 | J90: 1.446993 | K90: -19.60242812 | L90: =SUM(D90:INDEX(D90:K90,0,MATCH('RFPR cover'!$C$7,$D$6:$K$6,0))) -> 98.50842594 | M90: =SUM(D90:K90) -> 98.50842594
B92: Pre-Tax Impact on out(under) performance relating to deviating from notional levels of gearing | C92: £m 09/10 | D92: =D88-D90 -> 2.99006041 | E92: 4.283801006 | F92: 3.579054132 | G92: 2.187789938 | H92: 0.04904208604 | I92: 0.372751506 | J92: 0.4955415833 | K92: 1.110420006 | L92: =SUM(D92:INDEX(D92:K92,0,MATCH('RFPR cover'!$C$7,$D$6:$K$6,0))) -> 15.06846067 | M92: =SUM(D92:K92) -> 15.06846067

Sheet R8 - Net Debt
A1: R8 - Net Debt
A2: ='RFPR cover'!C5 -> Cadent-EOE
A3: ='RFPR cover'!C7 -> 2021 | B3: ='R1 - RoRE'!B3 -> 
D5: Actuals | E5: Actuals | F5: Actuals | G5: Actuals | H5: Actuals | I5: Actuals | J5: Actuals | K5: Actuals
D6: ='RFPR cover'!$C$13 -> 2014 | E6: =D6+1 -> 2015 | F6: =E6+1 -> 2016 | G6: 2017 | H6: 2018 | I6: 2019 | J6: 2020 | K6: 2021
B8: Opening Cash, short term deposits and overdrafts (per Balance Sheet) | C8: £m nominal | D8: -513 | E8: =D10 -> -257.707346 | F8: =E10 -> -230.1982394 | G8: -67.9508992 | H8: -38.99908504 | I8: -164.53 | J8: -328.34 | K8: -335.7
B10: Closing Cash, short term deposits and overdrafts (per Balance Sheet) | C10: £m nominal | D10: -257.707346 | E10: -230.1982394 | F10: -67.9508992 | G10: -38.99908504 | H10: -164.53 | I10: -328.34 | J10: -335.7 | K10: -826.1311099
B11: External borrowings, bonds, external loans and finance leases (+ve) | C11: £m nominal | D11: 4571.476896 | E11: 4673.721831 | F11: 4702.326905 | G11: 1709.99927 | H11: 6330.666466 | I11: 6684.145364 | J11: 6966.039115 | K11: 7428.536388
B12: Loans from other group companies (+ve) | C12: £m nominal | D12: 0 | E12: 0 | F12: 0 | G12: 4311.999103 | H12: 0 | I12: 0 | J12: 0 | K12: 0
B13: Loans to other group companies (-ve) | C13: £m nominal | D13: 1196.767773 | E13: 1241.041197 | F13: 955.0530052 | G13: 0 | H13: 0 | I13: 0 | J13: 0 | K13: 0
B14: Other amounts due to/(from) group companies per Balance Sheet | C14: £m nominal | D14: 0 | E14: 0 | F14: 0 | G14: 0 | H14: 0 | I14: 0 | J14: 0 | K14: 0
B15: Guarantees given on behalf of other group companies (per Notes to the Accounts) (+ve) | C15: £m nominal | D15: 0 | E15: 0 | F15: 0 | G15: 0 | H15: 40.91 | I15: 41.91 | J15: 69.77177841 | K15: 63.90936975
B16: Currency SWAPS | C16: £m nominal | D16: 0 | E16: 0 | F16: 0 | G16: 0 | H16: -14.64129762 | I16: -4.74769047 | J16: -26.10001358 | K16: 48.30554987
B17: Interest rate SWAPS | C17: £m nominal | D17: 0 | E17: 0 | F17: 0 | G17: 0 | H17: 0 | I17: 0 | J17: 0 | K17: 0
B18: Inflation-linked SWAPS | C18: £m nominal | D18: 0 | E18: 0 | F18: 0 | G18: 0 | H18: 5.52257724 | I18: 34.6005225 | J18: 58.91810593 | K18: 66.74754241
B19: Interest Rate Forward Contracts | C19: £m nominal | D19: 0 | E19: 0 | F19: 0 | G19: 0 | H19: 0 | I19: 0 | J19: 0 | K19: 0
B20: Foreign exchange forward rate contracts | C20: £m nominal | D20: 0 | E20: 0 | F20: 0 | G20: 0 | H20: 0 | I20: 0 | J20: 0.10614119 | K20: 0.18268189
B21: Other swaps, forward rate contracts & OTC options | C21: £m nominal | D21: -205.5373223 | E21: -281.5647887 | F21: -320.4290109 | G21: 0 | H21: 0 | I21: 0 | J21: 0 | K21: 0
B22: Other derivatives including exchange traded futures and options | C22: £m nominal | D22: 0 | E22: 0 | F22: 0 | G22: 0 | H22: 0 | I22: 0 | J22: 0 | K22: 0
B23: Total Debt per Statutory Accounts | C23: £m nominal | D23: =SUM(D10:D22) -> 5305 | E23: =SUM(E10:E22) -> 5403 | F23: 5269 | G23: 5982.999288 | H23: 6197.927745 | I23: 6427.568196 | J23: 6733.035127 | K23: 6781.550422
B25: Conversion to Regulatory (RIIO-1) Definition of Net Debt
B26: Unamortised Issue Costs | C26: £m nominal | D26: 0 | E26: 0 | F26: 0 | G26: 11.76529318 | H26: 11.70151638 | I26: 10.9 | J26: 14.36155951 | K26: 14.46798041
B27: Fixed asset investments not readily convertible to cash | C27: £m nominal | D27: 0 | E27: 0 | F27: 0 | G27: 0 | H27: 0 | I27: 0 | J27: 0 | K27: 0
B28: Preference shares | C28: £m nominal | D28: 0 | E28: 0 | F28: 0 | G28: 0 | H28: 0 | I28: 0 | J28: 0 | K28: 0
B29: Long term loans (Not for benefit of regulated business or distribution in nature) | C29: £m nominal | D29: 0 | E29: 0 | F29: 0 | G29: 0 | H29: 0 | I29: 0 | J29: 0 | K29: 0
B30: Currency debt amount to reflect ultimate sterling liability | C30: £m nominal | D30: 0 | E30: 0 | F30: 0 | G30: -9.751834099 | H30: -5.349132993 | I30: -1.74 | J30: -17.71589001 | K30: -19.38318735
B31: Impact of fair value adjustments | C31: £m nominal | D31: 42.38373791 | E31: -6.4196 | F31: -28.08 | G31: -317.4531761 | H31: -309.3773091 | I31: -301.32 | J31: -283.6513216 | K31: -271.1186843
B32: Accrued Interest | C32: £m nominal | D32: -50.67388744 | E32: -49.606 | F32: -50.31 | G32: -40.00826043 | H32: -40.91080948 | I32: -41.91 | J32: -44.0983376 | K32: -44.03666732
B33: ILS financial exposure; direct offset with row 180 (no net impact on regulatory net debt) | C33: £m nominal | D33: 0 | E33: 0 | F33: 0 | G33: 0 | H33: -5.52257724 | I33: -34.600522 | J33: -58.91810593 | K33: -66.74754241
B34: ILS financial exposure; financials presented up to FY16/17 relate to pre segmentation derivatives. Post FY 17/18 balances relate to accretions on instrument B2.1. | C34: £m nominal | D34: 57.6433474 | E34: 34.4324 | F34: 26.325 | G34: 0 | H34: 0 | I34: 27.848262 | J34: 37.16919655 | K34: 42.9211242
B35: Less: Derivatives excluding Cross currency | C35: £m nominal | D35: 0 | E35: 0 | F35: 0 | G35: 0 | H35: 0 | I35: 0 | J35: 0 | K35: 0
B36: Net debt relating to Metering | C36: £m nominal | D36: -299 | E36: -430 | F36: -332 | G36: 0 | H36: 0 | I36: 0 | J36: 0 | K36: 0
B37: Net debt relating to other three networks | C37: £m nominal | D37: -3336.612197 | E37: -3267.6496 | F37: -3224.646 | G37: -3721.167407 | H37: -3851.549699 | I37: -4018.939668 | J37: -4195.345122 | K37: -4265.944986
B38: 9. IFRS 16 Lease Liabilities | C38: £m nominal | D38: 0 | E38: 0 | F38: 0 | G38: 0 | H38: 0 | I38: 0 | J38: -25.67344081 | K38: -19.87270243
B39: 10. [Insert adjustment as necessary] | C39: £m nominal | D39: 0 | E39: 0 | F39: 0 | G39: 0 | H39: 0 | I39: 0 | J39: 0 | K39: 0
B40: 11. [Insert adjustment as necessary] | C40: £m nominal | D40: 0 | E40: 0 | F40: 0 | G40: 0 | H40: 0 | I40: 0 | J40: 0 | K40: 0
B41: 12. [Insert adjustment as necessary] | C41: £m nominal | D41: 0.06 | E41: -0.73 | F41: 0 | G41: -0.03061514993 | H41: 0.05999985 | I41: 0 | J41: 0 | K41: 0
B42: Total Net Debt per Regulatory (RIIO-1) definition | C42: £m nominal | D42: =SUM(D23,D26:D41) -> 1718.801001 | E42: =SUM(E23,E26:E41) -> 1683.0272 | F42: 1660.289 | G42: 1906.353288 | H42: 1996.979734 | I42: 2067.806268 | J42: 2159.163665 | K42: 2151.835757
B43: Forecast new debt/refinancing | C43: £m nominal
B44: Regulatory Net Debt including forecast new debt/refinancing | C44: £m nominal | D44: =SUM(D42:D43) -> 1718.801001 | E44: =SUM(E42:E43) -> 1683.0272 | F44: 1660.289 | G44: 1906.353288 | H44: 1996.979734 | I44: 2067.806268 | J44: 2159.163665 | K44: 2151.835757
D45: OK | E45: OK | F45: OK | G45: OK | H45: OK | I45: OK | J45: OK | K45: OK
B47: Opening Regulatory Net Debt including forecast new debt/refinancing | C47: £m nominal | D47: 1433 | E47: =D48 -> 1718.801001 | F47: =E48 -> 1683.0272 | G47: 1660.289 | H47: 1906.353288 | I47: 1996.979734 | J47: 2067.806268 | K47: 2159.163665
B48: Closing Regulatory Net Debt including forecast new debt/refinancing | C48: £m nominal | D48: =D44 -> 1718.801001 | E48: =E44 -> 1683.0272 | F48: =F44 -> 1660.289 | G48: 1906.353288 | H48: 1996.979734 | I48: 2067.806268 | J48: 2159.163665 | K48: 2151.835757
B50: Allocation of net debt (Per regulatory definition. Transmission companies only)
B51: System operator allocation (transmission companies only) | C51: % | D51: 0 | E51: 0 | F51: 0 | G51: 0 | H51: 0 | I51: 0 | J51: 0 | K51: 0
B52: Transmission or distribution allocation | C52: % | D52: =1-D51 -> 1 | E52: =1-E51 -> 1 | F52: 1 | G52: 1 | H52: 1 | I52: 1 | J52: 1 | K52: 1
B54: Average Net Debt (per Regulatory Definition) | C54: £m nominal | D54: =AVERAGE(D47:D48)*D52 -> 1575.9005 | E54: =AVERAGE(E47:E48)*E52 -> 1700.9141 | F54: 1671.6581 | G54: 1783.321144 | H54: 1951.666511 | I54: 2032.393001 | J54: 2113.484967 | K54: 2155.499711
B55: Equity RAV | C55: £m nominal | D55: =D56-D54 -> 1371.101376 | E55: =E56-E54 -> 1262.09841 | F55: 1303.635242 | G55: 1253.210565 | H55: 1177.592661 | I55: 1192.939445 | J55: 1207.926149 | K55: 1263.234392
B56: Average RAV | C56: £m nominal | D56: 2947.001877 | E56: 2963.01251 | F56: 2975.293342 | G56: 3036.531709 | H56: 3129.259172 | I56: 3225.332446 | J56: 3321.411115 | K56: 3418.734103
B57: Actual Regulatory Gearing | C57: % | D57: =D54/D56 -> 0.5347470298 | E57: =E54/E56 -> 0.5740489096 | F57: 0.561846483 | G57: 0.5872888265 | H57: 0.6236832437 | I57: 0.6301344233 | J57: 0.6363213988 | K57: 0.6304964487
B58: Notional Gearing | C58: % | D58: 0.65 | E58: 0.65 | F58: 0.65 | G58: 0.65 | H58: 0.65 | I58: 0.65 | J58: 0.65 | K58: 0.65
B59: Gearing Ratio delta | C59: % | D59: =IF(ISBLANK(D23),"n/a",D57-D58) -> -0.1152529702 | E59: -0.07595109045 | F59: -0.08815351705 | G59: -0.06271117354 | H59: -0.02631675635 | I59: -0.01986557669 | J59: -0.01367860123 | K59: -0.01950355127
B61: NPV Neutral assumed Average Net Debt | C61: £m 09/10 | D61: =D63*D57 -> 1321.166189 | E61: 1403.295085 | F61: 1363.772424 | G61: 1421.676893 | H61: 1506.280671 | I61: 1523.606514 | J61: 1548.663203 | K61: 1548.861687
B62: NPV Neutral assumed Equity RAV | C62: £m 09/10 | D62: =D63*(1-D57) -> 1149.471543 | E62: =E63*(1-E57) -> 1041.261575 | F62: 1063.531947 | G62: 999.0687928 | H62: 908.8566386 | I62: 894.3006145 | J62: 885.1119396 | K62: 907.7131126
B63: NPV Neutral assumed Average RAV | C63: £m 09/10 | D63: 2470.637732 | E63: 2444.55666 | F63: 2427.304371 | G63: 2420.745686 | H63: 2415.13731 | I63: 2417.907128 | J63: 2433.775143 | K63: 2456.5748
B64: Actual Regulatory Gearing | C64: % | D64: =D61/D63 -> 0.5347470298 | E64: =E61/E63 -> 0.5740489096 | F64: 0.561846483 | G64: 0.5872888265 | H64: 0.6236832437 | I64: 0.6301344233 | J64: 0.6363213988 | K64: 0.6304964487
B65: Notional Gearing | C65: % | D65: 0.65 | E65: 0.65 | F65: 0.65 | G65: 0.65 | H65: 0.65 | I65: 0.65 | J65: 0.65 | K65: 0.65
B66: Gearing Ratio delta | C66: % | D66: =IF(ISBLANK(D23),"n/a",D64-D65) -> -0.1152529702 | E66: -0.07595109045 | F66: -0.08815351705 | G66: -0.06271117354 | H66: -0.02631675635 | I66: -0.01986557669 | J66: -0.01367860123 | K66: -0.01950355127

Sheet R9 - RAV
A1: R9 - Regulatory Asset Value (RAV)
A2: ='RFPR cover'!C5 -> Cadent-EOE
A3: ='RFPR cover'!C7 -> 2021
D5: =IF(D6<='RFPR cover'!$C$7-1,"Actuals","Forecast") -> Actuals | E5: =IF(E6<='RFPR cover'!$C$7-1,"Actuals","Forecast") -> Actuals | F5: =IF(F6<='RFPR cover'!$C$7-1,"Actuals","Forecast") -> Actuals | G5: =IF(G6<='RFPR cover'!$C$7-1,"Actuals","Forecast") -> Actuals | H5: =IF(H6<='RFPR cover'!$C$7-1,"Actuals","Forecast") -> Actuals | I5: =IF(I6<='RFPR cover'!$C$7-1,"Actuals","Forecast") -> Actuals | J5: =IF(J6<='RFPR cover'!$C$7-1,"Actuals","Forecast") -> Actuals | K5: =IF(K6<='RFPR cover'!$C$7-1,"Actuals","Forecast") -> Forecast
D6: ='RFPR cover'!$C$13 -> 2014 | E6: =D6+1 -> 2015 | F6: =E6+1 -> 2016 | G6: 2017 | H6: 2018 | I6: 2019 | J6: 2020 | K6: 2021
B8: RAV per latest published PCFM
B9: The latest published PCFM does not account for the impact of the reporting years totex. This will be published in the forthcoming annual iteration process.
B11: Closing RAV per latest published PCFM | C11: ='RFPR cover'!$C$14 -> £m 09/10 | D11: 2514.329012 | E11: 2489.08568 | F11: 2480.627522 | G11: 2477.755781 | H11: 2478.483779 | I11: 2479.355468 | J11: 2482.299336 | K11: 2482.171211
B13: Revised RAV - including forecast totex, allowances and enduring value
B14: Revised adjusted RAV including forecast totex, allowances and enduring value
B16: Opening RAV (before transfers) | C16: ='RFPR cover'!$C$14 -> £m 09/10 | D16: 2534.963902 | E16: =D29 -> 2508.411361 | F16: =E29 -> 2478.620231 | G16: 2471.087451 | H16: 2462.660041 | I16: 2457.299819 | J16: 2463.819858 | K16: 2484.784217
B17: Transfers | C17: ='RFPR cover'!$C$14 -> £m 09/10 | D17: 0 | E17: 0 | F17: 0 | G17: 0 | H17: 0 | I17: 0 | J17: 0 | K17: 0
B18: Opening RAV (after transfers) | C18: ='RFPR cover'!$C$14 -> £m 09/10 | D18: =SUM(D16:D17) -> 2534.963902 | E18: =SUM(E16:E17) -> 2508.411361 | F18: 2478.620231 | G18: 2471.087451 | H18: 2462.660041 | I18: 2457.299819 | J18: 2463.819858 | K18: 2484.784217
B19: Net additions (after disposals) | C19: ='RFPR cover'!$C$14 -> £m 09/10 | D19: 102.8225882 | E19: 100.1321558 | F19: 108.1173263 | G19: 113.5431241 | H19: 123.4113181 | I19: 132.2614703 | J19: 143.2892829 | K19: 162.5463028
B20: Net additions (after disposals) - enduring value adjustment | C20: ='RFPR cover'!$C$14 -> £m 09/10 | D20: -5.916727615 | E20: -4.804477889 | F20: 0.4650348375 | G20: -5.983970531 | H20: -6.768056565 | I20: 4.67811047 | J20: 17.28042787 | K20: 6.971125219
B21: Total Net Additions | C21: ='RFPR cover'!$C$14 -> £m 09/10 | D21: =SUM(D19:D20) -> 96.90586054 | E21: 95.32767791 | F21: 108.5823611 | G21: 107.5591536 | H21: 116.6432615 | I21: 136.9395808 | J21: 160.5697108 | K21: 169.517428
B22: Depreciation | C22: ='RFPR cover'!$C$14 -> £m 09/10 | D22: -123.4584008 | E22: -125.3760573 | F22: -116.575564 | G22: -116.4164088 | H22: -122.6835914 | I22: -131.3782231 | J22: -140.3384061 | K22: -151.7501468
B23: Depreciation - enduring value adjustment | C23: ='RFPR cover'!$C$14 -> £m 09/10 | D23: 0 | E23: 0.2572490267 | F23: 0.4604227247 | G23: 0.4298451661 | H23: 0.6801084542 | I23: 0.9586808254 | J23: 0.7330545753 | K23: -0.03597860475
B24: Total Depreciation | C24: ='RFPR cover'!$C$14 -> £m 09/10 | D24: =SUM(D22:D23) -> -123.4584008 | E24: -125.1188083 | F24: -116.1151412 | G24: -115.9865637 | H24: -122.003483 | I24: -130.4195423 | J24: -139.6053515 | K24: -151.7861254
B25: [Input other adjustment] | C25: ='RFPR cover'!$C$14 -> £m 09/10 | D25: 0 | E25: 0 | F25: 0 | G25: 0 | H25: 0 | I25: 0 | J25: 0 | K25: 0
B26: [Input other adjustment] | C26: ='RFPR cover'!$C$14 -> £m 09/10 | D26: 0 | E26: 0 | F26: 0 | G26: 0 | H26: 0 | I26: 0 | J26: 0 | K26: 0
B27: [Input other adjustment] | C27: ='RFPR cover'!$C$14 -> £m 09/10 | D27: 0 | E27: 0 | F27: 0 | G27: 0 | H27: 0 | I27: 0 | J27: 0 | K27: 0
B28: Other adjustments | C28: ='RFPR cover'!$C$14 -> £m 09/10 | D28: =SUM(D25:D27) -> 0 | E28: =SUM(E25:E27) -> 0 | F28: 0 | G28: 0 | H28: 0 | I28: 0 | J28: 0 | K28: 0
B29: Adjusted Closing RAV | C29: ='RFPR cover'!$C$14 -> £m 09/10 | D29: =D18+D21+D24+D28 -> 2508.411361 | E29: =E18+E21+E24+E28 -> 2478.620231 | F29: 2471.087451 | G29: 2462.660041 | H29: 2457.299819 | I29: 2463.819858 | J29: 2484.784217 | K29: 2502.51552
B31: Total enduring value and other adjustments | C31: ='RFPR cover'!$C$14 -> £m 09/10 | D31: =(D20+D23+D28) -> -5.916727615 | E31: -4.547228863 | F31: 0.9254575622 | G31: -5.554125365 | H31: -6.087948111 | I31: 5.636791295 | J31: 18.01348244 | K31: 6.935146614
B32: CHECK | D32: =IF(D5="Actuals",IF(ABS((D29-SUM($D$31:D31))-D11)<'RFPR cover'!$F$14,"TRUE","FALSE"),"NA") -> TRUE | E32: =IF(E5="Actuals",IF(ABS((E29-SUM($D$31:E31))-E11)<'RFPR cover'!$F$14,"TRUE","FALSE"),"NA") -> TRUE | F32: =IF(F5="Actuals",IF(ABS((F29-SUM($D$31:F31))-F11)<'RFPR cover'!$F$14,"TRUE","FALSE"),"NA") -> TRUE | G32: =IF(G5="Actuals",IF(ABS((G29-SUM($D$31:G31))-G11)<'RFPR cover'!$F$14,"TRUE","FALSE"),"NA") -> TRUE | H32: =IF(H5="Actuals",IF(ABS((H29-SUM($D$31:H31))-H11)<'RFPR cover'!$F$14,"TRUE","FALSE"),"NA") -> TRUE | I32: =IF(I5="Actuals",IF(ABS((I29-SUM($D$31:I31))-I11)<'RFPR cover'!$F$14,"TRUE","FALSE"),"NA") -> TRUE | J32: =IF(J5="Actuals",IF(ABS((J29-SUM($D$31:J31))-J11)<'RFPR cover'!$F$14,"TRUE","FALSE"),"NA") -> TRUE | K32: =IF(K5="Actuals",IF(ABS((K29-SUM($D$31:K31))-K11)<'RFPR cover'!$F$14,"TRUE","FALSE"),"NA") -> NA
B34: Year end RPI | C34: Index | D34: =Data!C$35 -> 1.182989058 | E34: =Data!D$35 -> 1.193648704 | F34: =Data!E$35 -> 1.210796832 | G34: =Data!F$35 -> 1.251118104 | H34: =Data!G$35 -> 1.293061497 | I34: =Data!H$35 -> 1.328516409 | J34: =Data!I$35 -> 1.356092452 | K34: =Data!J$35 -> 1.385754077
B35: Financial Year Average RPI (RPIt) | C35: Index | D35: =Data!C$34 -> 1.166689067 | E35: =Data!D$34 -> 1.189556327 | F35: =Data!E$34 -> 1.202375711 | G35: =Data!F$34 -> 1.228139614 | H35: =Data!G$34 -> 1.274096595 | I35: =Data!H$34 -> 1.313027479 | J35: =Data!I$34 -> 1.347017848 | K35: =Data!J$34 -> 1.363354915
B36: Index for Opening RAV conversion to nominal in yr 1 | C36: Index | D36: =INDEX(Data!$F$14:$F$30,MATCH($D$6-1,Data!$C$14:$C$30,0),0)/IF('RFPR cover'!$C$6="ED1",Data!$E$17,Data!$E$14) -> 1.154486089
B38: Adjusted Closing RAV | C38: £m nominal | D38: =D29*D34 -> 2967.423193 | E38: 2958.601827 | F38: 2991.984857 | G38: 3081.078562 | H38: 3177.439783 | I38: 3273.22511 | J38: 3369.597121 | K38: 3467.871085
B40: Cost of debt | C40: annual real % | D40: =INDEX(Data!$K$73:$T$100,MATCH('RFPR cover'!$C$5,Data!$B$73:$B$100,0),MATCH('R9 - RAV'!D$6,Data!$K$72:$T$72,0)) -> 0.0292 | E40: =INDEX(Data!$K$73:$T$100,MATCH('RFPR cover'!$C$5,Data!$B$73:$B$100,0),MATCH('R9 - RAV'!E$6,Data!$K$72:$T$72,0)) -> 0.0272 | F40: =INDEX(Data!$K$73:$T$100,MATCH('RFPR cover'!$C$5,Data!$B$73:$B$100,0),MATCH('R9 - RAV'!F$6,Data!$K$72:$T$72,0)) -> 0.0255 | G40: =INDEX(Data!$K$73:$T$100,MATCH('RFPR cover'!$C$5,Data!$B$73:$B$100,0),MATCH('R9 - RAV'!G$6,Data!$K$72:$T$72,0)) -> 0.0238 | H40: =INDEX(Data!$K$73:$T$100,MATCH('RFPR cover'!$C$5,Data!$B$73:$B$100,0),MATCH('R9 - RAV'!H$6,Data!$K$72:$T$72,0)) -> 0.0222 | I40: =INDEX(Data!$K$73:$T$100,MATCH('RFPR cover'!$C$5,Data!$B$73:$B$100,0),MATCH('R9 - RAV'!I$6,Data!$K$72:$T$72,0)) -> 0.0191 | J40: =INDEX(Data!$K$73:$T$100,MATCH('RFPR cover'!$C$5,Data!$B$73:$B$100,0),MATCH('R9 - RAV'!J$6,Data!$K$72:$T$72,0)) -> 0.0158 | K40: =INDEX(Data!$K$73:$T$100,MATCH('RFPR cover'!$C$5,Data!$B$73:$B$100,0),MATCH('R9 - RAV'!K$6,Data!$K$72:$T$72,0)) -> 0.0109
B41: Cost of equity | C41: annual real % | D41: ='RFPR cover'!$C$10 -> 0.067 | E41: ='RFPR cover'!$C$10 -> 0.067 | F41: ='RFPR cover'!$C$10 -> 0.067 | G41: ='RFPR cover'!$C$10 -> 0.067 | H41: ='RFPR cover'!$C$10 -> 0.067 | I41: ='RFPR cover'!$C$10 -> 0.067 | J41: ='RFPR cover'!$C$10 -> 0.067 | K41: ='RFPR cover'!$C$10 -> 0.067
B42: Notional gearing | C42: % | D42: ='RFPR cover'!$C$12 -> 0.65 | E42: ='RFPR cover'!$C$12 -> 0.65 | F42: ='RFPR cover'!$C$12 -> 0.65 | G42: ='RFPR cover'!$C$12 -> 0.65 | H42: ='RFPR cover'!$C$12 -> 0.65 | I42: ='RFPR cover'!$C$12 -> 0.65 | J42: ='RFPR cover'!$C$12 -> 0.65 | K42: ='RFPR cover'!$C$12 -> 0.65
B43: Vanilla WACC | C43: annual real % | D43: =D40*D42+D41*(1-D42) -> 0.04243 | E43: 0.04113 | F43: 0.040025 | G43: 0.03892 | H43: 0.03788 | I43: 0.035865 | J43: 0.03372 | K43: 0.030535
B45: NPV-neutral debt element of RAV | C45: ='RFPR cover'!$C$14 -> £m 09/10 | D45: =D47*D42 -> 1605.914526 | E45: 1588.961829 | F45: 1577.747841 | G45: 1573.484696 | H45: 1569.839251 | I45: 1571.639634 | J45: 1581.953843 | K45: 1596.77362
B46: NPV-neutral equity element of RAV | C46: ='RFPR cover'!$C$14 -> £m 09/10 | D46: =D47*(1-D42) -> 864.7232061 | E46: 855.5948312 | F46: 849.5565298 | G46: 847.26099 | H46: 845.2980585 | I46: 846.267495 | J46: 851.8212999 | K46: 859.80118
B47: NPV-neutral RAV return base | C47: ='RFPR cover'!$C$14 -> £m 09/10 | D47: =AVERAGE(D16,D29*(1/(1+D43))) -> 2470.637732 | E47: 2444.55666 | F47: 2427.304371 | G47: 2420.745686 | H47: 2415.13731 | I47: 2417.907128 | J47: 2433.775143 | K47: 2456.5748
B49: Debt Return on RAV | C49: ='RFPR cover'!$C$14 -> £m 09/10 | D49: =D40*D45 -> 46.89270415 | E49: =E40*E45 -> 43.21976176 | F49: 40.23256995 | G49: 37.44893576 | H49: 34.85043138 | I49: 30.018317 | J49: 24.99487071 | K49: 17.40483246
B50: Equity Return on RAV | C50: ='RFPR cover'!$C$14 -> £m 09/10 | D50: 57.93645481 | E50: 57.32485369 | F50: 56.9202875 | G50: 56.76648633 | H50: 56.63496992 | I50: 56.69992216 | J50: 57.07202709 | K50: 57.60667906
B51: Total return on RAV | C51: ='RFPR cover'!$C$14 -> £m 09/10 | D51: =SUM(D49:D50) -> 104.829159 | E51: =SUM(E49:E50) -> 100.5446154 | F51: 97.15285745 | G51: 94.21542208 | H51: 91.4854013 | I51: 86.71823916 | J51: 82.06689781 | K51: 75.01151152
B53: NPV-neutral debt element of RAV | C53: £m nominal | D53: =D$35*D45 -> 1873.60292 | E53: 1890.159597 | F53: 1897.045682 | G53: 1932.458886 | H53: 2000.126845 | I53: 2063.606025 | J53: 2130.920061 | K53: 2176.969163
B54: NPV-neutral equity element of RAV | C54: £m nominal | D54: 1008.863111 | E54: 1017.778245 | F54: 1021.486136 | G54: 1040.554785 | H54: 1076.991378 | I54: 1111.172475 | J54: 1147.418494 | K54: 1172.214165
B55: Adjusted NPV-neutral average RAV | C55: £m nominal | D55: =SUM(D53:D54) -> 2882.466031 | E55: =SUM(E53:E54) -> 2907.937842 | F55: 2918.531818 | G55: 2973.013671 | H55: 3077.118223 | I55: 3174.778501 | J55: 3278.338555 | K55: 3349.183328
B57: Debt Return on RAV | C57: £m nominal | D57: =D$35*D49 -> 54.70920527 | E57: 51.41234105 | F57: 48.37466489 | G57: 45.99252149 | H57: 44.40281596 | I57: 39.41487509 | J57: 33.66853696 | K57: 23.72896388
B58: Equity Return on NPV-neutral RAV | C58: £m nominal | D58: 67.59382843 | E58: 68.1911424 | F58: 68.43957114 | G58: 69.71717058 | H58: 72.15842233 | I58: 74.44855584 | J58: 76.87703911 | K58: 78.53834905
B59: Total return on RAV | C59: £m nominal | D59: =SUM(D57:D58) -> 122.3030337 | E59: 119.6034834 | F59: 116.814236 | G59: 115.7096921 | H59: 116.5612383 | I59: 113.8634309 | J59: 110.5455761 | K59: 102.2673129

Sheet R10 - Tax
A1: R10 - Tax
A2: ='RFPR cover'!C5 -> Cadent-EOE
A3: ='RFPR cover'!C7 -> 2021
D5: =IF(D6<=('RFPR cover'!$C$7-1),"Actuals","Forecast") -> Actuals | E5: =IF(E6<=('RFPR cover'!$C$7-1),"Actuals","Forecast") -> Actuals | F5: =IF(F6<=('RFPR cover'!$C$7-1),"Actuals","Forecast") -> Actuals | G5: =IF(G6<=('RFPR cover'!$C$7-1),"Actuals","Forecast") -> Actuals | H5: =IF(H6<=('RFPR cover'!$C$7-1),"Actuals","Forecast") -> Actuals | I5: =IF(I6<=('RFPR cover'!$C$7-1),"Actuals","Forecast") -> Actuals | J5: =IF(J6<=('RFPR cover'!$C$7-1),"Actuals","Forecast") -> Actuals | K5: =IF(K6<=('RFPR cover'!$C$7-1),"Actuals","Forecast") -> Forecast
D6: ='RFPR cover'!$C$13 -> 2014 | E6: =D6+1 -> 2015 | F6: =E6+1 -> 2016 | G6: 2017 | H6: 2018 | I6: 2019 | J6: 2020 | K6: 2021
B8: CT600 will not have been submitted for the current reporting year.
B9: It is assumed the current tax charge per the statutory accounts will equal the tax liability in the forthcoming CT600, where this is not the case the licensee should provide an explanation in the commentary of the variance.
B10: This will be corrected / trued-up in future years
B12: Tax liability per latest submitted CT600 (pre-group relief) | C12: £m nominal | D12: 154.975 | E12: 126.992 | F12: 134.012 | G12: -25.7 | H12: 125.2 | I12: 132.89854 | J12: 144.81819
B14: Adjustments to remove non-regulated tax liability
B15: Tax on non-regulated activities | C15: £m nominal | D15: 44.6468619 | E15: 42.4797453 | F15: 43.44862871 | G15: 0.4293253918 | H15: 0.7552502622 | I15: 0.5849864272 | J15: -3.292726117
B16: Tax relating to capital contributions (excluded services) | C16: £m nominal | D16: -4.498791074 | E16: -3.427918254 | F16: -83.87205642 | G16: -0.7489804721 | H16: -0.5642697889 | I16: -0.215764 | J16: 0.4880066873
B17: Tax on Separation costs/restructuring costs | C17: £m nominal | D17: 1.381593191 | E17: 0 | F17: 0 | G17: -2.28009114 | H17: -3.8 | I17: -3.116 | J17: -2.064399715
B18: Transfer pricing and de-grouping charge adjustment | C18: £m nominal | D18: 7.160544 | E18: 6.69186 | F18: 7.863804 | G18: -4 | H18: 0 | I18: 0 | J18: 0
B19: Tax on Payments to Cadent Foundation | C19: £m nominal | D19: 0 | E19: 0 | F19: 0 | G19: 0 | H19: 0 | I19: 0 | J19: -1.767
B20: Tax on Payment to Energy Savings Trust, GSOP and Grenfell | C20: £m nominal | D20: 0 | E20: 0 | F20: 0 | G20: 0 | H20: 0 | I20: -3.116 | J20: -0.8121479244
B21: Tax relating to other three networks (included in CT600) | C21: £m nominal | D21: 69.00873365 | E21: 52.40118575 | F21: 112.0962901 | G21: -6.637845068 | H21: 79.8724291 | I21: 85.74959154 | J21: 105.6093941
B22: Non-regulated tax | C22: £m nominal | D22: =SUM(D15:D21) -> 117.6989417 | E22: =SUM(E15:E21) -> 98.1448728 | F22: 79.53666639 | G22: -13.23759129 | H22: 76.26340958 | I22: 79.88681397 | J22: 98.161127 | K22: 0
B24: Other adjustments
B25: Tax on output incentives | C25: £m nominal | D25: =('R5 - Output Incentives'!D102)*INDEX(Data!$G$14:$G$30,MATCH('R10 - Tax'!D$6,Data!$C$14:$C$30,0),1) -> 0.075267063 | E25: =('R5 - Output Incentives'!E102)*INDEX(Data!$G$14:$G$30,MATCH('R10 - Tax'!E$6,Data!$C$14:$C$30,0),1) -> 0.0640557855 | F25: =('R5 - Output Incentives'!F102)*INDEX(Data!$G$14:$G$30,MATCH('R10 - Tax'!F$6,Data!$C$14:$C$30,0),1) -> 1.599416494 | G25: =('R5 - Output Incentives'!G102)*INDEX(Data!$G$14:$G$30,MATCH('R10 - Tax'!G$6,Data!$C$14:$C$30,0),1) -> 2.319401316 | H25: =('R5 - Output Incentives'!H102)*INDEX(Data!$G$14:$G$30,MATCH('R10 - Tax'!H$6,Data!$C$14:$C$30,0),1) -> 3.823320568 | I25: =('R5 - Output Incentives'!I102)*INDEX(Data!$G$14:$G$30,MATCH('R10 - Tax'!I$6,Data!$C$14:$C$30,0),1) -> 3.067424953 | J25: =('R5 - Output Incentives'!J102)*INDEX(Data!$G$14:$G$30,MATCH('R10 - Tax'!J$6,Data!$C$14:$C$30,0),1) -> 3.203022797 | K25: =('R5 - Output Incentives'!K102)*INDEX(Data!$G$14:$G$30,MATCH('R10 - Tax'!K$6,Data!$C$14:$C$30,0),1) -> 3.519562734
B26: Tax on IQI | C26: £m nominal | D26: =('R4 - Totex'!D77-'R4 - Totex'!D79)*D42 -> 0.385644159 | E26: =('R4 - Totex'!E77-'R4 - Totex'!E79)*E42 -> 0.342685398 | F26: =('R4 - Totex'!F77-'R4 - Totex'!F79)*F42 -> 0.3248256485 | G26: =('R4 - Totex'!G77-'R4 - Totex'!G79)*G42 -> 0.3332709619 | H26: =('R4 - Totex'!H77-'R4 - Totex'!H79)*H42 -> 0.3291814461 | I26: =('R4 - Totex'!I77-'R4 - Totex'!I79)*I42 -> 0.3368283475 | J26: =('R4 - Totex'!J77-'R4 - Totex'!J79)*J42 -> 0.3403513132 | K26: =('R4 - Totex'!K77-'R4 - Totex'!K79)*K42 -> 0.3412699283
B27: Collected revenue adjustment ('k') | C27: £m nominal | D27: 2.007401398 | E27: 0.0632843529 | F27: -0.606234111 | G27: 0.8442533215 | H27: 0.3632744115 | I27: -0.277536296 | J27: -0.0551614801
B28: Pension - timing adjustment | C28: £m nominal | D28: 0.5601423036 | E28: 0.2157728907 | F28: -0.00130131788 | G28: -0.04126174446 | H28: -1.693294387 | I28: -0.7305391483 | J28: -0.09716022909
B29: Pension - disallowed contributions | C29: £m nominal | D29: 0 | E29: 0 | F29: 0 | G29: 0 | H29: 0 | I29: 0 | J29: 0
B30: Tax on derivatives not disregarded | C30: £m nominal | D30: 0 | E30: 0 | F30: 0 | G30: 0 | H30: 0 | I30: 0 | J30: 0
B31: Tax arising from MOD values | C31: £m nominal | D31: 0.2077052227 | E31: -0.005624531801 | F31: 0.5878393349 | G31: 0.1999796558 | H31: -0.1008523469 | I31: -1.098131049 | J31: -2.632372037
B32: Tax on finance costs not included within the RIIO 1 definition | C32: £m nominal | D32: 0.5907288228 | E32: -1.6485 | F32: -0.4 | G32: -57.528 | H32: -0.02971067406 | I32: 0.09346119341 | J32: -0.05236414153
B33: Difference between actual and allowed pass through costs (inc exit capacity and shrinkage) | C33: £m nominal | D33: 0.6581478757 | E33: 1.539516179 | F33: 0.9520303131 | G33: -0.6370063465 | H33: 0.4101698314 | I33: 2.154691988 | J33: -0.06618847209
B34: Other revenue timing adjustments | C34: £m nominal | D34: -0.05060442645 | E34: -0.1057525807 | F34: 0.4149294047 | G34: -1.802397558 | H34: -2.62583263 | I34: -0.7820508097 | J34: 0.1319199009
B35: Regulatory tax losses carried forward from previous price controls | C35: £m nominal | D35: 0 | E35: 0 | F35: 0 | G35: 0 | H35: 0 | I35: 0 | J35: 0
B36: 0 | C36: £m nominal | D36: 0 | E36: 0 | F36: 0 | G36: 0 | H36: 0 | I36: 0 | J36: 0
B37: Total other adjustments | C37: £m nominal | D37: =SUM(D25:D36) -> 4.434432418 | E37: 0.4654374934 | F37: 2.871505766 | G37: -56.31176039 | H37: 0.4762562182 | I37: 2.764149179 | J37: 0.7720476516 | K37: 3.860832662
B39: Forecast regulated tax liability (including impact of enduring value adjustments) | C39: £m nominal | J39: 0 | K39: 50.95233719
B40: Adjusted forecast regulated tax liability with timing differences | C40: £m nominal | D40: =D12+D39-D22-D37 -> 32.84162592 | E40: =E12+E39-E22-E37 -> 28.38168971 | F40: =F12+F39-F22-F37 -> 51.60382784 | G40: =G12+G39-G22-G37 -> 43.84935168 | H40: 48.4603342 | I40: 50.24757685 | J40: 45.88501535 | K40: 47.09150453
B42: Financial year average RPI | C42: Index | D42: =Data!C$34 -> 1.166689067 | E42: =Data!D$34 -> 1.189556327 | F42: =Data!E$34 -> 1.202375711 | G42: =Data!F$34 -> 1.228139614 | H42: =Data!G$34 -> 1.274096595 | I42: =Data!H$34 -> 1.313027479 | J42: =Data!I$34 -> 1.347017848 | K42: =Data!J$34 -> 1.363354915
B44: Adjusted/forecast regulated tax liability with timing differences | C44: ='RFPR cover'!$C$14 -> £m 09/10 | D44: =D40/D42 -> 28.14942459 | E44: 23.8590549 | F44: 42.91822213 | G44: 35.70388187 | H44: 38.03505511 | I44: 38.26848841 | J44: 34.06414801 | K44: 34.54089907
B46: Tax out(under)performance at notional gearing
B47: Performance against allowance is impacted by deviating from notional levels of gearing
B49: Notional Gearing | C49: % | D49: ='RFPR cover'!$C$12 -> 0.65 | E49: ='RFPR cover'!$C$12 -> 0.65 | F49: ='RFPR cover'!$C$12 -> 0.65 | G49: ='RFPR cover'!$C$12 -> 0.65 | H49: ='RFPR cover'!$C$12 -> 0.65 | I49: ='RFPR cover'!$C$12 -> 0.65 | J49: ='RFPR cover'!$C$12 -> 0.65 | K49: ='RFPR cover'!$C$12 -> 0.65
B50: Actual Gearing | C50: % | D50: ='R8 - Net Debt'!D57 -> 0.5347470298 | E50: ='R8 - Net Debt'!E57 -> 0.5740489096 | F50: ='R8 - Net Debt'!F57 -> 0.561846483 | G50: ='R8 - Net Debt'!G57 -> 0.5872888265 | H50: ='R8 - Net Debt'!H57 -> 0.6236832437 | I50: ='R8 - Net Debt'!I57 -> 0.6301344233 | J50: ='R8 - Net Debt'!J57 -> 0.6363213988 | K50: ='R8 - Net Debt'!K57 -> 0.6304964487
B52: Adjusted/forecast regulated tax liability with timing differences | C52: £m nominal | D52: =D40 -> 32.84162592 | E52: =E40 -> 28.38168971 | F52: 51.60382784 | G52: 43.84935168 | H52: 48.4603342 | I52: 50.24757685 | J52: 45.88501535 | K52: 47.09150453
B53: Adjustment to regulatory tax cost relating to variance from notional gearing | C53: £m nominal | D53: =D88-D90 -> -0.443870861 | E53: =E88-E90 -> -0.4786945251 | F53: -0.8242450785 | G53: -0.3043932384 | H53: 0.2029814015 | I53: 0.1178422832 | J53: 0.6412940283 | K53: 0.4343095375
B54: Revised regulated tax liability for comparison against allowance | C54: £m nominal | D54: =SUM(D52:D53) -> 32.39775506 | E54: =SUM(E52:E53) -> 27.90299518 | F54: 50.77958277 | G54: 43.54495844 | H54: 48.66331561 | I54: 50.36541914 | J54: 46.52630937 | K54: 47.52581406
B56: Revised regulated tax liability for comparison against allowance | C56: ='RFPR cover'!$C$14 -> £m 09/10 | D56: =D54/D42 -> 27.76897115 | E56: =E54/E42 -> 23.45664056 | F56: 42.23270839 | G56: 35.45603282 | H56: 38.19436909 | I56: 38.35823694 | J56: 34.5402323 | K56: 34.85945848
B59: Allowance
B61: The latest published PCFM does not account for the forecast TIM performance - and ultimate impact on tax allowance.
B63: Tax Allowance per latest published PCFM | C63: ='RFPR cover'!$C$14 -> £m 09/10 | D63: 20.19697114 | E63: 14.75583744 | F63: 34.44000114 | G63: 31.03242398 | H63: 32.67054156 | I63: 33.5665007 | J63: 33.48006441 | K63: 35.75356575
B64: Tax clawbacks | C64: ='RFPR cover'!$C$14 -> £m 09/10 | D64: 0 | E64: 0 | F64: 5.719908177e-17 | G64: 0 | H64: 0 | I64: 0 | J64: 0 | K64: 0
B65: Net Tax Allowance | C65: ='RFPR cover'!$C$14 -> £m 09/10 | D65: =SUM(D63:D64) -> 20.19697114 | E65: 14.75583744 | F65: 34.44000114 | G65: 31.03242398 | H65: 32.67054156 | I65: 33.5665007 | J65: 33.48006441 | K65: 35.75356575
B67: Network operators should provide forecast allowances taking account of the latest totex, allowances, reopeners, enduring value adjustments - and other financial variables
B69: Forecast tax allowance | C69: ='RFPR cover'!$C$14 -> £m 09/10 | D69: 17.07971366 | E69: 11.54232001 | F69: 31.85389184 | G69: 27.3455731 | H69: 28.82673981 | I69: 34.39427768 | J69: 34.16590731 | K69: 34.98637705
B70: Forecast tax clawbacks | C70: ='RFPR cover'!$C$14 -> £m 09/10 | D70: 0 | E70: 0 | F70: 5.719908177e-17 | G70: 0 | H70: 0 | I70: 4.281237441e-16 | J70: 0 | K70: 0
B71: Net forecast tax allowance | C71: ='RFPR cover'!$C$14 -> £m 09/10 | D71: =SUM(D69:D70) -> 17.07971366 | E71: 11.54232001 | F71: 31.85389184 | G71: 27.3455731 | H71: 28.82673981 | I71: 34.39427768 | J71: 34.16590731 | K71: 34.98637705
B73: Reconciliation of forecast movement in allowance | D73: =D71-D65 -> -3.11725748 | E73: -3.213517427 | F73: -2.586109305 | G73: -3.686850886 | H73: -3.843801748 | I73: 0.8277769756 | J73: 0.6858428968 | K73: -0.7671887022
B74: Changes in corporation tax rates | C74: ='RFPR cover'!$C$14 -> £m 09/10 | D74: 0 | E74: 0 | F74: 0 | G74: 0 | H74: 0 | I74: 0 | J74: 0 | K74: 0
B75: Tax allowance retained within deadband | C75: ='RFPR cover'!$C$14 -> £m 09/10 | D75: 0 | E75: 0 | F75: 0 | G75: 0 | H75: 0 | I75: 0 | J75: 0 | K75: 0
B76: Other adjustments | C76: ='RFPR cover'!$C$14 -> £m 09/10 | D76: -3.11725748 | E76: -3.213517427 | F76: -2.586109305 | G76: -3.686850886 | H76: -3.843801748 | I76: 0.8277769756 | J76: 0.6858428968 | K76: -0.7671887022
B77: Check | C77: ='RFPR cover'!$C$14 -> £m 09/10 | D77: =IF(ABS(D73-SUM(D74:D76))<'RFPR cover'!$F$14,"OK","ERROR") -> OK | E77: =IF(ABS(E73-SUM(E74:E76))<'RFPR cover'!$F$14,"OK","ERROR") -> OK | F77: =IF(ABS(F73-SUM(F74:F76))<'RFPR cover'!$F$14,"OK","ERROR") -> OK | G77: =IF(ABS(G73-SUM(G74:G76))<'RFPR cover'!$F$14,"OK","ERROR") -> OK | H77: =IF(ABS(H73-SUM(H74:H76))<'RFPR cover'!$F$14,"OK","ERROR") -> OK | I77: =IF(ABS(I73-SUM(I74:I76))<'RFPR cover'!$F$14,"OK","ERROR") -> OK | J77: =IF(ABS(J73-SUM(J74:J76))<'RFPR cover'!$F$14,"OK","ERROR") -> OK | K77: =IF(ABS(K73-SUM(K74:K76))<'RFPR cover'!$F$14,"OK","ERROR") -> OK
B80: Out(under) performance
B82: Regulated tax out(under) performance at actual gearing | C82: ='RFPR cover'!$C$14 -> £m 09/10 | D82: =D$71-D44 -> -11.06971092 | E82: -12.31673488 | F82: -11.0643303 | G82: -8.358308774 | H82: -9.208315295 | I82: -3.874210734 | J82: 0.1017592987 | K82: 0.4454779811
B84: Regulated tax out(under) performance at notional gearing | C84: ='RFPR cover'!$C$14 -> £m 09/10 | D84: =D$71-D56 -> -10.68925749 | E84: -11.91432054 | F84: -10.37881655 | G84: -8.110459722 | H84: -9.367629277 | I84: -3.963959262 | J84: -0.3743249858 | K84: 0.126918571
B86: Impact on out(under) performance relating to deviating from notional levels of gearing | C86: ='RFPR cover'!$C$14 -> £m 09/10 | D86: =D82-D84 -> -0.3804534331 | E86: =E82-E84 -> -0.4024143408 | F86: -0.6855137467 | G86: -0.2478490515 | H86: 0.1593139816 | I86: 0.08974852778 | J86: 0.4760842845 | K86: 0.3185594101
B88: Tax impact of financing performance (at actual gearing) | C88: £m nominal | D88: -9.014350752 | E88: -9.47328181 | F88: -10.2628544 | G88: -6.240900689 | H88: -3.275146423 | I88: -1.567738329 | J88: 0.4111547986 | K88: 2.019285124
B89: Tax impact of financing performance (at actual gearing) | C89: ='RFPR cover'!$C$14 -> £m 09/10 | D89: =D88/D$42 -> -7.726438007 | E89: =E88/E$42 -> -7.963710163 | F89: -8.53548047 | G89: -5.08158895 | H89: -2.570563673 | I89: -1.193987448 | J89: 0.3052333711 | K89: 1.481114786
B90: Tax impact of financing performance (at notional gearing) | C90: £m nominal | D90: -8.570479891 | E90: -8.994587285 | F90: -9.438609319 | G90: -5.936507451 | H90: -3.478127824 | I90: -1.685580612 | J90: -0.2301392297 | K90: 1.584975586
B91: Tax impact of financing performance (at notional gearing) | C91: ='RFPR cover'!$C$14 -> £m 09/10 | D91: =D90/D$42 -> -7.345984573 | E91: -7.561295822 | F91: -7.849966723 | G91: -4.833739898 | H91: -2.729877655 | I91: -1.283735976 | J91: -0.1708509134 | K91: 1.162555376
B92: Tax impact of financing performance relating to deviating from notional levels of gearing | C92: ='RFPR cover'!$C$14 -> £m 09/10 | D92: =D89-D91 -> -0.3804534331 | E92: =E89-E91 -> -0.4024143408 | F92: -0.6855137467 | G92: -0.2478490515 | H92: 0.1593139816 | I92: 0.08974852778 | J92: 0.4760842845 | K92: 0.3185594101

Sheet R11 - Dividends
A1: R11 - Dividends
A2: ='RFPR cover'!C5 -> Cadent-EOE
A3: ='RFPR cover'!C7 -> 2021 | B3: ='R1 - RoRE'!B3 -> 
D5: =IF(D6<='RFPR cover'!$C$7,"Actuals","N/A") -> Actuals | E5: =IF(E6<='RFPR cover'!$C$7,"Actuals","N/A") -> Actuals | F5: =IF(F6<='RFPR cover'!$C$7,"Actuals","N/A") -> Actuals | G5: =IF(G6<='RFPR cover'!$C$7,"Actuals","N/A") -> Actuals | H5: =IF(H6<='RFPR cover'!$C$7,"Actuals","N/A") -> Actuals | I5: =IF(I6<='RFPR cover'!$C$7,"Actuals","N/A") -> Actuals | J5: =IF(J6<='RFPR cover'!$C$7,"Actuals","N/A") -> Actuals | K5: =IF(K6<='RFPR cover'!$C$7,"Actuals","N/A") -> Actuals
D6: ='RFPR cover'!$C$13 -> 2014 | E6: =D6+1 -> 2015 | F6: =E6+1 -> 2016 | G6: 2017 | H6: 2018 | I6: 2019 | J6: 2020 | K6: 2021
B8: Dividend paid as per Statutory Accounts | C8: £m nominal | D8: 455 | E8: 540 | F8: 458 | G8: 95 | H8: 418 | I8: 423 | J8: 275 | K8: 0
B9: Less dividend paid not related to Regulated business
B10: Metering | C10: £m nominal | D10: 65 | E10: 97 | F10: 67 | G10: - | H10: - | I10: 0 | J10: 0 | K10: 0
B11: Non regulated activities | C11: £m nominal | D11: 3 | E11: 7 | F11: 8 | G11: - | H11: 3 | I11: 2.121726915 | J11: 1.157518742 | K11: 0
B12: Other networks (London, West Midlands and North West) | C12: £m nominal | D12: 262 | E12: 299 | F12: 257 | G12: 67 | H12: 258 | I12: 260.5464416 | J12: 171.8078247 | K12: 0
B13: Dividend paid relating to the Regulated Business | C13: £m nominal | D13: =D8-SUM(D10:D12) -> 125 | E13: =E8-SUM(E10:E12) -> 137 | F13: 126 | G13: 28 | H13: 157 | I13: 160.3318314 | J13: 102.0346565 | K13: 0
B15: Shareholder loan interest (not included as Net Interest per Regulatory (RIIO-1) definition) | C15: £m nominal | D15: 0 | E15: 0 | F15: 0 | G15: 0 | H15: 0 | I15: 0 | J15: 0 | K15: 0

Sheet R12 - Pensions
A1: R12 - Pensions
A2: ='RFPR cover'!C5 -> Cadent-EOE
A3: ='RFPR cover'!C7 -> 2021
D5: =IF(D6<='RFPR cover'!$C$7,"Actuals","Forecast") -> Actuals | E5: =IF(E6<='RFPR cover'!$C$7,"Actuals","Forecast") -> Actuals | F5: =IF(F6<='RFPR cover'!$C$7,"Actuals","Forecast") -> Actuals | G5: =IF(G6<='RFPR cover'!$C$7,"Actuals","Forecast") -> Actuals | H5: =IF(H6<='RFPR cover'!$C$7,"Actuals","Forecast") -> Actuals | I5: =IF(I6<='RFPR cover'!$C$7,"Actuals","Forecast") -> Actuals | J5: =IF(J6<='RFPR cover'!$C$7,"Actuals","Forecast") -> Actuals | K5: =IF(K6<='RFPR cover'!$C$7,"Actuals","Forecast") -> Actuals
D6: ='RFPR cover'!$C$13 -> 2014 | E6: =D6+1 -> 2015 | F6: =E6+1 -> 2016 | G6: 2017 | H6: 2018 | I6: 2019 | J6: 2020 | K6: 2021
B8: Licensee share of total pension deficit repair payment made for defined benefit scheme | C8: £m nominal | D8: 2.698030577 | E8: 4.206557883 | F8: 4.214821577 | G8: 4.650718096 | H8: 13.78758432 | I8: 14.23897768 | J8: 14.6365603 | K8: 0.2733701812
B9: Of which:
B10: Established deficit element funded via specific allowances | C10: £m nominal | D10: 2.698030577 | E10: 4.206557883 | F10: 4.214821577 | G10: 4.50479737 | H10: 13.37141381 | I10: 13.80918211 | J10: 14.19476392 | K10: 0.382648068
B11: Incremental deficit funded via totex | C11: £m nominal | D11: 0 | E11: 0 | F11: 0 | G11: 0.1459207266 | H11: 0.4 | I11: 0.4 | J11: 0.4417963789 | K11: -0.1092778868
B14: Established deficit element funded via specific allowances | C14: ='RFPR cover'!$C$14 -> £m 09/10 | D14: =D10/Data!C$34 -> 2.312553235 | E14: =E10/Data!D$34 -> 3.536241023 | F14: =F10/Data!E$34 -> 3.505411444 | G14: =G10/Data!F$34 -> 3.667984747 | H14: =H10/Data!G$34 -> 10.49481951 | I14: =I10/Data!H$34 -> 10.51705492 | J14: =J10/Data!I$34 -> 10.53791822 | K14: =K10/Data!J$34 -> 0.2806665115
B17: Established deficit (EDE) allowance as per PCFM | C17: ='RFPR cover'!$C$14 -> £m 09/10 | D17: 4.4 | E17: 4.4 | F17: 3.5 | G17: 3.5 | H17: 3.5 | I17: 10.2 | J17: 10.15898782 | K17: 10.15898782
B18: Less Pension Payment History Allowance (PPH) | C18: ='RFPR cover'!$C$14 -> £m 09/10 | D18: 0 | E18: 0 | F18: 0 | G18: 0 | H18: 0 | I18: -0.4 | J18: -0.4 | K18: -0.4
B19: Established deficit allowance less PPH | C19: ='RFPR cover'!$C$14 -> £m 09/10 | D19: =D17-D18 -> 4.4 | E19: =E17-E18 -> 4.4 | F19: 3.5 | G19: 3.5 | H19: 3.5 | I19: 10.6 | J19: 10.55898782 | K19: 10.55898782
D21: Enter valuation date
B24: Latest pension scheme valuation | D24: 2019-03-31
B26: Price base | D26: 43555
D28: £m
B29: Total Liabilities attributable to post cut-off date notional sub fund | D29: 189.9403274
B30: Total Liabilities attributable to pre cut-off date notional sub fund | D30: 6559.759673
B32: Total Assets attributable to post cut-off date notional sub fund | D32: 221.9
B33: Total Assets attributable to pre cut-off date notional sub fund | D33: 6445.5
B35: Deficit in the post Cut-Off Date Notional Sub-Fund | D35: =D29-D32 -> -31.95967259
B36: Deficit in the pre Cut-Off Date Notional Sub-Fund | D36: =D30-D33 -> 114.2596726
B38: Licensee element of established deficit | D38: 40.37936829
B39: Licensee element of incremental deficit | D39: -11.00708122

Sheet R13 - Other Activities
A1: R13 - Other activities
A2: ='RFPR cover'!C5 -> Cadent-EOE
A3: ='RFPR cover'!C7 -> 2021
D5: =IF(D6<='RFPR cover'!$C$7,"Actuals","Forecast") -> Actuals | E5: =IF(E6<='RFPR cover'!$C$7,"Actuals","Forecast") -> Actuals | F5: =IF(F6<='RFPR cover'!$C$7,"Actuals","Forecast") -> Actuals | G5: =IF(G6<='RFPR cover'!$C$7,"Actuals","Forecast") -> Actuals | H5: =IF(H6<='RFPR cover'!$C$7,"Actuals","Forecast") -> Actuals | I5: =IF(I6<='RFPR cover'!$C$7,"Actuals","Forecast") -> Actuals | J5: =IF(J6<='RFPR cover'!$C$7,"Actuals","Forecast") -> Actuals | K5: =IF(K6<='RFPR cover'!$C$7,"Actuals","Forecast") -> Actuals
D6: ='RFPR cover'!$C$13 -> 2014 | E6: =D6+1 -> 2015 | F6: =E6+1 -> 2016 | G6: 2017 | H6: 2018 | I6: 2019 | J6: 2020 | K6: 2021
B8: Post-tax total fines and penalties (including GS payments) | C8: ='RFPR cover'!$C$14 -> £m 09/10 | D8: =(D16+D21)/Data!C34 -> 0.5155191548 | E8: =(E16+E21)/Data!D34 -> 0.6007756322 | F8: =(F16+F21)/Data!E34 -> 0.4627472366 | G8: =(G16+G21)/Data!F34 -> 0.7895153189 | H8: =(H16+H21)/Data!G34 -> 0.2144369196 | I8: =(I16+I21)/Data!H34 -> 0.7108874942 | J8: =(J16+J21)/Data!I34 -> 0.3600571791 | K8: =(K16+K21)/Data!J34 -> 0.2646834768
B10: Ofgem related fines and penalties
B11: Failure to meet gas network repair targets | C11: £m nominal | D11: 0.375 | E11: 0.375 | F11: 0 | G11: 0 | H11: 0 | I11: 0 | J11: 0 | K11: 0
B12: Fine/penalty | C12: £m nominal | D12: 0 | E12: 0 | F12: 0 | G12: 0 | H12: 0 | I12: 0.506 | J12: 0 | K12: 0
B13: Payments to residents who faced delayed compensation | C13: £m nominal | D13: 0 | E13: 0 | F13: 0 | G13: 0 | H13: 0 | I13: 0 | J13: 0 | K13: 0
B14: Total Ofgem related fines and penalties | C14: £m nominal | D14: =SUM(D11:D13) -> 0.375 | E14: =SUM(E11:E13) -> 0.375 | F14: 0 | G14: 0 | H14: 0 | I14: 0.506 | J14: 0 | K14: 0
B15: Any adjustment for tax | C15: £m nominal | D15: 0 | E15: 0 | F15: 0 | G15: 0 | H15: 0 | I15: 0 | J15: 0 | K15: 0
B16: Post-tax total fines and penalties | C16: £m nominal | D16: =D14-D15 -> 0.375 | E16: =E14-E15 -> 0.375 | F16: 0 | G16: 0 | H16: 0 | I16: 0.506 | J16: 0 | K16: 0
B18: Guaranteed Standard (GS) payments
B19: Total GS payments | C19: £m nominal | D19: 0.2940916389 | E19: 0.429944879 | F19: 0.695495047 | G19: 1.212043798 | H19: 0.337300431 | I19: 0.52767261 | J19: 0.598769687 | K19: 0.44550311
B20: Any adjustment for tax | C20: £m nominal | D20: 0.06764107695 | E20: 0.09028842459 | F20: 0.1390990094 | G20: 0.2424087596 | H20: 0.06408708189 | I20: 0.1002577959 | J20: 0.1137662405 | K20: 0.0846455909
B21: Post-tax total GS payments | C21: £m nominal | D21: =D19-D20 -> 0.226450562 | E21: =E19-E20 -> 0.3396564544 | F21: 0.5563960376 | G21: 0.9696350386 | H21: 0.2732133491 | I21: 0.4274148141 | J21: 0.4850034465 | K21: 0.3608575191
